{"text_format":"1","workbook":"xlsx","n_sheets":5,"sheets":["PRESENTACIÓN","INSTRUCCIONES","ENCUESTA","RESPUESTAS","GRÁFICOS"],"not_rendered":{"charts":12,"images":9,"macros":1,"external_links":0,"defined_names":1,"comments":0,"pivot_tables":0},"unopened":[],"bounds":{"document_bytes":16777216,"sheet_cells":100000,"rows_first":2000,"rows_last":500,"rows_between":2000,"halvings":0,"cell_chars":16384,"cell_head_chars":4096},"cells_cut":0,"cells_raw":0,"read":"whole","date_system":"1900"}

{"sheet":"PRESENTACIÓN","index":0,"n_rows":0,"n_cols":0,"rows_kept":0,"cut":false,"hidden":false,"merged":[]}

{"sheet":"INSTRUCCIONES","index":1,"n_rows":0,"n_cols":0,"rows_kept":0,"cut":false,"hidden":false,"merged":[]}

{"sheet":"ENCUESTA","index":2,"n_rows":76,"n_cols":24,"rows_kept":76,"cut":false,"hidden":false,"merged":[[68,6,68,11],[67,6,67,11],[66,6,66,11],[65,6,65,11],[64,6,64,11],[70,5,70,17],[75,6,75,11],[74,6,74,11],[73,6,73,11],[72,6,72,11],[63,6,63,11],[62,6,62,11],[61,6,61,11],[60,6,60,11],[11,5,11,17],[57,5,57,17],[51,5,51,17],[47,5,47,17],[43,5,43,17],[39,5,39,17],[31,5,31,17],[27,5,27,17],[23,5,23,17],[19,5,19,17],[15,5,15,17],[59,6,59,11]]}
[]
[]
[null,null,null,null,null,null,null,null,null,null,null,null,null,null,null,null,null,null,null,null,null,"género ","Femenino"]
[null,null,null,null,null,null,"Género",null,null,null,null,null,null,null,null,null,null,null,null,null,"a.-",null,"Masculino"]
[null,null,null,null,null,null,"Zona que habita",null,null,null,null,null,null,null,null,null,null,null,null,null,"b.-"]
[null,null,null,null,null,null,"Nivel de Ingreso Hogar",null,null,null,null,null,null,null,null,null,null,null,null,null,"c.-","Zona que habita ",null,"Rural"]
[null,null,null,null,null,null,"Rango de Edad",null,null,null,null,null,null,null,null,null,null,null,null,null,"d.-",null,null,"Urbana"]
[null,null,null,null,null," ",null,null,null,null,null,null,null,null,null,null,null,null,null,null,"e.-",null,null,"Mixta"]
[null,null,null,null,null,null,null,null,null,null,null,null,null,null,null,null,null,null,null,null,"f.-"]
[null,null,null,null,null,"PARTE 1.- Preguntas ámbito municipal y comunal",null,null,null,null,null,null,null,null,null,null,null,null,null,null,"g.-","Nivel de ingreso hogar",null,"160<"]
[null,null,null,null,null,null,null,null,null,null,null,null,null,null,null,null,null,null,null,null,"h.-",null,null,"200 - 300"]
[null,null,null,null,null,"1.- ¿Cuál de las siguientes instituciones, cree usted, que es la responsanble de elaborar las ordenanzas ambientales?",null,null,null,null,null,null,null,null,null,null,null,null,null,null,"i.-",null,null,"400 - 500 "]
[null,null,null,null,null,null,null,null,null,null,null,null,null,null,null,null,null,null,null,null,"j-",null,null,"600 - 1600 "]
[null,null,null,null,null,null,null,null,null,null,null,null,null,null,null,null,null,null,null,null,null,null,null,">1700"]
[]
[null,null,null,null,null,"2.- Una Ordenanza ambiental es un instrumento:",null,null,null,null,null,null,null,null,null,null,null,null,null,null,null,"Rango de edad ",null,"16 - 20"]
[null,null,null,null,null,null,null,null,null,null,null,null,null,null,null,null,null,null,null,null,null,null,null,"21 - 30"]
[null,null,null,null,null,null,null,null,null,null,null,null,null,null,null,null,null,null,null,null,null,null,null,"31- 40"]
[null,null,null,null,null,null,null,null,null,null,null,null,null,null,null,null,null,null,null,null,null,null,null,"41 - 50"]
[null,null,null,null,null,"3.- ¿Cómo evaluaría la contribución que hace el municipio a la protección o cuidado del medio ambiente en su comuna?:",null,null,null,null,null,null,null,null,null,null,null,null,null,null,null,null,null,"51 - 60"]
[null,null,null,null,null,null,null,null,null,null,null,null,null,null,null,null,null,null,null,null,null,null,null,"61 o más"]
[]
[]
[null,null,null,null,null,"4.- Ante la siguiente afirmación: \"Los/as vecinos/as  están muy preocupados por los temas ambientales\", ¿usted estaría?:"]
[null,null,null,null,null,null,null,null,null,null,null,null,null,null,null,null,null,null,null,null,null,"p1  ","a) El Congreso"]
[null,null,null,null,null,null,null,null,null,null,null,null,null,null,null,null,null,null,null,null,null,null,"b) La Superintendencia del medioambiente"]
[null,null,null,null,null,null,null,null,null,null,null,null,null,null,null,null,null,null,null,null,null,null,"c) El Municipio"]
[null,null,null,null,null,"5.- Respecto del territorio de su comuna, ¿cree que la situación medioambiental en los últimos 5 años se ha?:",null,null,null,null,null,null,null,null,null,null,null,null,null,null,null,null,"d) El Ministerio del  medio ambiente"]
[null,null,null,null,null,null,null,null,null,null,null,null,null,null,null,null,null,null,null,null,null,null,"e) ministerio de salud"]
[null,null,null,null,null,null,null,null,null,null,null,null,null,null,null,null,null,null,null,null,null,null,"f) No lo sé"]
[null,null,null,null,null,null,null,null,null,null,null,null,null,null,null,null,null,null,null,null,null,"p2","a)  Legal que permite normar y sancionar conductas ambientales de las empresas y el comercio."]
[null,null,null,null,null,"6.- ¿Cuál de los siguientes problemas ambientaleses el que más afecta en su comuna?. Priorice dos, según su gravedad. En Caso de que la opción no se encuentre, responda en las líneas presentes a continuación (sólo dos)",null,null,null,null,null,null,null,null,null,null,null,null,null,null,null,null,"b)  Administrativo que permite normar y sancionar conductas ambientales de las personas."]
[null,null,null,null,null,null,null,null,null,null,null,null,null,null,null,null,null,null,null,null,null,null,"c)  Jurídico que permite normar y sancionar conductas ambientales de la comunidad."]
[null,null,null,null,null,"1.-",null,null,null,null,null,null,null,null,null,null,null,null,null,null,null,null,"d)  Financiero que permite normar y sancionar conductas ambientales de las personas. "]
[null,null,null,null,null,"2.-",null,null,null,null,null,null,null,null,null,null,null,null,null,null,null,null,"e) No lo  sé"]
[]
[null,null,null,null,null,null,null,null,null,null,null,null,null,null,null,null,null,null,null,null,null,null,"c) Alguna vez al mes"]
[null,null,null,null,null,"PARTE 2.- Preguntas ámbito nacional ",null,null,null,null,null,null,null,null,null,null,null,null,null,null,null,null,"d)rara vez"]
[null,null,null,null,null,null,null,null,null,null,null,null,null,null,null,null,null,null,null,null,null,null,"e)Nunca"]
[null,null,null,null,null,"7.- Ante la siguiente afirmación: \"en el país las personas están cambiando su comportamiento en forma positiva para la protección o conservación del medio ambiente\" ¿Usted está?:"]
[null,null,null,null,null,null,null,null,null,null,null,null,null,null,null,null,null,null,null,null,null,null,"Totalmente de acuerdo"]
[null,null,null,null,null,null,null,null,null,null,null,null,null,null,null,null,null,null,null,null,null,null,"Más bien de acuerdo"]
[null,null,null,null,null,null,null,null,null,null,null,null,null,null,null,null,null,null,null,null,null,null,"Más bien en desacuerdo"]
[null,null,null,null,null,"8.- ¿Cree que en el país la situación ambiental en los últimos10 años se ha?:",null,null,null,null,null,null,null,null,null,null,null,null,null,null,null,null,"Totalmente en desacuerdo"]
[null,null,null,null,null,null,null,null,null,null,null,null,null,null,null,null,null,null,null,null,null,null,"Lo ignoro"]
[]
[null,null,null,null,null,null,null,null,null,null,null,null,null,null,null,null,null,null,null,null,null,null,"Totalmente de acuerdo"]
[null,null,null,null,null,"9.- A su juicio, ¿quién es el principal responsable de los problemas ambientales en el país?",null,null,null,null,null,null,null,null,null,null,null,null,null,null,null,null,"Más bien de acuerdo"]
[null,null,null,null,null,null,null,null,null,null,null,null,null,null,null,null,null,null,null,null,null,null,"Más bien en desacuerdo"]
[null,null,null,null,null,null,null,null,null,null,null,null,null,null,null,null,null,null,null,null,null,null,"Totalmente en desacuerdo"]
[null,null,null,null,null,null,null,null,null,null,null,null,null,null,null,null,null,null,null,null,null,null,"No se pronuncia"]
[null,null,null,null,null,"10.- El concepto de medio ambiente para usted es sinónimo de:"]
[]
[]
[]
[null,null,null,null,null,"PARTE 3.- Pregunta de Actitud hacia el medio ambiente."]
[]
[null,null,null,null,null,"11.- Por favor, indique cuan de acuerdo o en desacuero está con los siguientes enunciados:"]
[]
[null,null,null,null,null,null,"a) Para poder proteger el medioambiente se necesita que haya desarrollo económico"]
[null,null,null,null,null,null,"b) Me parece bien que se instalen industrias y que utilicen los recursos naturales si con ello se logran más cupos de empleos."]
[null,null,null,null,null,null,"c) Las personas tenemos derecho a utilizar todos los adelantos que proporciona la tecnología, aunque al hacerlo estemos deteriorando, sin querer el medio ambiente."]
[null,null,null,null,null,null,"d) El deterioro del medioambiente es un mal menor en el progreso económico."]
[null,null,null,null,null,null,"e) El crecimiento económico es siempre perjudicial para el medioambiente. "]
[null,null,null,null,null,null,"f) En la Naturaleza reinaría la paz y la armonía si los seres humanos dejaran de intervenirla."]
[null,null,null,null,null,null,"g) La humanidad tiene que impedir los progresos y avances tecnologícos que, aún proporcionando ciertos beneficios, impliquen peligros gravies para el medio ambiente mundial."]
[null,null,null,null,null,null,"h) Con la tecnología actual no se puede mantener el ritmo de desarrollo económico, sin perjudicar el medioambiente."]
[null,null,null,null,null,null,"i) Para proteger el medioa ambiente es necesario reducir nuestro consumo y nivel de vida."]
[null,null,null,null,null,null,"j) La protección del medio ambiente requiere de normas muy rigurosas y una fiscalización activa. "]
[]
[null,null,null,null,null,"12.- se presenta la siguiente situación: Existe un conflicto entre una empresa y una(s) comunidad(es) local(es) producto del uso o futura explotación que desea hacer la empresa sobre un determinado recurso natural. Por favor, indique cuan de acuerdo está con los siguientes enunciados."]
[]
[null,null,null,null,null,null,"a) El estado debe mantenerse al margen del conflicto, porque es un asunto entre privados y el Estado solo debe cautelar por el cumplimiento de la normativa ambiental y el orden público."]
[null,null,null,null,null,null,"b) El estado debe desarrollar mecanismos que permitan que tanto la empresa como la comunidad afectada, logren acuerdos vinculantes para una utilización equilibrada de los recursos en disputa."]
[null,null,null,null,null,null,"c) El estado debe intervenir y favorecer la iniciativa privada porque con ello se fomenta el desarrollo y la riqueza de la localidad  y del país."]
[null,null,null,null,null,null,"d) El Estado debe, por sobre todo, procurar por la protección de los recursos naturales y de las comunidades locales, aunque esto signifique prohibir el funcionamiento de determinada empresa."]

{"sheet":"RESPUESTAS","index":3,"n_rows":355,"n_cols":30,"rows_kept":355,"cut":false,"hidden":false,"merged":[]}
[]
["Nº","GÉNERO","ZONA QUE HABITA","INGRESO","RANGO DE EDAD ","P1","P2","P3","P4","P5","P6.1","P6.2","P7","P8","P9","P10","P11.a ","P11.b","P11.c","P11.d","P11.e","P11.f","P11.g","P11.h","P11.i","P11.j","P12.a","P12.b","P12.c","P12.d"]
[1,"Femenino","Urbana","160<","21 - 30","c.-","c.-","c.-","c.-","a.-","c.-","e.-","b.-","a.-","d.-","b.-","Lo ignoro","Lo ignoro","Lo ignoro","Lo ignoro","Lo ignoro","Lo ignoro","Lo ignoro","Lo ignoro","Lo ignoro","Lo ignoro","No se pronuncia","No se pronuncia","No se pronuncia","No se pronuncia"]
[2,"Femenino","Urbana","200 - 300","21 - 30","c.-","b.-","a.-","a.-","a.-","a.-","e.-","b.-","a.-","d.-","c.-","Lo ignoro","Lo ignoro","Lo ignoro","Lo ignoro","Lo ignoro","Lo ignoro","Lo ignoro","Lo ignoro","Lo ignoro","Lo ignoro","No se pronuncia","No se pronuncia","No se pronuncia","No se pronuncia"]
[3,"Femenino","Urbana","400 - 500 ","21 - 30","f.-","e.-","d.-","c.-","b.-","d.-","e.-","b.-","b.-","d.-","f.-","Lo ignoro","Lo ignoro","Lo ignoro","Lo ignoro","Lo ignoro","Lo ignoro","Lo ignoro","Lo ignoro","Lo ignoro","Lo ignoro","No se pronuncia","No se pronuncia","No se pronuncia","No se pronuncia"]
[4,"Femenino","Urbana","200 - 300","21 - 30","d.-","a.-","a.-","a.-","a.-","d.-","e.-","a.-","a.-","d.-","a.-","Lo ignoro","Lo ignoro","Lo ignoro","Lo ignoro","Lo ignoro","Lo ignoro","Lo ignoro","Lo ignoro","Lo ignoro","Lo ignoro","No se pronuncia","No se pronuncia","No se pronuncia","No se pronuncia"]
[5,"Femenino","Urbana","160<","21 - 30","b.-","a.-","d.-","a.-","c.-","a.-","b.-","c.-","c.-","d.-","e.-","Más bien de acuerdo","Totalmente en desacuerdo","Totalmente en desacuerdo","Totalmente de acuerdo","Totalmente de acuerdo","Más bien de acuerdo","Más bien de acuerdo","Totalmente de acuerdo","Más bien de acuerdo","Totalmente de acuerdo","Totalmente en desacuerdo","Totalmente de acuerdo","Totalmente en desacuerdo","Totalmente de acuerdo"]
[6,"Masculino","Urbana","200 - 300","21 - 30","e.-","e.-","c.-","a.-","a.-","a.-","e.-","d.-","b.-","c.-","c.-","Lo ignoro","Lo ignoro","Lo ignoro","Lo ignoro","Lo ignoro","Lo ignoro","Lo ignoro","Lo ignoro","Lo ignoro","Lo ignoro","No se pronuncia","No se pronuncia","No se pronuncia","No se pronuncia"]
[7,"Femenino","Urbana","200 - 300","21 - 30","c.-","c.-","c.-","c.-","c.-","a.-","e.-","c.-","b.-","c.-","a.-","Totalmente de acuerdo","Totalmente de acuerdo","Más bien de acuerdo","Más bien en desacuerdo","Más bien en desacuerdo","Más bien de acuerdo","Totalmente de acuerdo","Más bien de acuerdo","Totalmente de acuerdo","Totalmente de acuerdo","Totalmente en desacuerdo","Totalmente de acuerdo","Totalmente de acuerdo","Totalmente de acuerdo"]
[8,"Femenino","Urbana","200 - 300","21 - 30","c.-","e.-","c.-","b.-","a.-","a.-","e.-","b.-","a.-","d.-","c.-","Totalmente de acuerdo","Más bien en desacuerdo","Más bien en desacuerdo","Más bien en desacuerdo","Más bien de acuerdo","Más bien en desacuerdo","Más bien en desacuerdo","Más bien de acuerdo","Totalmente en desacuerdo","Totalmente de acuerdo","No se pronuncia","No se pronuncia","No se pronuncia","No se pronuncia"]
[9,"Femenino","Urbana","200 - 300","21 - 30","c.-","c.-","d.-","d.-","c.-","a.-","e.-","d.-","c.-","d.-","f.-","Lo ignoro","Lo ignoro","Lo ignoro","Lo ignoro","Lo ignoro","Lo ignoro","Lo ignoro","Lo ignoro","Lo ignoro","Lo ignoro","No se pronuncia","No se pronuncia","No se pronuncia","No se pronuncia"]
[10,"Femenino","Mixta","200 - 300","21 - 30","c.-","e.-","a.-","a.-","a.-","d.-","e.-","a.-","a.-","c.-","b.-","Lo ignoro","Lo ignoro","Lo ignoro","Lo ignoro","Lo ignoro","Lo ignoro","Lo ignoro","Lo ignoro","Lo ignoro","Lo ignoro","No se pronuncia","No se pronuncia","No se pronuncia","No se pronuncia"]
[11,"Femenino","Mixta","160<","21 - 30","c.-","c.-","b.-","b.-","b.-","a.-","c.-","c.-","b.-","d.-","f.-","Lo ignoro","Lo ignoro","Lo ignoro","Lo ignoro","Lo ignoro","Lo ignoro","Lo ignoro","Lo ignoro","Lo ignoro","Lo ignoro","No se pronuncia","No se pronuncia","No se pronuncia","No se pronuncia"]
[12,"Femenino","Mixta","200 - 300","21 - 30","f.-","c.-","a.-","a.-","b.-","a.-","b.-","d.-","b.-","d.-","e.-","Totalmente de acuerdo","Más bien de acuerdo","Totalmente en desacuerdo","Totalmente en desacuerdo","Lo ignoro","Lo ignoro","Lo ignoro","Lo ignoro","Lo ignoro","Lo ignoro","No se pronuncia","No se pronuncia","No se pronuncia","No se pronuncia"]
[13,"Femenino","Urbana","400 - 500 ","21 - 30","f.-","c.-","b.-","d.-","a.-","e.-","c.-","b.-","b.-","d.-","e.-","Más bien en desacuerdo","Totalmente en desacuerdo","Totalmente en desacuerdo","Totalmente en desacuerdo","Totalmente de acuerdo","Más bien de acuerdo","Totalmente de acuerdo","Totalmente en desacuerdo","Más bien de acuerdo","Totalmente de acuerdo","No se pronuncia","No se pronuncia","No se pronuncia","No se pronuncia"]
[14,"Femenino","Urbana","200 - 300","21 - 30","b.-","a.-","c.-","c.-","c.-","a.-","e.-","b.-","c.-","d.-","e.-","Lo ignoro","Lo ignoro","Lo ignoro","Lo ignoro","Lo ignoro","Lo ignoro","Lo ignoro","Lo ignoro","Lo ignoro","Lo ignoro","No se pronuncia","No se pronuncia","No se pronuncia","No se pronuncia"]
[15,"Femenino","Urbana","160<","21 - 30","b.-","a.-","b.-","a.-","b.-","a.-","e.-","a.-","a.-","d.-","b.-","Lo ignoro","Lo ignoro","Lo ignoro","Lo ignoro","Lo ignoro","Lo ignoro","Lo ignoro","Lo ignoro","Lo ignoro","Lo ignoro","No se pronuncia","No se pronuncia","No se pronuncia","No se pronuncia"]
[16,"Femenino","Urbana","160<","21 - 30","c.-","b.-","d.-","c.-","a.-","c.-","d.-","c.-","b.-","d.-","c.-","Lo ignoro","Lo ignoro","Lo ignoro","Lo ignoro","Lo ignoro","Lo ignoro","Lo ignoro","Lo ignoro","Lo ignoro","Lo ignoro","No se pronuncia","No se pronuncia","No se pronuncia","No se pronuncia"]
[17,"Femenino","Urbana","200 - 300","21 - 30","b.-","b.-","c.-","b.-","c.-","a.-","b.-","a.-","c.-","d.-","e.-","Más bien en desacuerdo","Totalmente en desacuerdo","Totalmente en desacuerdo","Totalmente en desacuerdo","Totalmente en desacuerdo","Totalmente en desacuerdo","Totalmente en desacuerdo","Totalmente en desacuerdo","Totalmente en desacuerdo","Totalmente en desacuerdo","Totalmente en desacuerdo","Totalmente en desacuerdo","Totalmente en desacuerdo","Totalmente en desacuerdo"]
[18,"Femenino","Urbana","200 - 300","21 - 30","d.-","b.-","d.-","a.-","a.-","d.-","e.-","b.-","a.-","a.-","b.-","Más bien en desacuerdo","Más bien de acuerdo","Más bien en desacuerdo","Totalmente en desacuerdo","Totalmente en desacuerdo","Más bien en desacuerdo","Totalmente en desacuerdo","Totalmente en desacuerdo","Totalmente en desacuerdo","Totalmente de acuerdo","Totalmente en desacuerdo","Más bien de acuerdo","Totalmente en desacuerdo","Totalmente de acuerdo"]
[19,"Femenino","Urbana","400 - 500 ","21 - 30","d.-","a.-","b.-","b.-","a.-","e.-","d.-","a.-","b.-","d.-","b.-","Lo ignoro","Lo ignoro","Lo ignoro","Lo ignoro","Lo ignoro","Lo ignoro","Lo ignoro","Lo ignoro","Lo ignoro","Lo ignoro","No se pronuncia","No se pronuncia","No se pronuncia","No se pronuncia"]
[20,"Femenino","Urbana","160<","21 - 30","c.-","c.-","c.-","c.-","b.-","c.-","d.-","c.-","a.-","d.-","e.-","Lo ignoro","Lo ignoro","Lo ignoro","Lo ignoro","Lo ignoro","Lo ignoro","Lo ignoro","Lo ignoro","Lo ignoro","Lo ignoro","No se pronuncia","No se pronuncia","No se pronuncia","No se pronuncia"]
[21,"Femenino","Urbana","160<","21 - 30","b.-","c.-","c.-","b.-","a.-","d.-","e.-","b.-","b.-","d.-","e.-","Lo ignoro","Lo ignoro","Lo ignoro","Lo ignoro","Lo ignoro","Lo ignoro","Lo ignoro","Lo ignoro","Lo ignoro","Lo ignoro","No se pronuncia","No se pronuncia","No se pronuncia","No se pronuncia"]
[22,"Femenino","Urbana","200 - 300","21 - 30","d.-","a.-","b.-","a.-","c.-","c.-","d.-","b.-","b.-","d.-","f.-","Lo ignoro","Lo ignoro","Lo ignoro","Lo ignoro","Lo ignoro","Lo ignoro","Lo ignoro","Lo ignoro","Lo ignoro","Lo ignoro","No se pronuncia","No se pronuncia","No se pronuncia","No se pronuncia"]
[23,"Femenino","Urbana","160<","21 - 30","d.-","a.-","d.-","a.-","c.-","c.-","e.-","b.-","c.-","d.-","d.-","Más bien en desacuerdo","Totalmente en desacuerdo","Totalmente de acuerdo","Totalmente en desacuerdo","Más bien de acuerdo","Totalmente de acuerdo","Totalmente en desacuerdo","Más bien de acuerdo","Totalmente en desacuerdo","Totalmente de acuerdo","No se pronuncia","No se pronuncia","No se pronuncia","No se pronuncia"]
[24,"Femenino","Urbana","200 - 300","21 - 30","b.-","b.-","b.-","a.-","a.-","a.-","c.-","b.-","d.-","d.-","a.-","Totalmente de acuerdo","Totalmente de acuerdo","Totalmente de acuerdo","Totalmente de acuerdo","Totalmente de acuerdo","Totalmente de acuerdo","Totalmente de acuerdo","Totalmente de acuerdo","Totalmente de acuerdo","Totalmente de acuerdo","Totalmente de acuerdo","Totalmente de acuerdo","Totalmente de acuerdo","Totalmente de acuerdo"]
[25,"Femenino","Urbana","160<","21 - 30","d.-","c.-","c.-","a.-","c.-","b.-","c.-","b.-","b.-","d.-","e.-","Totalmente de acuerdo","Más bien en desacuerdo","Totalmente en desacuerdo","Totalmente en desacuerdo","Totalmente de acuerdo","Totalmente de acuerdo","Totalmente en desacuerdo","Más bien en desacuerdo","Totalmente en desacuerdo","Totalmente de acuerdo","Totalmente en desacuerdo","Más bien de acuerdo","Totalmente en desacuerdo","Totalmente de acuerdo"]
[26,"Femenino","Rural","200 - 300","21 - 30","d.-","e.-","d.-","c.-","b.-","e.-","c.-","b.-","b.-","d.-","c.-","Más bien de acuerdo","Más bien en desacuerdo","Totalmente en desacuerdo","Totalmente en desacuerdo","Más bien en desacuerdo","Más bien en desacuerdo","Más bien en desacuerdo","Más bien en desacuerdo","Totalmente de acuerdo","Totalmente de acuerdo","Totalmente en desacuerdo","Totalmente de acuerdo","Totalmente en desacuerdo","Totalmente de acuerdo"]
[27,"Femenino","Urbana","200 - 300","21 - 30","d.-","c.-","c.-","b.-","c.-","a.-","e.-","b.-","c.-","d.-","f.-","Más bien en desacuerdo","Totalmente en desacuerdo","Totalmente en desacuerdo","Totalmente en desacuerdo","Lo ignoro","Totalmente de acuerdo","Totalmente de acuerdo","Más bien de acuerdo","Totalmente de acuerdo","Totalmente de acuerdo","Totalmente en desacuerdo","Más bien de acuerdo","Totalmente en desacuerdo","Más bien de acuerdo"]
[28,"Masculino","Urbana","200 - 300","21 - 30","d.-","a.-","b.-","a.-","c.-","c.-","d.-","b.-","c.-","d.-","d.-","Lo ignoro","Lo ignoro","Lo ignoro","Lo ignoro","Lo ignoro","Lo ignoro","Lo ignoro","Lo ignoro","Lo ignoro","Lo ignoro","No se pronuncia","No se pronuncia","No se pronuncia","No se pronuncia"]
[29,"Femenino","Urbana","160<","21 - 30","b.-","e.-","b.-","a.-","a.-","c.-","d.-","d.-","d.-","d.-","f.-","Lo ignoro","Lo ignoro","Lo ignoro","Lo ignoro","Lo ignoro","Lo ignoro","Lo ignoro","Lo ignoro","Lo ignoro","Lo ignoro","No se pronuncia","No se pronuncia","No se pronuncia","No se pronuncia"]
[30,"Femenino","Mixta","160<","21 - 30","d.-","b.-","c.-","c.-","c.-","c.-","e.-","b.-","b.-","d.-","f.-","Más bien en desacuerdo","Totalmente en desacuerdo","Totalmente en desacuerdo","Totalmente de acuerdo","Totalmente de acuerdo","Totalmente de acuerdo","Totalmente de acuerdo","Totalmente de acuerdo","Totalmente de acuerdo","Totalmente de acuerdo","Más bien en desacuerdo","Más bien de acuerdo","Totalmente de acuerdo","Totalmente de acuerdo"]
[31,"Femenino","Urbana","200 - 300","21 - 30","e.-","c.-","a.-","b.-","a.-","c.-","e.-","a.-","a.-","c.-","b.-","Lo ignoro","Lo ignoro","Lo ignoro","Lo ignoro","Lo ignoro","Lo ignoro","Lo ignoro","Lo ignoro","Lo ignoro","Lo ignoro","No se pronuncia","No se pronuncia","No se pronuncia","No se pronuncia"]
[32,"Femenino","Urbana","200 - 300","21 - 30","b.-","c.-","c.-","b.-","b.-","c.-","d.-","b.-","b.-","d.-","e.-","Lo ignoro","Lo ignoro","Lo ignoro","Lo ignoro","Lo ignoro","Lo ignoro","Lo ignoro","Lo ignoro","Lo ignoro","Lo ignoro","No se pronuncia","No se pronuncia","No se pronuncia","No se pronuncia"]
[33,"Femenino","Urbana","600 - 1600 ","21 - 30","b.-","a.-","c.-","c.-","b.-","b.-","c.-","b.-","c.-","a.-","a.-","Totalmente en desacuerdo","Totalmente en desacuerdo","Totalmente en desacuerdo","Totalmente en desacuerdo","Totalmente en desacuerdo","Totalmente en desacuerdo","Totalmente de acuerdo","Totalmente en desacuerdo","Más bien de acuerdo","Totalmente de acuerdo","Totalmente en desacuerdo","Más bien de acuerdo","Totalmente en desacuerdo","Totalmente de acuerdo"]
[34,"Femenino","Urbana","400 - 500 ","21 - 30","c.-","e.-","c.-","b.-","b.-","c.-","e.-","c.-","c.-","d.-","b.-","Más bien de acuerdo","Lo ignoro","Lo ignoro","Más bien en desacuerdo","Totalmente en desacuerdo","Totalmente de acuerdo","Lo ignoro","Totalmente en desacuerdo","Más bien de acuerdo","Totalmente de acuerdo","Más bien en desacuerdo","Totalmente de acuerdo","Totalmente en desacuerdo","Más bien de acuerdo"]
[35,"Femenino","Urbana","600 - 1600 ","21 - 30","c.-","a.-","d.-","d.-","b.-","b.-","c.-","c.-","c.-","c.-","e.-","Más bien en desacuerdo","Totalmente en desacuerdo","Totalmente en desacuerdo","Totalmente en desacuerdo","Más bien de acuerdo","Totalmente en desacuerdo","Totalmente de acuerdo","Totalmente en desacuerdo","Más bien de acuerdo","Totalmente de acuerdo","Totalmente en desacuerdo","Totalmente de acuerdo","Totalmente en desacuerdo","Totalmente de acuerdo"]
[36,"Femenino","Mixta","600 - 1600 ","21 - 30","d.-","a.-","c.-","a.-","b.-","c.-","e.-","c.-","c.-","d.-","e.-","Más bien en desacuerdo","Totalmente en desacuerdo","Totalmente en desacuerdo","Totalmente en desacuerdo","Más bien de acuerdo","Más bien de acuerdo","Más bien en desacuerdo","Totalmente en desacuerdo","Más bien en desacuerdo","Totalmente de acuerdo","Totalmente en desacuerdo","Totalmente de acuerdo","Totalmente en desacuerdo","Más bien en desacuerdo"]
[37,"Femenino","Urbana","600 - 1600 ","21 - 30","f.-","b.-","c.-","c.-","b.-","b.-","e.-","b.-","b.-","d.-","e.-","Totalmente en desacuerdo","Totalmente en desacuerdo","Totalmente en desacuerdo","Totalmente en desacuerdo","Totalmente en desacuerdo","Lo ignoro","Más bien de acuerdo","Totalmente en desacuerdo","Más bien en desacuerdo","Totalmente de acuerdo","Totalmente en desacuerdo","Más bien de acuerdo","Totalmente en desacuerdo","Totalmente de acuerdo"]
[38,"Femenino","Mixta","600 - 1600 ","21 - 30","c.-","b.-","c.-","c.-","b.-","c.-","e.-","b.-","b.-","d.-","e.-","Totalmente en desacuerdo","Totalmente en desacuerdo","Totalmente en desacuerdo","Totalmente en desacuerdo","Totalmente en desacuerdo","Lo ignoro","Totalmente de acuerdo","Totalmente en desacuerdo","Totalmente en desacuerdo","Totalmente de acuerdo","Totalmente en desacuerdo","Más bien de acuerdo","Totalmente en desacuerdo","Totalmente de acuerdo"]
[39,"Femenino","Mixta","200 - 300","21 - 30","d.-","c.-","b.-","a.-","a.-","d.-","e.-","b.-","a.-","c.-","a.-","Lo ignoro","Lo ignoro","Lo ignoro","Lo ignoro","Lo ignoro","Lo ignoro","Lo ignoro","Lo ignoro","Lo ignoro","Lo ignoro","No se pronuncia","No se pronuncia","No se pronuncia","No se pronuncia"]
[40,"Femenino","Rural","600 - 1600 ","21 - 30","f.-","e.-","d.-","b.-","b.-","b.-","e.-","b.-","b.-","d.-","e.-","Lo ignoro","Lo ignoro","Lo ignoro","Lo ignoro","Lo ignoro","Lo ignoro","Lo ignoro","Lo ignoro","Lo ignoro","Lo ignoro","No se pronuncia","No se pronuncia","No se pronuncia","No se pronuncia"]
[41,"Femenino","Urbana","160<","21 - 30","c.-","e.-","e.-","a.-","b.-","e.-","d.-","d.-","c.-","d.-","c.-","Más bien de acuerdo","Más bien de acuerdo","Totalmente en desacuerdo","Totalmente en desacuerdo","Más bien en desacuerdo","Totalmente de acuerdo","Totalmente en desacuerdo","Más bien de acuerdo","Más bien de acuerdo","Más bien en desacuerdo","Totalmente en desacuerdo","Más bien de acuerdo","Más bien de acuerdo","Totalmente de acuerdo"]
[42,"Femenino","Rural","200 - 300","21 - 30","c.-","b.-","c.-","d.-","c.-","c.-","d.-","b.-","c.-","d.-","d.-","Lo ignoro","Lo ignoro","Lo ignoro","Lo ignoro","Lo ignoro","Lo ignoro","Lo ignoro","Lo ignoro","Lo ignoro","Lo ignoro","No se pronuncia","No se pronuncia","No se pronuncia","No se pronuncia"]
[43,"Femenino","Urbana","160<","21 - 30","b.-","a.-","c.-","c.-","c.-","c.-","e.-","d.-","c.-","d.-","c.-","Lo ignoro","Lo ignoro","Lo ignoro","Lo ignoro","Lo ignoro","Lo ignoro","Lo ignoro","Lo ignoro","Lo ignoro","Lo ignoro","No se pronuncia","No se pronuncia","No se pronuncia","No se pronuncia"]
[44,"Masculino","Urbana","400 - 500 ","21 - 30","d.-","c.-","c.-","b.-","a.-","c.-","d.-","c.-","a.-","d.-","f.-","Más bien de acuerdo","Más bien de acuerdo","Más bien en desacuerdo","Más bien en desacuerdo","Más bien en desacuerdo","Más bien de acuerdo","Más bien de acuerdo","Más bien en desacuerdo","Más bien de acuerdo","Más bien de acuerdo","Más bien en desacuerdo","Más bien de acuerdo","Totalmente en desacuerdo","Más bien de acuerdo"]
[45,"Femenino","Urbana","160<","21 - 30","e.-","c.-","b.-","a.-","b.-","e.-","c.-","a.-","a.-","d.-","f.-","Más bien en desacuerdo","Más bien en desacuerdo","Más bien de acuerdo","Totalmente de acuerdo","Más bien de acuerdo","Totalmente de acuerdo","Más bien de acuerdo","Totalmente en desacuerdo","Más bien en desacuerdo","Totalmente de acuerdo","Totalmente en desacuerdo","Totalmente de acuerdo","Totalmente de acuerdo","Totalmente de acuerdo"]
[46,"Femenino","Urbana","160<","21 - 30","e.-","a.-","d.-","a.-","b.-","a.-","c.-","a.-","b.-","d.-","f.-","Más bien de acuerdo","Más bien en desacuerdo","Más bien en desacuerdo","Totalmente de acuerdo","Totalmente en desacuerdo","Totalmente de acuerdo","Totalmente de acuerdo","Totalmente de acuerdo","Más bien de acuerdo","Totalmente de acuerdo","Totalmente en desacuerdo","Totalmente de acuerdo","Más bien en desacuerdo","Totalmente de acuerdo"]
[47,"Femenino","Urbana","400 - 500 ","21 - 30","d.-","b.-","b.-","c.-","b.-","d.-","e.-","c.-","b.-","d.-","c.-","Más bien de acuerdo","Totalmente en desacuerdo","Totalmente en desacuerdo","Totalmente de acuerdo","Totalmente de acuerdo","Totalmente de acuerdo","Más bien en desacuerdo","Totalmente en desacuerdo","Totalmente de acuerdo","Totalmente de acuerdo","Totalmente en desacuerdo","Totalmente de acuerdo","Totalmente de acuerdo","Totalmente de acuerdo"]
[48,"Femenino","Urbana","200 - 300","21 - 30","c.-","a.-","c.-","a.-","b.-","a.-","e.-","b.-","b.-","d.-","a.-","Totalmente de acuerdo","Más bien de acuerdo","Más bien en desacuerdo","Más bien en desacuerdo","Totalmente de acuerdo","Totalmente de acuerdo","Totalmente de acuerdo","Más bien en desacuerdo","Más bien en desacuerdo","Totalmente de acuerdo","Totalmente de acuerdo","Totalmente de acuerdo","Más bien en desacuerdo","Totalmente de acuerdo"]
[49,"Femenino","Urbana","160<","21 - 30","c.-","d.-","c.-","d.-","c.-","a.-","d.-","d.-","c.-","b.-","f.-","Lo ignoro","Lo ignoro","Lo ignoro","Lo ignoro","Lo ignoro","Lo ignoro","Lo ignoro","Lo ignoro","Lo ignoro","Lo ignoro","No se pronuncia","No se pronuncia","No se pronuncia","No se pronuncia"]
[50,"Femenino","Rural","160<","21 - 30","d.-","a.-","c.-","c.-","b.-","d.-","e.-","d.-","c.-","d.-","e.-","Lo ignoro","Lo ignoro","Lo ignoro","Lo ignoro","Lo ignoro","Lo ignoro","Lo ignoro","Lo ignoro","Lo ignoro","Lo ignoro","No se pronuncia","No se pronuncia","No se pronuncia","No se pronuncia"]
[51,"Femenino","Urbana","160<","21 - 30","d.-","e.-","c.-","c.-","b.-","e.-","c.-","d.-","d.-","d.-","c.-","Lo ignoro","Lo ignoro","Lo ignoro","Lo ignoro","Lo ignoro","Lo ignoro","Lo ignoro","Lo ignoro","Lo ignoro","Lo ignoro","No se pronuncia","No se pronuncia","No se pronuncia","No se pronuncia"]
[52,"Masculino","Rural","200 - 300","21 - 30","d.-","d.-","c.-","c.-","b.-","a.-","b.-","d.-","c.-","b.-","f.-","Lo ignoro","Lo ignoro","Lo ignoro","Lo ignoro","Lo ignoro","Lo ignoro","Lo ignoro","Lo ignoro","Lo ignoro","Lo ignoro","No se pronuncia","No se pronuncia","No se pronuncia","No se pronuncia"]
[53,"Masculino","Rural","200 - 300","21 - 30","d.-","a.-","c.-","a.-","a.-","a.-","c.-","b.-","b.-","b.-","b.-","Lo ignoro","Lo ignoro","Lo ignoro","Lo ignoro","Lo ignoro","Lo ignoro","Lo ignoro","Lo ignoro","Lo ignoro","Lo ignoro","No se pronuncia","No se pronuncia","No se pronuncia","No se pronuncia"]
[54,"Femenino","Rural","160<","21 - 30","d.-","b.-","b.-","b.-","b.-","a.-","e.-","b.-","b.-","d.-","f.-","Lo ignoro","Lo ignoro","Lo ignoro","Lo ignoro","Lo ignoro","Lo ignoro","Lo ignoro","Lo ignoro","Lo ignoro","Lo ignoro","No se pronuncia","No se pronuncia","No se pronuncia","No se pronuncia"]
[55,"Femenino","Rural","160<","21 - 30","b.-","a.-","c.-","b.-","b.-","b.-","e.-","b.-","b.-","b.-","b.-","Lo ignoro","Lo ignoro","Lo ignoro","Lo ignoro","Lo ignoro","Lo ignoro","Lo ignoro","Lo ignoro","Lo ignoro","Lo ignoro","No se pronuncia","No se pronuncia","No se pronuncia","No se pronuncia"]
[56,"Femenino","Urbana","160<","21 - 30","d.-","e.-","b.-","a.-","a.-","e.-","d.-","b.-","b.-","d.-","c.-","Totalmente de acuerdo","Lo ignoro","Más bien en desacuerdo","Lo ignoro","Más bien en desacuerdo","Totalmente de acuerdo","Más bien en desacuerdo","Más bien en desacuerdo","Lo ignoro","Lo ignoro","Más bien de acuerdo","Más bien de acuerdo","No se pronuncia","No se pronuncia"]
[57,"Masculino","Urbana","400 - 500 ","21 - 30","d.-","b.-","c.-","a.-","c.-","a.-","d.-","b.-","c.-","d.-","e.-","Lo ignoro","Totalmente de acuerdo","Totalmente en desacuerdo","Totalmente en desacuerdo","Más bien en desacuerdo","Totalmente de acuerdo","Totalmente en desacuerdo","Totalmente en desacuerdo","Más bien de acuerdo","Más bien de acuerdo","Totalmente en desacuerdo","Totalmente de acuerdo","Más bien en desacuerdo","Más bien en desacuerdo"]
[58,"Masculino","Rural","200 - 300","21 - 30","b.-","b.-","b.-","a.-","b.-","a.-","b.-","a.-","c.-","d.-","e.-","Lo ignoro","Lo ignoro","Lo ignoro","Lo ignoro","Lo ignoro","Lo ignoro","Lo ignoro","Lo ignoro","Lo ignoro","Lo ignoro","No se pronuncia","No se pronuncia","No se pronuncia","No se pronuncia"]
[59,"Masculino","Urbana","160<","21 - 30","e.-","a.-","b.-","a.-","c.-","a.-","c.-","b.-","a.-","c.-","a.-","Lo ignoro","Lo ignoro","Lo ignoro","Lo ignoro","Lo ignoro","Lo ignoro","Lo ignoro","Lo ignoro","Lo ignoro","Lo ignoro","No se pronuncia","No se pronuncia","No se pronuncia","No se pronuncia"]
[60,"Femenino","Urbana","200 - 300","21 - 30","b.-","a.-","b.-","a.-","b.-","a.-","d.-","b.-","c.-","d.-","e.-","Lo ignoro","Lo ignoro","Lo ignoro","Lo ignoro","Lo ignoro","Lo ignoro","Lo ignoro","Lo ignoro","Lo ignoro","Lo ignoro","No se pronuncia","No se pronuncia","No se pronuncia","No se pronuncia"]
[61,"Femenino","Urbana","200 - 300","61 o más","c.-","c.-","c.-","a.-","a.-","b.-","d.-","b.-","a.-","d.-","f.-","Totalmente de acuerdo","Totalmente de acuerdo","Más bien en desacuerdo","Totalmente en desacuerdo","Lo ignoro","Totalmente en desacuerdo","Lo ignoro","Totalmente de acuerdo","Totalmente en desacuerdo","Totalmente de acuerdo","Totalmente en desacuerdo","Totalmente de acuerdo","Totalmente en desacuerdo","Totalmente de acuerdo"]
[62,"Femenino","Rural","160<","61 o más","d.-","c.-","c.-","c.-","b.-","d.-","e.-","b.-","b.-","c.-","f.-","Totalmente en desacuerdo","Más bien en desacuerdo","Más bien de acuerdo","Totalmente de acuerdo","Más bien de acuerdo","Totalmente de acuerdo","Totalmente de acuerdo","Totalmente de acuerdo","Más bien de acuerdo","Totalmente de acuerdo","Más bien en desacuerdo","Totalmente de acuerdo","Más bien de acuerdo","Totalmente de acuerdo"]
[63,"Femenino","Urbana","200 - 300","61 o más","b.-","e.-","b.-","d.-","c.-","a.-","d.-","b.-","a.-","d.-","e.-","Más bien de acuerdo","Totalmente de acuerdo","Más bien en desacuerdo","Más bien en desacuerdo","Lo ignoro","Más bien en desacuerdo","Totalmente de acuerdo","Totalmente de acuerdo","Totalmente de acuerdo","Totalmente de acuerdo","Totalmente de acuerdo","Totalmente de acuerdo","Totalmente de acuerdo","Totalmente de acuerdo"]
[64,"Femenino","Urbana","160<","61 o más","d.-","b.-","c.-","b.-","b.-","a.-","d.-","b.-","c.-","d.-","c.-","Más bien en desacuerdo","Más bien en desacuerdo","Más bien en desacuerdo","Más bien en desacuerdo","Más bien en desacuerdo","Totalmente de acuerdo","Totalmente de acuerdo","Más bien de acuerdo","Más bien de acuerdo","Totalmente de acuerdo","Más bien de acuerdo","Más bien de acuerdo","Más bien en desacuerdo","Más bien en desacuerdo"]
[65,"Masculino","Urbana","200 - 300","61 o más","d.-","d.-","d.-","d.-","c.-","a.-","c.-","a.-","c.-","b.-","c.-","Más bien de acuerdo","Más bien en desacuerdo","Más bien en desacuerdo","Totalmente de acuerdo","Totalmente de acuerdo","Totalmente en desacuerdo","Más bien en desacuerdo","Totalmente de acuerdo","Totalmente de acuerdo","Totalmente de acuerdo","Más bien de acuerdo","Totalmente de acuerdo","Más bien de acuerdo","Totalmente de acuerdo"]
[null,"Masculino","Urbana","200 - 300","61 o más","d.-","e.-","c.-","a.-","c.-","d.-","e.-","b.-","c.-","d.-","e.-","Totalmente de acuerdo","Más bien en desacuerdo","Más bien en desacuerdo","Totalmente en desacuerdo","Totalmente de acuerdo","Totalmente de acuerdo","Totalmente de acuerdo","Totalmente de acuerdo","Más bien de acuerdo","Totalmente de acuerdo","Totalmente en desacuerdo","Totalmente de acuerdo","Más bien en desacuerdo","Totalmente de acuerdo"]
[null,"Masculino","Urbana","160<","61 o más","c.-","a.-","c.-","c.-","b.-","a.-","e.-","c.-","b.-","b.-","c.-","Más bien en desacuerdo","Más bien en desacuerdo","Totalmente en desacuerdo","Más bien en desacuerdo","Más bien de acuerdo","Más bien de acuerdo","Totalmente de acuerdo","Totalmente de acuerdo","Más bien de acuerdo","Totalmente de acuerdo","Totalmente en desacuerdo","Más bien de acuerdo","Más bien de acuerdo","Más bien de acuerdo"]
[null,"Femenino","Urbana","200 - 300","61 o más","b.-","a.-","c.-","a.-","a.-","a.-","e.-","b.-","c.-","d.-","e.-","Lo ignoro","Lo ignoro","Lo ignoro","Lo ignoro","Lo ignoro","Totalmente de acuerdo","Lo ignoro","Lo ignoro","Lo ignoro","Totalmente de acuerdo","Totalmente en desacuerdo","Más bien de acuerdo","Totalmente en desacuerdo","Totalmente de acuerdo"]
[null,"Masculino","Mixta","200 - 300","61 o más","c.-","c.-","c.-","b.-","a.-","c.-","e.-","b.-","a.-","d.-","b.-","Más bien en desacuerdo","Más bien de acuerdo","Más bien de acuerdo","Más bien en desacuerdo","Más bien en desacuerdo","Más bien en desacuerdo","Más bien de acuerdo","Totalmente de acuerdo","Más bien de acuerdo","Totalmente de acuerdo","Totalmente en desacuerdo","Totalmente de acuerdo","Más bien en desacuerdo","Más bien de acuerdo"]
[null,"Femenino","Urbana","200 - 300","61 o más","b.-","c.-","b.-","c.-","a.-","c.-","e.-","b.-","a.-","c.-","c.-","Más bien de acuerdo","Totalmente de acuerdo","Más bien en desacuerdo","Totalmente de acuerdo","Totalmente en desacuerdo","Totalmente de acuerdo","Más bien de acuerdo","Lo ignoro","Totalmente en desacuerdo","Totalmente de acuerdo","Más bien en desacuerdo","Totalmente de acuerdo","Totalmente de acuerdo","Totalmente de acuerdo"]
[null,"Femenino","Mixta","200 - 300","61 o más","f.-","e.-","b.-","c.-","a.-","a.-","e.-","b.-","a.-","a.-","f.-","Más bien de acuerdo","Más bien de acuerdo","Más bien de acuerdo","Lo ignoro","Más bien en desacuerdo","Más bien de acuerdo","Totalmente de acuerdo","Más bien de acuerdo","Más bien de acuerdo","Más bien de acuerdo","Más bien de acuerdo","Más bien de acuerdo","Totalmente en desacuerdo","Más bien de acuerdo"]
[null,"Femenino","Urbana","200 - 300","61 o más","d.-","c.-","d.-","a.-","a.-","c.-","e.-","c.-","b.-","d.-","c.-","Totalmente en desacuerdo","Totalmente en desacuerdo","Totalmente en desacuerdo","Totalmente en desacuerdo","Totalmente de acuerdo","Totalmente de acuerdo","Totalmente de acuerdo","Más bien de acuerdo","Totalmente de acuerdo","Totalmente de acuerdo","Totalmente en desacuerdo","Más bien en desacuerdo","Totalmente en desacuerdo","Totalmente de acuerdo"]
[null,"Masculino","Urbana","200 - 300","61 o más","d.-","a.-","b.-","a.-","a.-","a.-","d.-","a.-","b.-","d.-","f.-","Totalmente de acuerdo","Totalmente de acuerdo","Totalmente de acuerdo","Totalmente de acuerdo","Totalmente de acuerdo","Totalmente de acuerdo","Totalmente de acuerdo","Totalmente de acuerdo","Totalmente de acuerdo","Totalmente de acuerdo","No se pronuncia","No se pronuncia","No se pronuncia","No se pronuncia"]
[null,"Femenino","Urbana","160<","61 o más","c.-","b.-","c.-","b.-","c.-","c.-","d.-","c.-","c.-","d.-","f.-","Lo ignoro","Lo ignoro","Lo ignoro","Más bien de acuerdo","Lo ignoro","Lo ignoro","Lo ignoro","Lo ignoro","Lo ignoro","Lo ignoro","No se pronuncia","No se pronuncia","No se pronuncia","No se pronuncia"]
[null,"Femenino","Urbana","600 - 1600 ","61 o más","c.-","a.-","c.-","c.-","b.-","a.-","b.-","c.-","b.-","d.-","f.-","Totalmente en desacuerdo","Totalmente de acuerdo","Más bien en desacuerdo","Totalmente de acuerdo","Totalmente de acuerdo","Totalmente de acuerdo","Más bien de acuerdo","Totalmente de acuerdo","Totalmente en desacuerdo","Totalmente de acuerdo","No se pronuncia","No se pronuncia","No se pronuncia","No se pronuncia"]
[null,"Femenino","Urbana","160<","61 o más","c.-","c.-","c.-","b.-","a.-","c.-","d.-","b.-","a.-","d.-","f.-","Totalmente en desacuerdo","Totalmente en desacuerdo","Totalmente en desacuerdo","Totalmente en desacuerdo","Totalmente de acuerdo","Totalmente en desacuerdo","Totalmente de acuerdo","Totalmente de acuerdo","Totalmente de acuerdo","Totalmente de acuerdo","Totalmente en desacuerdo","Más bien de acuerdo","Totalmente en desacuerdo","Más bien de acuerdo"]
[null,"Masculino","Urbana","400 - 500 ","61 o más","c.-","c.-","c.-","b.-","a.-","d.-","e.-","b.-","a.-","d.-","f.-","Más bien en desacuerdo","Totalmente en desacuerdo","Totalmente en desacuerdo","Totalmente en desacuerdo","Totalmente de acuerdo","Totalmente en desacuerdo","Totalmente de acuerdo","Totalmente de acuerdo","Totalmente de acuerdo","Totalmente de acuerdo","Totalmente en desacuerdo","Más bien de acuerdo","Totalmente en desacuerdo","Más bien de acuerdo"]
[null,"Femenino","Urbana","400 - 500 ","61 o más","c.-","b.-","b.-","a.-","a.-","c.-","d.-","b.-","a.-","c.-","e.-","Totalmente de acuerdo","Más bien de acuerdo","Más bien en desacuerdo","Totalmente en desacuerdo","Totalmente de acuerdo","Totalmente de acuerdo","Totalmente de acuerdo","Totalmente de acuerdo","Totalmente de acuerdo","Totalmente de acuerdo","Totalmente en desacuerdo","Totalmente de acuerdo","Más bien en desacuerdo","Totalmente de acuerdo"]
[null,"Femenino","Mixta","160<","61 o más","f.-","e.-","b.-","b.-","a.-","a.-","e.-","b.-","a.-","a.-","f.-","Más bien de acuerdo","Más bien de acuerdo","Más bien de acuerdo","Lo ignoro","Más bien en desacuerdo","Más bien de acuerdo","Totalmente de acuerdo","Más bien de acuerdo","Más bien de acuerdo","Más bien de acuerdo","Más bien de acuerdo","Más bien de acuerdo","Más bien en desacuerdo","Más bien de acuerdo"]
[null,"Femenino","Urbana","160<","61 o más","c.-","a.-","d.-","c.-","b.-","a.-","e.-","b.-","b.-","c.-","c.-","Lo ignoro","Lo ignoro","Lo ignoro","Lo ignoro","Lo ignoro","Lo ignoro","Lo ignoro","Lo ignoro","Lo ignoro","Lo ignoro","No se pronuncia","No se pronuncia","No se pronuncia","No se pronuncia"]
[null,"Masculino","Urbana","200 - 300","61 o más","b.-","c.-","c.-","a.-","b.-","a.-","d.-","a.-","b.-","b.-","d.-","Más bien en desacuerdo","Totalmente en desacuerdo","Totalmente en desacuerdo","Totalmente en desacuerdo","Lo ignoro","Totalmente de acuerdo","Más bien en desacuerdo","Más bien en desacuerdo","Totalmente de acuerdo","Totalmente de acuerdo","Totalmente de acuerdo","Más bien en desacuerdo","Totalmente en desacuerdo","Totalmente de acuerdo"]
[null,"Masculino","Urbana","200 - 300","61 o más","d.-","a.-","b.-","b.-","b.-","a.-","e.-","b.-","c.-","b.-","c.-","Lo ignoro","Lo ignoro","Lo ignoro","Lo ignoro","Lo ignoro","Lo ignoro","Totalmente de acuerdo","Lo ignoro","Lo ignoro","Lo ignoro","No se pronuncia","Totalmente de acuerdo","No se pronuncia","No se pronuncia"]
[null,"Femenino","Rural","200 - 300","61 o más","c.-","d.-","b.-","a.-","c.-","c.-","e.-","c.-","c.-","d.-","e.-","Más bien en desacuerdo","Más bien de acuerdo","Más bien en desacuerdo","Más bien en desacuerdo","Más bien en desacuerdo","Más bien de acuerdo","Lo ignoro","Más bien de acuerdo","Más bien en desacuerdo","Más bien de acuerdo","Totalmente en desacuerdo","Más bien en desacuerdo","Más bien en desacuerdo","Totalmente de acuerdo"]
[null,"Femenino","Urbana","200 - 300","61 o más","d.-","d.-","b.-","b.-","a.-","a.-","c.-","b.-","a.-","b.-","e.-","Más bien de acuerdo","Lo ignoro","Más bien de acuerdo","Lo ignoro","Totalmente de acuerdo","Totalmente de acuerdo","Más bien en desacuerdo","Más bien de acuerdo","Más bien en desacuerdo","Totalmente de acuerdo","Más bien de acuerdo","Más bien de acuerdo","No se pronuncia","Totalmente de acuerdo"]
[null,"Femenino","Urbana","400 - 500 ","61 o más","b.-","b.-","c.-","b.-","b.-","e.-","c.-","c.-","b.-","d.-","e.-","Lo ignoro","Lo ignoro","Lo ignoro","Lo ignoro","Lo ignoro","Lo ignoro","Lo ignoro","Lo ignoro","Lo ignoro","Lo ignoro","No se pronuncia","No se pronuncia","No se pronuncia","No se pronuncia"]
[null,"Femenino","Urbana","400 - 500 ","61 o más","d.-","e.-","b.-","a.-","a.-","a.-","b.-","a.-","a.-","a.-","e.-","Totalmente de acuerdo","Totalmente de acuerdo","Totalmente en desacuerdo","Totalmente en desacuerdo","Totalmente en desacuerdo","Totalmente de acuerdo","Totalmente en desacuerdo","Totalmente en desacuerdo","Totalmente en desacuerdo","Totalmente de acuerdo","Totalmente en desacuerdo","Totalmente de acuerdo","Totalmente de acuerdo","Totalmente de acuerdo"]
[null,"Masculino","Urbana","200 - 300","61 o más","c.-","b.-","a.-","d.-","b.-","a.-","b.-","c.-","b.-","b.-","c.-","Lo ignoro","Lo ignoro","Lo ignoro","Lo ignoro","Lo ignoro","Lo ignoro","Lo ignoro","Lo ignoro","Lo ignoro","Lo ignoro","No se pronuncia","No se pronuncia","No se pronuncia","No se pronuncia"]
[null,"Femenino","Urbana","200 - 300","61 o más","d.-","a.-","c.-","a.-","b.-","a.-","e.-","a.-","c.-","d.-","e.-","Totalmente de acuerdo","Más bien en desacuerdo","Totalmente de acuerdo","Totalmente en desacuerdo","Más bien en desacuerdo","Totalmente de acuerdo","Totalmente de acuerdo","Más bien de acuerdo","Totalmente de acuerdo","Totalmente de acuerdo","Totalmente de acuerdo","Totalmente de acuerdo","Totalmente de acuerdo","Más bien de acuerdo"]
[null,"Femenino","Urbana","200 - 300","61 o más","c.-","a.-","b.-","b.-","a.-","e.-","c.-","b.-","b.-","d.-","c.-","Más bien de acuerdo","Totalmente de acuerdo","Más bien de acuerdo","Más bien en desacuerdo","Más bien de acuerdo","Totalmente de acuerdo","Más bien en desacuerdo","Más bien en desacuerdo","Más bien en desacuerdo","Más bien de acuerdo","Más bien de acuerdo","Más bien en desacuerdo","Más bien de acuerdo","Más bien de acuerdo"]
[null,"Femenino","Urbana","400 - 500 ","61 o más","c.-","e.-","b.-","b.-","a.-","e.-","c.-","c.-","a.-","d.-","c.-","Más bien de acuerdo","Lo ignoro","Lo ignoro","Lo ignoro","Lo ignoro","Lo ignoro","Lo ignoro","Lo ignoro","Lo ignoro","Lo ignoro","No se pronuncia","No se pronuncia","No se pronuncia","No se pronuncia"]
[null,"Femenino","Urbana","600 - 1600 ","61 o más","d.-","e.-","b.-","c.-","b.-","e.-","c.-","b.-","b.-","c.-","c.-","Más bien de acuerdo","Totalmente en desacuerdo","Totalmente en desacuerdo","Totalmente en desacuerdo","Más bien de acuerdo","Totalmente de acuerdo","Más bien en desacuerdo","Más bien en desacuerdo","Totalmente en desacuerdo","Totalmente de acuerdo","Totalmente en desacuerdo","Totalmente de acuerdo","Totalmente de acuerdo","Totalmente de acuerdo"]
[null,"Femenino","Urbana","400 - 500 ","61 o más","c.-","b.-","b.-","b.-","a.-","e.-","c.-","a.-","b.-","d.-","b.-","Totalmente en desacuerdo","Totalmente en desacuerdo","Totalmente en desacuerdo","Totalmente en desacuerdo","Más bien en desacuerdo","Totalmente de acuerdo","Totalmente de acuerdo","Totalmente de acuerdo","Lo ignoro","Totalmente en desacuerdo","Totalmente en desacuerdo","Más bien de acuerdo","Totalmente en desacuerdo","Totalmente de acuerdo"]
[null,"Masculino","Urbana","400 - 500 ","61 o más","e.-","a.-","c.-","c.-","c.-","c.-","e.-","b.-","c.-","d.-","b.-","Más bien de acuerdo","Más bien de acuerdo","Más bien de acuerdo","Lo ignoro","Más bien en desacuerdo","Totalmente de acuerdo","Más bien de acuerdo","Totalmente de acuerdo","Más bien de acuerdo","Totalmente de acuerdo","Totalmente en desacuerdo","Más bien de acuerdo","Totalmente en desacuerdo","Totalmente de acuerdo"]
[null,"Femenino","Urbana","200 - 300","61 o más","c.-","c.-","c.-","b.-","c.-","a.-","d.-","b.-","a.-","c.-","b.-","Más bien en desacuerdo","Totalmente en desacuerdo","Totalmente en desacuerdo","Totalmente en desacuerdo","Lo ignoro","Más bien en desacuerdo","Totalmente de acuerdo","Totalmente en desacuerdo","Más bien en desacuerdo","Totalmente de acuerdo","Totalmente en desacuerdo","Totalmente de acuerdo","Totalmente en desacuerdo","Totalmente de acuerdo"]
[null,"Masculino","Urbana","200 - 300","61 o más","d.-","a.-","c.-","c.-","c.-","a.-","e.-","d.-","c.-","b.-","c.-","Totalmente en desacuerdo","Totalmente en desacuerdo","Totalmente en desacuerdo","Totalmente en desacuerdo","Totalmente en desacuerdo","Totalmente de acuerdo","Más bien en desacuerdo","Más bien de acuerdo","Totalmente en desacuerdo","Totalmente de acuerdo","Totalmente en desacuerdo","Totalmente de acuerdo","Totalmente en desacuerdo","Totalmente de acuerdo"]
[null,"Femenino","Mixta","160<","61 o más","d.-","a.-","c.-","a.-","c.-","e.-","c.-","d.-","c.-","d.-","d.-","Más bien de acuerdo","Totalmente de acuerdo","Totalmente de acuerdo","Totalmente en desacuerdo","Totalmente de acuerdo","Totalmente de acuerdo","Más bien de acuerdo","Totalmente de acuerdo","Totalmente de acuerdo","Totalmente de acuerdo","Totalmente de acuerdo","Totalmente de acuerdo","Totalmente de acuerdo","Más bien de acuerdo"]
[null,"Femenino","Urbana","400 - 500 ","61 o más","d.-","e.-","c.-","a.-","a.-","c.-","e.-","a.-","b.-","d.-","e.-","Totalmente de acuerdo","Totalmente en desacuerdo","Totalmente en desacuerdo","Lo ignoro","Totalmente en desacuerdo","Totalmente de acuerdo","Totalmente de acuerdo","Totalmente de acuerdo","Totalmente en desacuerdo","Totalmente de acuerdo","Totalmente en desacuerdo","Totalmente de acuerdo","Totalmente de acuerdo","Totalmente de acuerdo"]
[null,"Femenino","Urbana","200 - 300","61 o más","f.-","e.-","c.-","b.-","a.-","e.-","c.-","d.-","b.-","c.-","d.-","Lo ignoro","Más bien de acuerdo","Más bien de acuerdo","Totalmente en desacuerdo","Lo ignoro","Totalmente de acuerdo","Lo ignoro","Lo ignoro","Lo ignoro","Totalmente de acuerdo","No se pronuncia","No se pronuncia","Totalmente de acuerdo","Totalmente de acuerdo"]
[null,"Masculino","Urbana","200 - 300","61 o más","c.-","b.-","c.-","b.-","b.-","d.-","e.-","c.-","b.-","d.-","e.-","Más bien de acuerdo","Totalmente en desacuerdo","Más bien en desacuerdo","Más bien en desacuerdo","Totalmente en desacuerdo","Totalmente de acuerdo","Totalmente de acuerdo","Más bien de acuerdo","Totalmente de acuerdo","Totalmente de acuerdo","Totalmente de acuerdo","Más bien de acuerdo","Totalmente en desacuerdo","Totalmente de acuerdo"]
[null,"Femenino","Urbana","400 - 500 ","61 o más","c.-","a.-","a.-","a.-","b.-","c.-","d.-","c.-","b.-","d.-","e.-","Lo ignoro","Lo ignoro","Lo ignoro","Lo ignoro","Lo ignoro","Lo ignoro","Lo ignoro","Lo ignoro","Lo ignoro","Lo ignoro","No se pronuncia","No se pronuncia","No se pronuncia","No se pronuncia"]
[null,"Femenino","Urbana","600 - 1600 ","51 - 60","c.-","c.-","c.-","c.-","a.-","c.-","e.-","b.-","a.-","d.-","b.-","Más bien de acuerdo","Más bien en desacuerdo","Totalmente en desacuerdo","Más bien de acuerdo","Más bien de acuerdo","Más bien de acuerdo","Más bien en desacuerdo","Más bien en desacuerdo","Más bien en desacuerdo","Más bien de acuerdo","Más bien de acuerdo","Más bien de acuerdo","Más bien en desacuerdo","Más bien en desacuerdo"]
[null,"Femenino","Rural","400 - 500 ","51 - 60","c.-","b.-","d.-","d.-","c.-","b.-","e.-","d.-","c.-","d.-","b.-","Totalmente en desacuerdo","Más bien de acuerdo","Totalmente en desacuerdo","Totalmente en desacuerdo","Más bien en desacuerdo","Totalmente en desacuerdo","Totalmente en desacuerdo","Totalmente en desacuerdo","Más bien de acuerdo","Más bien de acuerdo","Más bien de acuerdo","Más bien de acuerdo","Totalmente en desacuerdo","Más bien de acuerdo"]
[null,"Masculino","Urbana","400 - 500 ","51 - 60","c.-","b.-","c.-","b.-","a.-","b.-","c.-","b.-","a.-","c.-","b.-","Totalmente de acuerdo","Más bien de acuerdo","Más bien en desacuerdo","Más bien en desacuerdo","Más bien en desacuerdo","Más bien en desacuerdo","Totalmente en desacuerdo","Totalmente en desacuerdo","Totalmente en desacuerdo","Totalmente de acuerdo","Más bien en desacuerdo","Totalmente de acuerdo","Más bien de acuerdo","Totalmente de acuerdo"]
[null,"Masculino","Urbana","200 - 300","51 - 60","b.-","b.-","c.-","b.-","a.-","a.-","b.-","b.-","b.-","d.-","a.-","Totalmente de acuerdo","Más bien en desacuerdo","Totalmente en desacuerdo","Totalmente en desacuerdo","Totalmente en desacuerdo","Totalmente de acuerdo","Totalmente en desacuerdo","Totalmente de acuerdo","Totalmente en desacuerdo","Totalmente de acuerdo","Totalmente en desacuerdo","Totalmente de acuerdo","Totalmente en desacuerdo","Totalmente de acuerdo"]
[null,"Femenino","Urbana","600 - 1600 ","51 - 60","d.-","a.-","b.-","d.-","b.-","a.-","e.-","c.-","c.-","d.-","b.-","Más bien de acuerdo","Totalmente en desacuerdo","Totalmente en desacuerdo","Totalmente en desacuerdo","Más bien de acuerdo","Totalmente de acuerdo","Más bien en desacuerdo","Totalmente de acuerdo","Más bien en desacuerdo","Totalmente de acuerdo","Totalmente en desacuerdo","Más bien en desacuerdo","Más bien en desacuerdo","Totalmente de acuerdo"]
[null,"Femenino","Urbana",">1700","51 - 60","c.-","b.-","c.-","c.-","b.-","b.-","c.-","c.-","b.-","d.-","b.-","Totalmente en desacuerdo","Más bien de acuerdo","Más bien en desacuerdo","Totalmente en desacuerdo","Más bien en desacuerdo","Más bien en desacuerdo","Más bien en desacuerdo","Más bien en desacuerdo","Más bien en desacuerdo","Totalmente de acuerdo","Más bien de acuerdo","Totalmente de acuerdo","Totalmente en desacuerdo","Más bien en desacuerdo"]
[null,"Femenino","Urbana","400 - 500 ","51 - 60","b.-","a.-","b.-","a.-","a.-","d.-","e.-","a.-","b.-","d.-","e.-","Más bien de acuerdo","Más bien en desacuerdo","Más bien en desacuerdo","Totalmente en desacuerdo","Más bien de acuerdo","Totalmente en desacuerdo","Totalmente en desacuerdo","Totalmente en desacuerdo","Totalmente de acuerdo","Totalmente de acuerdo","Totalmente de acuerdo","Más bien de acuerdo","Más bien de acuerdo","Totalmente de acuerdo"]
[null,"Masculino","Urbana","160<","51 - 60","e.-","c.-","b.-","b.-","c.-","c.-","e.-","b.-","c.-","d.-","c.-","Más bien en desacuerdo","Más bien en desacuerdo","Más bien en desacuerdo","Más bien en desacuerdo","Más bien en desacuerdo","Totalmente de acuerdo","Lo ignoro","Más bien en desacuerdo","Más bien en desacuerdo","Totalmente de acuerdo","No se pronuncia","No se pronuncia","No se pronuncia","No se pronuncia"]
[null,"Femenino","Urbana","160<","51 - 60","e.-","a.-","b.-","a.-","a.-","e.-","c.-","a.-","b.-","d.-","e.-","Totalmente de acuerdo","Totalmente de acuerdo","Totalmente de acuerdo","Totalmente de acuerdo","Totalmente de acuerdo","Totalmente de acuerdo","Totalmente de acuerdo","Totalmente de acuerdo","Totalmente de acuerdo","Totalmente de acuerdo","Totalmente de acuerdo","Totalmente de acuerdo","Totalmente de acuerdo","Totalmente de acuerdo"]
[null,"Femenino","Mixta","160<","51 - 60","a.-","d.-","a.-","a.-","a.-","a.-","e.-","a.-","a.-","c.-","d.-","Totalmente de acuerdo","Más bien en desacuerdo","Totalmente en desacuerdo","Totalmente en desacuerdo","Más bien de acuerdo","Lo ignoro","Más bien de acuerdo","Totalmente en desacuerdo","Más bien de acuerdo","Totalmente de acuerdo","No se pronuncia","No se pronuncia","No se pronuncia","No se pronuncia"]
[null,"Femenino","Urbana","200 - 300","41 - 50","d.-","a.-","c.-","b.-","b.-","a.-","e.-","b.-","b.-","d.-","f.-","Lo ignoro","Lo ignoro","Lo ignoro","Lo ignoro","Lo ignoro","Lo ignoro","Lo ignoro","Lo ignoro","Lo ignoro","Lo ignoro","No se pronuncia","No se pronuncia","No se pronuncia","No se pronuncia"]
[null,"Femenino","Urbana","160<","41 - 50","d.-","a.-","b.-","b.-","a.-","a.-","e.-","b.-","b.-","d.-","e.-","Lo ignoro","Lo ignoro","Lo ignoro","Lo ignoro","Lo ignoro","Lo ignoro","Lo ignoro","Lo ignoro","Lo ignoro","Lo ignoro","No se pronuncia","No se pronuncia","No se pronuncia","No se pronuncia"]
[null,"Femenino","Urbana","160<","41 - 50","b.-","a.-","b.-","d.-","c.-","c.-","e.-","d.-","c.-","d.-","e.-","Más bien en desacuerdo","Lo ignoro","Lo ignoro","Lo ignoro","Lo ignoro","Lo ignoro","Lo ignoro","Lo ignoro","Lo ignoro","Lo ignoro","No se pronuncia","No se pronuncia","No se pronuncia","No se pronuncia"]
[null,"Femenino","Urbana","160<","41 - 50","b.-","a.-","a.-","a.-","c.-","a.-","c.-","a.-","c.-","d.-","c.-","Lo ignoro","Lo ignoro","Lo ignoro","Lo ignoro","Lo ignoro","Lo ignoro","Lo ignoro","Lo ignoro","Lo ignoro","Lo ignoro","No se pronuncia","No se pronuncia","No se pronuncia","No se pronuncia"]
[null,"Femenino","Urbana","160<","41 - 50","c.-","b.-","a.-","c.-","a.-","e.-","c.-","a.-","b.-","d.-","e.-","Totalmente de acuerdo","Lo ignoro","Lo ignoro","Lo ignoro","Lo ignoro","Lo ignoro","Lo ignoro","Lo ignoro","Lo ignoro","Lo ignoro","No se pronuncia","No se pronuncia","No se pronuncia","No se pronuncia"]
[null,"Femenino","Urbana","160<","41 - 50","b.-","a.-","b.-","a.-","a.-","e.-","c.-","a.-","c.-","d.-","d.-","Lo ignoro","Lo ignoro","Lo ignoro","Lo ignoro","Lo ignoro","Lo ignoro","Lo ignoro","Lo ignoro","Lo ignoro","Lo ignoro","No se pronuncia","No se pronuncia","No se pronuncia","Totalmente en desacuerdo"]
[null,"Femenino","Urbana","160<","41 - 50","d.-","a.-","b.-","c.-","c.-","d.-","e.-","c.-","c.-","d.-","e.-","Lo ignoro","Lo ignoro","Lo ignoro","Lo ignoro","Lo ignoro","Lo ignoro","Lo ignoro","Lo ignoro","Lo ignoro","Lo ignoro","No se pronuncia","No se pronuncia","No se pronuncia","No se pronuncia"]
[null,"Femenino","Urbana","160<","41 - 50","d.-","a.-","c.-","c.-","b.-","a.-","e.-","b.-","b.-","d.-","e.-","Lo ignoro","Lo ignoro","Lo ignoro","Lo ignoro","Lo ignoro","Lo ignoro","Lo ignoro","Lo ignoro","Lo ignoro","Lo ignoro","No se pronuncia","No se pronuncia","No se pronuncia","No se pronuncia"]
[null,"Femenino","Urbana","200 - 300","41 - 50","d.-","e.-","c.-","a.-","c.-","c.-","e.-","c.-","b.-","c.-","e.-","Lo ignoro","Lo ignoro","Lo ignoro","Lo ignoro","Lo ignoro","Lo ignoro","Lo ignoro","Lo ignoro","Lo ignoro","Lo ignoro","No se pronuncia","No se pronuncia","No se pronuncia","No se pronuncia"]
[null,"Femenino","Urbana","400 - 500 ","41 - 50","c.-","b.-","b.-","b.-","b.-","a.-","e.-","a.-","a.-","a.-","c.-","Totalmente de acuerdo","Totalmente en desacuerdo","Más bien en desacuerdo","Totalmente de acuerdo","Más bien de acuerdo","Totalmente de acuerdo","Totalmente en desacuerdo","Lo ignoro","Totalmente de acuerdo","Totalmente de acuerdo","Totalmente de acuerdo","Más bien de acuerdo","Totalmente de acuerdo","Más bien de acuerdo"]
[null,"Femenino","Urbana","200 - 300","41 - 50","f.-","c.-","b.-","a.-","c.-","e.-","c.-","b.-","b.-","c.-","f.-","Lo ignoro","Lo ignoro","Lo ignoro","Lo ignoro","Lo ignoro","Lo ignoro","Lo ignoro","Lo ignoro","Lo ignoro","Lo ignoro","Totalmente en desacuerdo","Más bien de acuerdo","Totalmente en desacuerdo","Más bien de acuerdo"]
[null,"Femenino","Urbana","160<","41 - 50","b.-","b.-","b.-","b.-","b.-","a.-","b.-","a.-","a.-","d.-","c.-","Lo ignoro","Lo ignoro","Lo ignoro","Lo ignoro","Lo ignoro","Lo ignoro","Lo ignoro","Lo ignoro","Lo ignoro","Lo ignoro","No se pronuncia","No se pronuncia","No se pronuncia","No se pronuncia"]
[null,"Femenino","Mixta","200 - 300","41 - 50","a.-","a.-","c.-","a.-","d.-","a.-","e.-","a.-","b.-","d.-","e.-","Lo ignoro","Lo ignoro","Lo ignoro","Lo ignoro","Lo ignoro","Lo ignoro","Lo ignoro","Lo ignoro","Lo ignoro","Lo ignoro","No se pronuncia","No se pronuncia","No se pronuncia","No se pronuncia"]
[null,"Femenino","Urbana","200 - 300","41 - 50","d.-","a.-","b.-","a.-","a.-","c.-","d.-","b.-","a.-","d.-","f.-","Totalmente de acuerdo","Lo ignoro","Más bien en desacuerdo","Lo ignoro","Lo ignoro","Lo ignoro","Lo ignoro","Lo ignoro","Lo ignoro","Totalmente en desacuerdo","No se pronuncia","No se pronuncia","No se pronuncia","No se pronuncia"]
[null,"Femenino","Mixta","400 - 500 ","41 - 50","d.-","a.-","c.-","b.-","a.-","d.-","e.-","b.-","a.-","b.-","a.-","Lo ignoro","Lo ignoro","Lo ignoro","Lo ignoro","Lo ignoro","Lo ignoro","Lo ignoro","Lo ignoro","Lo ignoro","Lo ignoro","No se pronuncia","No se pronuncia","No se pronuncia","No se pronuncia"]
[null,"Femenino","Urbana","200 - 300","41 - 50","d.-","c.-","c.-","a.-","b.-","a.-","e.-","a.-","b.-","d.-","b.-","Totalmente en desacuerdo","Totalmente en desacuerdo","Totalmente en desacuerdo","Más bien en desacuerdo","Lo ignoro","Más bien en desacuerdo","Totalmente de acuerdo","Totalmente de acuerdo","Totalmente de acuerdo","Totalmente de acuerdo","No se pronuncia","No se pronuncia","No se pronuncia","No se pronuncia"]
[null,"Femenino","Mixta","200 - 300","41 - 50","c.-","c.-","d.-","a.-","c.-","c.-","e.-","a.-","a.-","a.-","a.-"]
[null,"Femenino","Urbana","160<","41 - 50","d.-","a.-","b.-","b.-","a.-","a.-","e.-","b.-","b.-","d.-","f.-"]
[null,"Femenino","Urbana","400 - 500 ","41 - 50","c.-","a.-","c.-","b.-","a.-","c.-","e.-","b.-","c.-","d.-","e.-","Más bien en desacuerdo","Totalmente en desacuerdo","Totalmente en desacuerdo","Totalmente en desacuerdo","Totalmente en desacuerdo","Más bien de acuerdo","Más bien en desacuerdo","Totalmente en desacuerdo","Más bien de acuerdo","Totalmente de acuerdo","Totalmente en desacuerdo","Más bien de acuerdo","Totalmente en desacuerdo","Más bien de acuerdo"]
[null,"Femenino","Mixta","160<","41 - 50","b.-","e.-","a.-","a.-","a.-","c.-","d.-","a.-","a.-","d.-","b.-","Totalmente en desacuerdo","Totalmente en desacuerdo","Totalmente en desacuerdo","Totalmente de acuerdo","Totalmente de acuerdo","Totalmente de acuerdo","Totalmente de acuerdo","Totalmente de acuerdo","Más bien en desacuerdo","Más bien en desacuerdo","Más bien en desacuerdo","Totalmente de acuerdo","Totalmente en desacuerdo","Totalmente en desacuerdo"]
[null,"Femenino","Mixta","200 - 300","41 - 50","c.-","a.-","a.-","a.-","c.-","a.-","c.-","a.-","c.-","d.-","b.-","Totalmente de acuerdo","Más bien en desacuerdo","Más bien en desacuerdo","Totalmente en desacuerdo","Totalmente en desacuerdo","Totalmente en desacuerdo","Totalmente en desacuerdo","Totalmente en desacuerdo","Totalmente en desacuerdo","Más bien de acuerdo","Totalmente de acuerdo","Totalmente de acuerdo","Totalmente de acuerdo","Totalmente de acuerdo"]
[null,"Femenino","Urbana","200 - 300","41 - 50","f.-","a.-","c.-","b.-","b.-","d.-","e.-","b.-","a.-","d.-","e.-","Totalmente de acuerdo","Totalmente en desacuerdo","Totalmente en desacuerdo","Totalmente en desacuerdo","Totalmente de acuerdo","Totalmente de acuerdo","Totalmente de acuerdo","Totalmente de acuerdo","Totalmente de acuerdo","Totalmente de acuerdo","Totalmente en desacuerdo","Totalmente de acuerdo","Más bien en desacuerdo","Totalmente de acuerdo"]
[null,"Femenino","Urbana","160<","41 - 50","b.-","a.-","c.-","b.-","a.-","a.-","e.-","b.-","a.-","d.-","c.-","Totalmente de acuerdo","Más bien de acuerdo","Totalmente de acuerdo","Más bien de acuerdo","Más bien de acuerdo","Totalmente de acuerdo","Más bien de acuerdo","Totalmente de acuerdo","Totalmente de acuerdo","Totalmente de acuerdo","No se pronuncia","No se pronuncia","No se pronuncia","No se pronuncia"]
[null,"Femenino","Urbana","400 - 500 ","41 - 50","c.-","e.-","c.-","c.-","a.-","a.-","b.-","b.-","a.-","d.-","b.-","Totalmente de acuerdo","Más bien de acuerdo","Más bien en desacuerdo","Más bien en desacuerdo","Lo ignoro","Totalmente de acuerdo","Más bien de acuerdo","Más bien de acuerdo","Más bien de acuerdo","Totalmente de acuerdo","Más bien en desacuerdo","Más bien de acuerdo","Más bien de acuerdo","Más bien de acuerdo"]
[null,"Femenino","Urbana","160<","41 - 50","a.-","a.-","b.-","a.-","b.-","a.-","e.-","a.-","b.-","d.-","f.-"]
[null,"Femenino","Urbana","200 - 300","41 - 50","b.-","e.-","b.-","a.-","b.-","e.-","c.-","a.-","b.-","d.-","d.-","Totalmente de acuerdo","Lo ignoro","Más bien en desacuerdo","Lo ignoro","Más bien en desacuerdo","Más bien en desacuerdo","Más bien en desacuerdo","Más bien de acuerdo","Más bien de acuerdo","Totalmente de acuerdo","Más bien en desacuerdo","Totalmente de acuerdo","Totalmente de acuerdo","Totalmente de acuerdo"]
[null,"Femenino","Urbana","200 - 300","41 - 50","d.-","a.-","a.-","a.-","a.-","a.-","e.-","a.-","a.-","d.-","c.-","Totalmente de acuerdo","Totalmente en desacuerdo","Totalmente en desacuerdo","Totalmente en desacuerdo","Lo ignoro","Totalmente de acuerdo","Totalmente de acuerdo","Totalmente en desacuerdo","Totalmente de acuerdo","Totalmente de acuerdo","Totalmente en desacuerdo","Totalmente de acuerdo","Totalmente en desacuerdo","Totalmente de acuerdo"]
[null,"Femenino","Urbana","200 - 300","41 - 50","d.-","c.-","c.-","a.-","a.-","e.-","c.-","b.-","b.-","d.-","e.-","Totalmente en desacuerdo","Totalmente en desacuerdo","Totalmente en desacuerdo","Totalmente en desacuerdo","Más bien en desacuerdo","Totalmente de acuerdo","Totalmente de acuerdo","Más bien de acuerdo","Totalmente de acuerdo","Totalmente de acuerdo","Totalmente de acuerdo","Totalmente de acuerdo","Totalmente de acuerdo","Totalmente de acuerdo"]
[null,"Femenino","Urbana","160<","41 - 50","b.-","c.-","c.-","a.-","b.-","d.-","e.-","b.-","b.-","d.-","c.-","Totalmente de acuerdo","Más bien de acuerdo","Totalmente de acuerdo","Totalmente de acuerdo","Más bien de acuerdo","Totalmente de acuerdo","Más bien de acuerdo","Totalmente de acuerdo","Totalmente de acuerdo","Totalmente de acuerdo","Totalmente de acuerdo","Totalmente de acuerdo","Totalmente de acuerdo","Totalmente de acuerdo"]
[null,"Masculino","Urbana","400 - 500 ","41 - 50","d.-","a.-","c.-","b.-","b.-","d.-","e.-","c.-","c.-","d.-","e.-","Totalmente de acuerdo","Más bien de acuerdo","Más bien en desacuerdo","Más bien en desacuerdo","Totalmente de acuerdo","Más bien de acuerdo","Más bien de acuerdo","Más bien en desacuerdo","Más bien de acuerdo","Más bien de acuerdo","Más bien en desacuerdo","Más bien de acuerdo","Más bien de acuerdo","Más bien de acuerdo"]
[null,"Femenino","Mixta","600 - 1600 ","41 - 50","d.-","d.-","b.-","a.-","a.-","e.-","a.-","a.-","a.-","d.-","c.-","Totalmente de acuerdo","Totalmente de acuerdo","Totalmente en desacuerdo","Totalmente en desacuerdo","Más bien de acuerdo","Más bien de acuerdo","Totalmente de acuerdo","Totalmente de acuerdo","Totalmente de acuerdo","Totalmente de acuerdo","Totalmente en desacuerdo","Totalmente de acuerdo","Más bien de acuerdo","Totalmente de acuerdo"]
[null,"Femenino","Urbana","160<","41 - 50","d.-","a.-","c.-","a.-","c.-","c.-","e.-","b.-","c.-","c.-","f.-","Totalmente en desacuerdo","Totalmente de acuerdo","Totalmente en desacuerdo","Totalmente en desacuerdo","Totalmente de acuerdo","Totalmente de acuerdo","Totalmente de acuerdo","Totalmente de acuerdo","Totalmente de acuerdo","Totalmente de acuerdo","Totalmente de acuerdo","Totalmente de acuerdo","Totalmente de acuerdo","Totalmente de acuerdo"]
[null,"Masculino","Rural","400 - 500 ","41 - 50","b.-","a.-","c.-","d.-","c.-","d.-","c.-","a.-","b.-","a.-","a.-","Totalmente en desacuerdo","Totalmente en desacuerdo","Totalmente en desacuerdo","Totalmente en desacuerdo","Totalmente de acuerdo","Totalmente de acuerdo","Más bien de acuerdo","Más bien de acuerdo","Más bien en desacuerdo","Totalmente de acuerdo","Totalmente en desacuerdo","Totalmente de acuerdo","No se pronuncia","Totalmente de acuerdo"]
[null,"Femenino","Urbana","160<","41 - 50","c.-","a.-","a.-","b.-","a.-","d.-","e.-","a.-","a.-","d.-","c.-","Totalmente de acuerdo","Totalmente de acuerdo","Más bien en desacuerdo","Totalmente en desacuerdo","Más bien de acuerdo","Totalmente de acuerdo","Totalmente de acuerdo","Totalmente de acuerdo","Totalmente de acuerdo","Totalmente de acuerdo","Totalmente de acuerdo","Totalmente de acuerdo","Totalmente de acuerdo","Totalmente de acuerdo"]
[null,"Femenino","Urbana","400 - 500 ","41 - 50","c.-","c.-","d.-","c.-","c.-","e.-","c.-","c.-","c.-","d.-","c.-","Más bien en desacuerdo","Más bien en desacuerdo","Totalmente en desacuerdo","Totalmente en desacuerdo","Más bien en desacuerdo","Más bien en desacuerdo","Más bien en desacuerdo","Más bien en desacuerdo","Más bien en desacuerdo","Totalmente de acuerdo","Totalmente en desacuerdo","Totalmente de acuerdo","Más bien en desacuerdo","Más bien en desacuerdo"]
[null,"Femenino","Urbana","400 - 500 ","41 - 50","b.-","e.-","e.-","a.-","c.-","e.-","d.-","d.-","c.-","d.-","b.-","Lo ignoro","Totalmente en desacuerdo","Totalmente en desacuerdo","Totalmente en desacuerdo","Más bien en desacuerdo","Lo ignoro","Totalmente de acuerdo","Lo ignoro","Lo ignoro","Lo ignoro","No se pronuncia","Más bien en desacuerdo","Totalmente en desacuerdo","Totalmente de acuerdo"]
[null,"Masculino","Urbana","400 - 500 ","41 - 50","a.-","a.-","d.-","c.-","c.-","c.-","e.-","c.-","b.-","d.-","c.-","Más bien en desacuerdo","Más bien de acuerdo","Totalmente en desacuerdo","Totalmente en desacuerdo","Más bien de acuerdo","Más bien en desacuerdo","Más bien en desacuerdo","Más bien de acuerdo","Más bien de acuerdo","Totalmente de acuerdo","Totalmente en desacuerdo","Totalmente de acuerdo","Más bien en desacuerdo","Totalmente de acuerdo"]
[null,"Femenino","Urbana","400 - 500 ","41 - 50","d.-","a.-","b.-","b.-","a.-","e.-","c.-","b.-","a.-","d.-","c.-","Más bien en desacuerdo","Lo ignoro","Totalmente en desacuerdo","Totalmente de acuerdo","Totalmente en desacuerdo","Más bien en desacuerdo","Totalmente de acuerdo","Más bien de acuerdo","Más bien en desacuerdo","Totalmente de acuerdo","Totalmente en desacuerdo","Totalmente de acuerdo","Más bien de acuerdo","Totalmente de acuerdo"]
[null,"Femenino","Urbana","200 - 300","41 - 50","c.-","c.-","b.-","c.-","b.-","c.-","e.-","c.-","c.-","b.-","c.-","Totalmente de acuerdo","Totalmente en desacuerdo","Totalmente en desacuerdo","Totalmente en desacuerdo","Totalmente de acuerdo","Más bien de acuerdo","Totalmente en desacuerdo","Totalmente en desacuerdo","Más bien en desacuerdo","Totalmente de acuerdo","Totalmente en desacuerdo","Totalmente de acuerdo","Totalmente en desacuerdo","Totalmente de acuerdo"]
[null,"Femenino","Urbana","400 - 500 ","41 - 50","b.-","a.-","c.-","b.-","c.-","d.-","e.-","b.-","c.-","d.-","e.-","Más bien en desacuerdo","Más bien en desacuerdo","Totalmente en desacuerdo","Totalmente en desacuerdo","Más bien de acuerdo","Más bien de acuerdo","Totalmente de acuerdo","Más bien de acuerdo","Más bien de acuerdo","Totalmente de acuerdo","Totalmente en desacuerdo","Más bien de acuerdo","Totalmente en desacuerdo","Totalmente de acuerdo"]
[null,"Femenino","Urbana","400 - 500 ","41 - 50","c.-","a.-","c.-","a.-","a.-","e.-","c.-","b.-","a.-","d.-","b.-","Totalmente de acuerdo","Más bien en desacuerdo","Totalmente en desacuerdo","Totalmente en desacuerdo","Totalmente de acuerdo","Totalmente de acuerdo","Totalmente de acuerdo","Totalmente de acuerdo","Más bien de acuerdo","Totalmente de acuerdo","Totalmente en desacuerdo","Totalmente de acuerdo","Más bien de acuerdo","Totalmente de acuerdo"]
[null,"Femenino","Mixta","200 - 300","41 - 50","d.-","b.-","b.-","a.-","b.-","d.-","e.-","b.-","b.-","d.-","b.-","Totalmente de acuerdo","Totalmente en desacuerdo","Totalmente en desacuerdo","Totalmente en desacuerdo","Totalmente de acuerdo","Totalmente de acuerdo","Más bien de acuerdo","Más bien de acuerdo","Totalmente de acuerdo","Totalmente de acuerdo","Más bien en desacuerdo","Más bien en desacuerdo","Totalmente en desacuerdo","Totalmente de acuerdo"]
[null,"Femenino","Urbana","160<","41 - 50","e.-","c.-","b.-","c.-","b.-","c.-","e.-","c.-","b.-","d.-","e.-","Totalmente en desacuerdo","Totalmente en desacuerdo","Totalmente en desacuerdo","Totalmente en desacuerdo","Más bien en desacuerdo","Totalmente de acuerdo","Totalmente de acuerdo","Más bien de acuerdo","Más bien de acuerdo","Totalmente de acuerdo","Totalmente en desacuerdo","Más bien de acuerdo","Totalmente en desacuerdo","Totalmente de acuerdo"]
[null,"Masculino","Urbana","400 - 500 ","41 - 50","b.-","a.-","c.-","a.-","c.-","a.-","e.-","a.-","b.-","d.-","e.-","Totalmente en desacuerdo","Totalmente de acuerdo","Totalmente en desacuerdo","Totalmente en desacuerdo","Más bien en desacuerdo","Totalmente de acuerdo","Totalmente de acuerdo","Totalmente en desacuerdo","Más bien en desacuerdo","Totalmente de acuerdo","Totalmente en desacuerdo","Totalmente de acuerdo","Totalmente en desacuerdo","Totalmente de acuerdo"]
[null,"Femenino","Urbana","200 - 300","41 - 50","e.-","a.-","c.-","a.-","a.-","a.-","e.-","a.-","c.-","d.-","c.-","Más bien en desacuerdo","Totalmente en desacuerdo","Totalmente en desacuerdo","Totalmente en desacuerdo","Lo ignoro","Más bien en desacuerdo","Más bien en desacuerdo","Totalmente de acuerdo","Totalmente en desacuerdo","Totalmente de acuerdo","No se pronuncia","No se pronuncia","No se pronuncia","Totalmente de acuerdo"]
[null,"Masculino","Urbana","200 - 300","41 - 50","e.-","a.-","c.-","a.-","b.-","e.-","c.-","b.-","b.-","c.-","c.-","Más bien en desacuerdo","Totalmente en desacuerdo","Totalmente en desacuerdo","Totalmente en desacuerdo","Totalmente en desacuerdo","Totalmente de acuerdo","Totalmente de acuerdo","Totalmente de acuerdo","Totalmente en desacuerdo","Totalmente de acuerdo","Totalmente en desacuerdo","Totalmente de acuerdo","Totalmente en desacuerdo","Totalmente de acuerdo"]
[null,"Femenino","Urbana","200 - 300","41 - 50","d.-","e.-","a.-","a.-","c.-","c.-","d.-","a.-","c.-","d.-","c.-","Más bien de acuerdo","Más bien en desacuerdo","Totalmente en desacuerdo","Más bien de acuerdo","Totalmente de acuerdo","Totalmente de acuerdo","Totalmente de acuerdo","Totalmente de acuerdo","Más bien de acuerdo","Más bien de acuerdo","Más bien de acuerdo","Más bien de acuerdo","Más bien de acuerdo","Más bien de acuerdo"]
[null,"Femenino","Urbana","400 - 500 ","41 - 50","d.-","a.-","d.-","c.-","c.-","c.-","e.-","c.-","c.-","d.-","b.-","Lo ignoro","Más bien en desacuerdo","Totalmente en desacuerdo","Más bien en desacuerdo","Más bien en desacuerdo","Totalmente de acuerdo","Más bien de acuerdo","Más bien de acuerdo","Totalmente de acuerdo","Totalmente de acuerdo","Totalmente de acuerdo","Totalmente de acuerdo","Más bien de acuerdo","Totalmente de acuerdo"]
[null,"Femenino","Urbana","160<","41 - 50","c.-","c.-","e.-","c.-","b.-","a.-","e.-","c.-","b.-","d.-","c.-","Más bien de acuerdo","Totalmente en desacuerdo","Totalmente en desacuerdo","Totalmente en desacuerdo","Totalmente de acuerdo","Totalmente de acuerdo","Totalmente de acuerdo","Totalmente de acuerdo","Totalmente de acuerdo","Totalmente de acuerdo","Totalmente en desacuerdo","Más bien de acuerdo","Totalmente de acuerdo","Totalmente de acuerdo"]
[null,"Femenino","Urbana","200 - 300","41 - 50","d.-","a.-","c.-","c.-","c.-","e.-","c.-","b.-","c.-","c.-","c.-","Totalmente en desacuerdo","Totalmente de acuerdo","Más bien de acuerdo","Totalmente de acuerdo","Totalmente en desacuerdo","Más bien de acuerdo","Más bien de acuerdo","Más bien de acuerdo","Más bien en desacuerdo","Totalmente de acuerdo","Totalmente en desacuerdo","Totalmente de acuerdo","Más bien en desacuerdo","Más bien de acuerdo"]
[null,"Femenino","Urbana","200 - 300","41 - 50","c.-","e.-","a.-","b.-","a.-","a.-","e.-","c.-","b.-","d.-","c.-","Más bien en desacuerdo","Más bien en desacuerdo","Más bien en desacuerdo","Más bien en desacuerdo","Más bien de acuerdo","Totalmente de acuerdo","Más bien en desacuerdo","Más bien de acuerdo","Totalmente de acuerdo","Totalmente de acuerdo","Más bien en desacuerdo","Totalmente de acuerdo","Totalmente de acuerdo","Totalmente de acuerdo"]
[null,"Masculino","Urbana","200 - 300","41 - 50","b.-","e.-","b.-","a.-","c.-","a.-","c.-","b.-","c.-","d.-","d.-"]
[null,"Femenino","Urbana","200 - 300","41 - 50","c.-","a.-","b.-","a.-","c.-","a.-","d.-","a.-","b.-","c.-","a.-"]
[null,"Masculino","Urbana","200 - 300","41 - 50","e.-","b.-","d.-","c.-","c.-","a.-","e.-","c.-","c.-","c.-","c.-"]
[null,"Femenino","Mixta","160<","41 - 50","f.-","c.-","b.-","b.-","b.-","b.-","c.-","d.-","b.-","d.-","c.-"]
[null,"Femenino","Rural","200 - 300","41 - 50","a.-","b.-","b.-","b.-","c.-","a.-","e.-","b.-","c.-","d.-","f.-"]
[null,"Femenino","Mixta","400 - 500 ","41 - 50","d.-","c.-","c.-","d.-","a.-","e.-","c.-","b.-","a.-","d.-","e.-","Totalmente en desacuerdo","Totalmente en desacuerdo","Más bien en desacuerdo","Lo ignoro","Lo ignoro","Totalmente de acuerdo","Más bien de acuerdo","Lo ignoro","Totalmente en desacuerdo","Totalmente de acuerdo","Totalmente en desacuerdo","Totalmente de acuerdo","Más bien en desacuerdo","Totalmente de acuerdo"]
[null,"Femenino","Urbana","400 - 500 ","41 - 50","d.-","a.-","c.-","c.-","b.-","c.-","e.-","b.-","b.-","d.-","c.-","Más bien de acuerdo","Totalmente en desacuerdo","Totalmente en desacuerdo","Totalmente en desacuerdo","Totalmente en desacuerdo","Totalmente de acuerdo","Totalmente de acuerdo","Totalmente en desacuerdo","Más bien en desacuerdo","Totalmente de acuerdo","Totalmente en desacuerdo","Totalmente de acuerdo","Totalmente en desacuerdo","Totalmente de acuerdo"]
[null,"Femenino","Urbana","160<","41 - 50","b.-","a.-","a.-","a.-","a.-","c.-","e.-","c.-","a.-","c.-","c.-","Totalmente de acuerdo","Más bien en desacuerdo","Más bien en desacuerdo","Más bien de acuerdo","Totalmente en desacuerdo","Totalmente de acuerdo","Totalmente de acuerdo","Totalmente de acuerdo","Lo ignoro","Totalmente de acuerdo","Más bien en desacuerdo","Totalmente de acuerdo","Totalmente de acuerdo","Totalmente de acuerdo"]
[null,"Masculino","Urbana","400 - 500 ","41 - 50","c.-","a.-","c.-","c.-","c.-","a.-","d.-","c.-","c.-","d.-","f.-"]
[null,"Femenino","Urbana","200 - 300","41 - 50","c.-","e.-","c.-","a.-","b.-","e.-","a.-","c.-","c.-","d.-","b.-"]
[null,"Masculino","Urbana","200 - 300","41 - 50","d.-","a.-","c.-","c.-","d.-","c.-","d.-","c.-","d.-","d.-","e.-","Más bien de acuerdo","Más bien de acuerdo","Más bien de acuerdo","Más bien en desacuerdo","Más bien en desacuerdo","Totalmente en desacuerdo","Más bien en desacuerdo","Lo ignoro","Más bien en desacuerdo","Más bien de acuerdo","Más bien en desacuerdo","Totalmente de acuerdo","Más bien de acuerdo","No se pronuncia"]
[null,"Masculino","Urbana","200 - 300","41 - 50","a.-","c.-","b.-","a.-","a.-","c.-","e.-","b.-","a.-","d.-","c.-"]
[null,"Masculino","Urbana","400 - 500 ","41 - 50","d.-","c.-","c.-","b.-","b.-","c.-","d.-","b.-","b.-","d.-","e.-"]
[null,"Femenino","Urbana","200 - 300","31- 40","c.-","e.-","e.-","b.-","b.-","e.-","a.-","a.-","b.-","d.-","e.-"]
[null,"Femenino","Urbana","200 - 300","31- 40","d.-","a.-","c.-","c.-","b.-","c.-","e.-","d.-","b.-","d.-","b.-"]
[null,"Femenino","Urbana","160<","31- 40","a.-","e.-","e.-","b.-","b.-","b.-","e.-","b.-","b.-","d.-","b.-"]
[null,"Femenino","Urbana","160<","31- 40","e.-","a.-","e.-","b.-","b.-","b.-","e.-","b.-","b.-","d.-","b.-"]
[null,"Femenino","Urbana","400 - 500 ","31- 40","b.-","e.-","b.-","a.-","c.-","e.-","a.-","b.-","c.-","d.-","c.-"]
[null,"Femenino","Rural","200 - 300","31- 40","b.-","e.-","c.-","c.-","a.-","a.-","c.-","b.-","c.-","c.-","e.-"]
[null,"Femenino","Urbana","160<","31- 40","b.-","b.-","c.-","c.-","b.-","d.-","e.-","c.-","b.-","c.-","e.-"]
[null,"Femenino","Urbana","160<","31- 40","c.-","c.-","b.-","a.-","b.-","d.-","e.-","a.-","b.-","d.-","e.-"]
[null,"Femenino","Urbana","200 - 300","31- 40","e.-","a.-","b.-","b.-","a.-","e.-","b.-","a.-","a.-","d.-","f.-"]
[null,"Femenino","Urbana","200 - 300","31- 40","d.-","c.-","b.-","a.-","a.-","c.-","d.-","b.-","a.-","d.-","c.-"]
[null,"Femenino","Urbana","160<","31- 40","c.-","a.-","b.-","b.-","b.-","e.-","a.-","c.-","c.-","d.-","e.-"]
[null,"Femenino","Urbana","400 - 500 ","31- 40","b.-","a.-","c.-","a.-","c.-","c.-","e.-","b.-","c.-","c.-","e.-","Totalmente de acuerdo","Totalmente de acuerdo","Totalmente en desacuerdo","Totalmente en desacuerdo","Lo ignoro","Totalmente de acuerdo","Más bien de acuerdo","Más bien de acuerdo","Lo ignoro","Lo ignoro"]
[null,"Femenino","Urbana","400 - 500 ","31- 40","c.-","b.-","e.-","b.-","c.-","e.-","c.-","d.-","c.-","d.-","e.-","Totalmente en desacuerdo","Más bien en desacuerdo","Más bien de acuerdo","Más bien en desacuerdo","Más bien de acuerdo","Más bien en desacuerdo","Más bien en desacuerdo","Totalmente de acuerdo","Totalmente de acuerdo","Totalmente de acuerdo"]
[null,"Femenino","Urbana","200 - 300","31- 40","d.-","b.-","b.-","a.-","a.-","b.-","e.-","a.-","a.-","d.-","c.-"]
[null,"Femenino","Urbana","160<","31- 40","b.-","b.-","a.-","a.-","a.-","a.-","b.-","a.-","a.-","b.-","a.-","Totalmente de acuerdo","Totalmente de acuerdo","Más bien de acuerdo","Totalmente de acuerdo","Totalmente de acuerdo","Totalmente de acuerdo","Totalmente de acuerdo","Totalmente de acuerdo","Totalmente de acuerdo","Totalmente de acuerdo"]
[null,"Masculino","Urbana","160<","31- 40","b.-","a.-","b.-","b.-","a.-","e.-","d.-","a.-","a.-","d.-","e.-"]
[null,"Femenino","Urbana","160<","31- 40","d.-","e.-","b.-","b.-","a.-","d.-","e.-","b.-","a.-","d.-","e.-"]
[null,"Femenino","Urbana","200 - 300","31- 40","f.-","e.-","b.-","a.-","a.-","c.-","d.-","a.-","a.-","d.-","a.-"]
[null,"Masculino","Mixta","160<","31- 40","d.-","b.-","c.-","c.-","c.-","c.-","d.-","b.-","b.-","d.-","f.-","Más bien en desacuerdo","Totalmente en desacuerdo","Totalmente en desacuerdo","Totalmente de acuerdo","Totalmente de acuerdo","Totalmente de acuerdo","Totalmente de acuerdo","Totalmente de acuerdo","Totalmente de acuerdo","Totalmente de acuerdo","Más bien en desacuerdo","Más bien de acuerdo","Totalmente de acuerdo","Totalmente de acuerdo"]
[null,"Femenino","Urbana","200 - 300","31- 40","c.-","a.-","c.-","c.-","b.-","c.-","e.-","c.-","b.-","d.-","a.-","Totalmente en desacuerdo","Totalmente en desacuerdo","Totalmente en desacuerdo","Totalmente en desacuerdo","Lo ignoro","Totalmente de acuerdo","Totalmente de acuerdo","Más bien de acuerdo","Totalmente de acuerdo","Totalmente de acuerdo","No se pronuncia","No se pronuncia","No se pronuncia","No se pronuncia"]
[null,"Masculino","Mixta","160<","31- 40","c.-","b.-","d.-","a.-","c.-","c.-","e.-","c.-","b.-","d.-","c.-","Totalmente de acuerdo","Totalmente en desacuerdo","Más bien de acuerdo","Totalmente de acuerdo","Más bien de acuerdo","Totalmente de acuerdo","Más bien de acuerdo","Más bien de acuerdo","Totalmente de acuerdo","Totalmente de acuerdo"]
[null,"Masculino","Mixta","200 - 300","31- 40","c.-","b.-","d.-","a.-","c.-","d.-","e.-","b.-","b.-","d.-","f.-","Totalmente de acuerdo","Totalmente en desacuerdo","Más bien de acuerdo","Totalmente de acuerdo","Más bien de acuerdo","Totalmente de acuerdo","Más bien de acuerdo","Más bien en desacuerdo","Totalmente de acuerdo","Totalmente de acuerdo","Más bien en desacuerdo","Más bien de acuerdo","Totalmente de acuerdo","Totalmente de acuerdo"]
[null,"Femenino","Urbana","160<","31- 40","d.-","a.-","b.-","a.-","b.-","a.-","b.-","a.-","b.-","d.-","a.-"]
[null,"Femenino","Rural","200 - 300","31- 40","b.-","e.-","b.-","a.-","b.-","c.-","d.-","b.-","b.-","d.-","c.-"]
[null,"Femenino","Urbana","160<","31- 40","c.-","c.-","b.-","a.-","a.-","d.-","e.-","a.-","c.-","d.-","a.-","Más bien en desacuerdo","Totalmente en desacuerdo","Totalmente en desacuerdo","Totalmente en desacuerdo","Totalmente de acuerdo","Totalmente de acuerdo","Totalmente de acuerdo","Totalmente de acuerdo","Totalmente de acuerdo","Totalmente de acuerdo","Totalmente en desacuerdo","Totalmente de acuerdo","Totalmente en desacuerdo","Totalmente de acuerdo"]
[null,"Masculino","Urbana","600 - 1600 ","31- 40","d.-","c.-","c.-","b.-","b.-","c.-","e.-","b.-","b.-","d.-","c.-","Totalmente en desacuerdo","Más bien en desacuerdo","Totalmente en desacuerdo","Más bien en desacuerdo","Más bien en desacuerdo","Más bien de acuerdo","Más bien de acuerdo","Más bien en desacuerdo","Más bien de acuerdo","Totalmente de acuerdo","Totalmente en desacuerdo","Totalmente de acuerdo","Totalmente en desacuerdo","Totalmente de acuerdo"]
[null,"Femenino","Urbana","600 - 1600 ","31- 40","c.-","c.-","d.-","a.-","b.-","c.-","e.-","c.-","b.-","d.-","f.-","Más bien en desacuerdo","Totalmente en desacuerdo","Más bien en desacuerdo","Totalmente en desacuerdo","Más bien de acuerdo","Más bien de acuerdo","Más bien de acuerdo","Más bien de acuerdo","Más bien de acuerdo","Más bien de acuerdo","Totalmente en desacuerdo","Más bien en desacuerdo","Totalmente en desacuerdo","Totalmente de acuerdo"]
[null,"Femenino","Urbana","160<","31- 40","b.-","d.-","b.-","a.-","a.-","c.-","d.-","a.-","a.-","d.-","e.-","Más bien de acuerdo","Más bien en desacuerdo","Totalmente en desacuerdo","Totalmente en desacuerdo","Más bien en desacuerdo","Más bien de acuerdo","Más bien de acuerdo","Más bien de acuerdo","Totalmente en desacuerdo","Totalmente de acuerdo","Totalmente en desacuerdo","Más bien de acuerdo","Totalmente en desacuerdo","Más bien de acuerdo"]
[null,"Femenino","Urbana","200 - 300","31- 40","d.-","a.-","d.-","a.-","c.-","e.-","c.-","c.-","c.-","d.-","c.-","Totalmente de acuerdo","Totalmente de acuerdo","Totalmente en desacuerdo","Lo ignoro","Lo ignoro","Totalmente de acuerdo","Más bien de acuerdo","Lo ignoro","Lo ignoro","Totalmente de acuerdo","Totalmente en desacuerdo","No se pronuncia","No se pronuncia","No se pronuncia"]
[null,"Femenino","Mixta","200 - 300","31- 40","d.-","b.-","b.-","a.-","a.-","c.-","d.-","a.-","a.-","c.-","a.-","Totalmente en desacuerdo","Totalmente de acuerdo","Más bien en desacuerdo","Más bien en desacuerdo","Totalmente de acuerdo","Más bien en desacuerdo","Totalmente en desacuerdo","Más bien de acuerdo","Totalmente de acuerdo","Totalmente en desacuerdo","Más bien de acuerdo","Totalmente de acuerdo","Más bien en desacuerdo","Más bien de acuerdo"]
[null,"Masculino","Urbana","200 - 300","31- 40","b.-","c.-","b.-","b.-","b.-","a.-","e.-","b.-","b.-","d.-","c.-","Más bien de acuerdo","Más bien en desacuerdo","Más bien de acuerdo","Más bien en desacuerdo","Más bien en desacuerdo","Más bien de acuerdo","Más bien de acuerdo","Más bien de acuerdo","Más bien en desacuerdo","Más bien de acuerdo","Más bien de acuerdo","Totalmente de acuerdo","Totalmente de acuerdo","Totalmente de acuerdo"]
[null,"Femenino","Urbana","200 - 300","31- 40","d.-","c.-","a.-","a.-","b.-","c.-","d.-","b.-","c.-","d.-","a.-","Totalmente de acuerdo","Lo ignoro","Más bien en desacuerdo","Totalmente en desacuerdo","Lo ignoro","Totalmente de acuerdo","Lo ignoro","Más bien de acuerdo","Más bien de acuerdo","Totalmente de acuerdo","No se pronuncia","Totalmente de acuerdo","Totalmente de acuerdo","No se pronuncia"]
[null,"Femenino","Urbana","200 - 300","31- 40","e.-","a.-","b.-","b.-","b.-","b.-","c.-","a.-","a.-","d.-","e.-"]
[null,"Femenino","Rural","160<","31- 40","f.-","a.-","d.-","a.-","b.-","a.-","c.-","a.-","d.-","d.-","a.-",null,null,null,null,null,"Totalmente de acuerdo"]
[null,"Femenino","Urbana","200 - 300","31- 40","b.-","a.-","a.-","a.-","c.-","a.-","d.-","b.-","c.-","d.-","e.-","Totalmente de acuerdo","Más bien en desacuerdo","Más bien en desacuerdo","Más bien en desacuerdo","Totalmente de acuerdo","Más bien de acuerdo","Más bien en desacuerdo","Totalmente de acuerdo","Más bien de acuerdo","Totalmente de acuerdo","Más bien en desacuerdo","Totalmente de acuerdo","Más bien de acuerdo","Más bien de acuerdo"]
[null,"Femenino","Urbana","200 - 300","31- 40","c.-","c.-","c.-","a.-","b.-","c.-","e.-","c.-","c.-","c.-","e.-","Totalmente de acuerdo","Más bien en desacuerdo","Más bien de acuerdo","Totalmente de acuerdo","Lo ignoro","Más bien de acuerdo","Más bien en desacuerdo","Más bien de acuerdo","Más bien en desacuerdo","Más bien de acuerdo","Totalmente de acuerdo","Más bien de acuerdo","Totalmente de acuerdo","Totalmente de acuerdo"]
[null,"Masculino","Urbana","160<","31- 40","d.-","a.-","d.-","c.-","c.-","b.-","c.-","a.-","d.-","d.-","e.-","Lo ignoro","Totalmente de acuerdo","Más bien de acuerdo","Más bien de acuerdo","Lo ignoro","Más bien de acuerdo","Lo ignoro","Lo ignoro","Lo ignoro","Lo ignoro","No se pronuncia","No se pronuncia","No se pronuncia","No se pronuncia"]
[null,"Femenino","Urbana","200 - 300","31- 40","d.-","a.-","a.-","a.-","b.-","e.-","c.-","b.-","c.-","c.-","c.-"]
[null,"Femenino","Urbana","160<","31- 40","d.-","c.-","b.-","c.-","b.-","b.-","c.-","b.-","b.-","d.-","e.-","Totalmente de acuerdo","Totalmente en desacuerdo","Totalmente de acuerdo","Totalmente en desacuerdo","Totalmente en desacuerdo","Totalmente de acuerdo","Totalmente de acuerdo","Totalmente en desacuerdo","Totalmente en desacuerdo","Totalmente de acuerdo","Totalmente en desacuerdo","Totalmente de acuerdo","Totalmente en desacuerdo","Totalmente de acuerdo"]
[null,"Femenino","Urbana","200 - 300","31- 40","d.-","c.-","a.-","a.-","c.-","d.-","a.-","a.-","c.-","d.-","e.-"]
[null,"Femenino","Urbana","200 - 300","31- 40","c.-","e.-","c.-","c.-","a.-","e.-","c.-","b.-","b.-","d.-","f.-"]
[null,"Masculino","Urbana","200 - 300","31- 40","a.-","b.-","b.-","a.-","c.-","b.-","c.-","b.-","b.-","d.-","d.-"]
[null,"Femenino","Urbana","160<","31- 40","c.-","c.-","c.-","a.-","a.-","a.-","b.-","c.-","a.-","d.-","c.-"]
[null,"Femenino","Urbana","400 - 500 ","31- 40","f.-","e.-","a.-","a.-","d.-","a.-","b.-","a.-","c.-","d.-","c.-"]
[null,"Femenino","Urbana","600 - 1600 ","31- 40","d.-","a.-","e.-","b.-","b.-","c.-","e.-","a.-","b.-","d.-","c.-","Totalmente de acuerdo","Totalmente en desacuerdo","Totalmente de acuerdo","Totalmente en desacuerdo","Más bien de acuerdo","Totalmente de acuerdo","Totalmente de acuerdo","Más bien de acuerdo","Totalmente de acuerdo","Totalmente de acuerdo","Más bien de acuerdo","Totalmente de acuerdo","Totalmente de acuerdo","Totalmente de acuerdo"]
[null,"Masculino","Urbana",">1700","31- 40","d.-","c.-","c.-","c.-","b.-","c.-","e.-","b.-","b.-","d.-","b.-","Más bien en desacuerdo","Totalmente en desacuerdo","Totalmente en desacuerdo","Totalmente en desacuerdo","Más bien en desacuerdo","Más bien en desacuerdo","Totalmente en desacuerdo","Más bien en desacuerdo","Más bien en desacuerdo","Más bien de acuerdo","Totalmente en desacuerdo","Más bien de acuerdo","Más bien de acuerdo","Más bien de acuerdo"]
[null,"Femenino","Urbana","600 - 1600 ","31- 40","d.-","a.-","e.-","b.-","c.-","a.-","e.-","b.-","b.-","d.-","b.-","Más bien en desacuerdo","Totalmente en desacuerdo","Más bien en desacuerdo","Totalmente en desacuerdo","Más bien de acuerdo","Totalmente de acuerdo","Más bien en desacuerdo","Más bien en desacuerdo","Totalmente de acuerdo","Totalmente de acuerdo","Más bien en desacuerdo","Totalmente de acuerdo","Totalmente en desacuerdo","Totalmente de acuerdo"]
[null,"Masculino","Urbana","600 - 1600 ","31- 40","c.-","b.-","d.-","c.-","b.-","d.-","c.-","c.-","c.-","d.-","c.-","Más bien en desacuerdo","Totalmente en desacuerdo","Totalmente en desacuerdo","Totalmente en desacuerdo","Más bien en desacuerdo","Totalmente de acuerdo","Totalmente en desacuerdo","Totalmente en desacuerdo","Totalmente en desacuerdo","Totalmente de acuerdo","Totalmente en desacuerdo","Totalmente de acuerdo","Totalmente de acuerdo","Totalmente de acuerdo"]
[null,"Femenino","Urbana","600 - 1600 ","31- 40","a.-","a.-","c.-","d.-","c.-","c.-","e.-","d.-","c.-","d.-","c.-","Más bien de acuerdo","Más bien en desacuerdo","Más bien de acuerdo","Totalmente en desacuerdo","Más bien en desacuerdo","Más bien de acuerdo","Totalmente en desacuerdo","Más bien en desacuerdo","Más bien de acuerdo","Totalmente de acuerdo","Totalmente en desacuerdo","Totalmente de acuerdo","Más bien de acuerdo","Totalmente de acuerdo"]
[null,"Femenino","Urbana","400 - 500 ","31- 40","f.-","e.-","d.-","b.-","b.-","c.-","e.-","b.-","a.-","d.-","e.-","Más bien de acuerdo","Más bien en desacuerdo","Lo ignoro","Lo ignoro","Lo ignoro","Lo ignoro","Más bien en desacuerdo","Lo ignoro","Más bien de acuerdo","Totalmente en desacuerdo","Totalmente en desacuerdo","Más bien de acuerdo","No se pronuncia","No se pronuncia"]
[null,"Femenino","Urbana","160<","31- 40","d.-","a.-","a.-","a.-","b.-","d.-","e.-","a.-","b.-","d.-","e.-","Totalmente en desacuerdo","Totalmente en desacuerdo","Totalmente en desacuerdo","Totalmente en desacuerdo","Más bien en desacuerdo","Totalmente de acuerdo","Totalmente de acuerdo","Totalmente de acuerdo","Más bien de acuerdo","Totalmente de acuerdo","Totalmente en desacuerdo","Más bien en desacuerdo","Totalmente en desacuerdo","Totalmente de acuerdo"]
[null,"Femenino","Urbana","200 - 300","31- 40","c.-","d.-","e.-","b.-","b.-","d.-","e.-","c.-","b.-","b.-","e.-","Más bien en desacuerdo","Totalmente en desacuerdo","Totalmente en desacuerdo","Totalmente en desacuerdo","Lo ignoro","Totalmente de acuerdo","Totalmente de acuerdo","Totalmente de acuerdo","Más bien de acuerdo","Totalmente de acuerdo","Más bien en desacuerdo","Más bien de acuerdo","Más bien en desacuerdo","Totalmente de acuerdo"]
[null,"Femenino","Urbana","200 - 300","31- 40","c.-","a.-","b.-","c.-","a.-","a.-","e.-","b.-","a.-","d.-","c.-","Totalmente de acuerdo","Más bien de acuerdo","Más bien de acuerdo","Más bien de acuerdo","Más bien de acuerdo","Totalmente de acuerdo","Más bien de acuerdo","Más bien de acuerdo","Más bien de acuerdo","Más bien de acuerdo","Totalmente en desacuerdo","Más bien de acuerdo","Más bien en desacuerdo","Totalmente de acuerdo"]
[null,"Femenino","Urbana","200 - 300","31- 40","c.-","a.-","e.-","c.-","b.-","a.-","e.-","d.-","c.-","d.-","e.-","Más bien de acuerdo","Más bien de acuerdo","Más bien en desacuerdo","Totalmente en desacuerdo","Totalmente de acuerdo","Totalmente de acuerdo","Más bien en desacuerdo","Totalmente de acuerdo","Totalmente de acuerdo","Totalmente de acuerdo","Totalmente en desacuerdo","Totalmente de acuerdo","Totalmente en desacuerdo","Totalmente de acuerdo"]
[null,"Masculino","Urbana","200 - 300","31- 40","d.-","c.-","a.-","a.-","b.-","a.-","c.-","b.-","b.-","b.-","b.-","Totalmente de acuerdo","Más bien de acuerdo","Más bien de acuerdo","Totalmente de acuerdo","Más bien de acuerdo","Más bien de acuerdo","Más bien de acuerdo","Totalmente de acuerdo","Totalmente de acuerdo","Más bien de acuerdo","Más bien de acuerdo","Totalmente de acuerdo","Más bien de acuerdo","Totalmente de acuerdo"]
[null,"Masculino","Urbana","400 - 500 ","31- 40","c.-","a.-","a.-","a.-","a.-","e.-","c.-","b.-","a.-","d.-","e.-","Más bien en desacuerdo","Totalmente en desacuerdo","Más bien en desacuerdo","Totalmente en desacuerdo","Totalmente de acuerdo","Totalmente en desacuerdo","Totalmente de acuerdo","Totalmente de acuerdo","Totalmente de acuerdo","Totalmente de acuerdo","Totalmente en desacuerdo","Totalmente de acuerdo","Totalmente en desacuerdo","Totalmente de acuerdo"]
[null,"Masculino","Urbana","600 - 1600 ","31- 40","d.-","a.-","c.-","a.-","b.-","d.-","e.-","b.-","b.-","d.-","e.-","Totalmente de acuerdo","Más bien en desacuerdo","Más bien de acuerdo","Totalmente en desacuerdo","Totalmente en desacuerdo","Lo ignoro","Totalmente de acuerdo","Más bien en desacuerdo","Más bien en desacuerdo","Más bien de acuerdo","Totalmente de acuerdo","Totalmente de acuerdo","Totalmente de acuerdo","Totalmente de acuerdo"]
[null,"Femenino","Mixta","200 - 300","31- 40","d.-","a.-","d.-","a.-","c.-","e.-","a.-","c.-","c.-","d.-","e.-","Totalmente de acuerdo","Más bien de acuerdo","Más bien en desacuerdo","Más bien en desacuerdo","Más bien de acuerdo","Más bien en desacuerdo","Más bien en desacuerdo","Más bien en desacuerdo","Más bien en desacuerdo","Totalmente de acuerdo"]
[null,"Femenino","Urbana","160<","31- 40","d.-","a.-","c.-","b.-","c.-","c.-","e.-","c.-","c.-","a.-","b.-","Totalmente en desacuerdo","Lo ignoro","Totalmente en desacuerdo","Lo ignoro","Más bien de acuerdo","Totalmente de acuerdo","Más bien de acuerdo","Lo ignoro","Totalmente de acuerdo","Totalmente de acuerdo","Totalmente en desacuerdo","Más bien de acuerdo","Totalmente en desacuerdo","Totalmente de acuerdo"]
[null,"Masculino","Urbana","200 - 300","31- 40","e.-","a.-","c.-","b.-","c.-","e.-","c.-","b.-","c.-","d.-","e.-","Más bien en desacuerdo","Más bien de acuerdo","Totalmente en desacuerdo","Totalmente en desacuerdo","Más bien en desacuerdo","Totalmente de acuerdo","Más bien en desacuerdo","Más bien en desacuerdo","Más bien de acuerdo","Totalmente de acuerdo","Más bien en desacuerdo","Más bien de acuerdo","Totalmente en desacuerdo","Totalmente de acuerdo"]
[null,"Femenino","Mixta","200 - 300","31- 40","c.-","c.-","c.-","c.-","b.-","b.-","a.-","c.-","c.-","d.-","e.-","Más bien de acuerdo","Totalmente en desacuerdo","Totalmente en desacuerdo","Totalmente en desacuerdo","Más bien de acuerdo","Totalmente de acuerdo","Totalmente de acuerdo","Totalmente de acuerdo","Más bien de acuerdo","Totalmente de acuerdo","Totalmente en desacuerdo","Totalmente de acuerdo","Totalmente en desacuerdo","Totalmente de acuerdo"]
[null,"Femenino","Rural","200 - 300","31- 40","d.-","b.-","b.-","c.-","b.-","c.-","e.-","c.-","b.-","d.-","e.-","Totalmente en desacuerdo","Totalmente en desacuerdo","Totalmente en desacuerdo","Totalmente en desacuerdo","Totalmente en desacuerdo","Totalmente de acuerdo","Totalmente de acuerdo","Totalmente en desacuerdo","Totalmente en desacuerdo","Totalmente de acuerdo","Totalmente en desacuerdo","Totalmente de acuerdo","Totalmente en desacuerdo","Totalmente de acuerdo"]
[null,"Femenino","Mixta","160<","31- 40","b.-","e.-","a.-","a.-","b.-","a.-","c.-","a.-","c.-","d.-","b.-","Totalmente de acuerdo","Totalmente de acuerdo","Más bien en desacuerdo","Totalmente de acuerdo","Más bien de acuerdo","Más bien de acuerdo","Más bien de acuerdo","Más bien de acuerdo","Totalmente de acuerdo","Más bien de acuerdo","Más bien de acuerdo","Totalmente de acuerdo","Totalmente de acuerdo","Totalmente de acuerdo"]
[null,"Femenino","Urbana","200 - 300","31- 40","d.-","d.-","c.-","c.-","c.-","c.-","d.-","a.-","c.-","c.-","c.-","Más bien en desacuerdo","Más bien en desacuerdo","Totalmente de acuerdo","Más bien en desacuerdo","Totalmente de acuerdo","Totalmente de acuerdo","Totalmente de acuerdo","Más bien de acuerdo","Más bien en desacuerdo","Totalmente de acuerdo","Totalmente en desacuerdo","Totalmente de acuerdo","Totalmente en desacuerdo","Totalmente de acuerdo"]
[null,"Masculino","Urbana","160<","31- 40","d.-","a.-","a.-","a.-","a.-","d.-","e.-","a.-","a.-","d.-","c.-","Totalmente de acuerdo","Más bien en desacuerdo","Totalmente en desacuerdo","Totalmente en desacuerdo","Totalmente de acuerdo","Totalmente de acuerdo","Totalmente de acuerdo","Totalmente de acuerdo","Totalmente de acuerdo","Totalmente de acuerdo","Totalmente en desacuerdo","Totalmente de acuerdo","Totalmente en desacuerdo","Totalmente de acuerdo"]
[null,"Femenino","Mixta","400 - 500 ","31- 40","c.-","a.-","d.-","a.-","c.-","a.-","e.-","d.-","c.-","d.-","e.-","Totalmente en desacuerdo","Totalmente en desacuerdo","Totalmente en desacuerdo","Más bien en desacuerdo","Más bien de acuerdo","Totalmente de acuerdo","Totalmente de acuerdo","Más bien de acuerdo","Más bien en desacuerdo","Totalmente de acuerdo","Totalmente en desacuerdo","Totalmente de acuerdo","Totalmente en desacuerdo","Totalmente de acuerdo"]
[null,"Femenino","Urbana","200 - 300","31- 40","c.-","e.-","e.-","c.-","c.-","d.-","e.-","c.-","c.-","d.-","e.-","Más bien en desacuerdo","Más bien en desacuerdo","Totalmente en desacuerdo","Totalmente en desacuerdo","Más bien en desacuerdo","Más bien de acuerdo","Más bien de acuerdo","Más bien en desacuerdo","Más bien en desacuerdo","Más bien de acuerdo","Totalmente en desacuerdo","Totalmente de acuerdo","Totalmente en desacuerdo","Totalmente de acuerdo"]
[null,"Femenino","Urbana","200 - 300","31- 40","d.-","e.-","a.-","a.-","b.-","c.-","e.-","c.-","b.-","c.-","c.-","Totalmente de acuerdo","Más bien en desacuerdo","Más bien en desacuerdo","Totalmente en desacuerdo","Más bien en desacuerdo","Totalmente de acuerdo","Más bien de acuerdo","Más bien de acuerdo","Más bien de acuerdo","Más bien de acuerdo","No se pronuncia","Totalmente en desacuerdo","No se pronuncia","Más bien de acuerdo"]
[null,"Masculino","Urbana","200 - 300","31- 40","c.-","b.-","d.-","b.-","d.-","c.-","e.-","b.-","d.-","b.-","c.-","Totalmente de acuerdo","Más bien en desacuerdo","Más bien de acuerdo","Más bien en desacuerdo","Totalmente de acuerdo","Totalmente en desacuerdo","Más bien de acuerdo","Totalmente de acuerdo","Totalmente en desacuerdo","Más bien de acuerdo","Totalmente de acuerdo","Más bien de acuerdo","Más bien en desacuerdo","Totalmente en desacuerdo"]
[null,"Femenino","Urbana","400 - 500 ","31- 40","c.-","e.-","c.-","a.-","d.-","d.-","e.-","c.-","c.-","d.-","c.-","Más bien de acuerdo","Totalmente en desacuerdo","Totalmente en desacuerdo","Totalmente en desacuerdo","Totalmente en desacuerdo","Totalmente de acuerdo","Más bien de acuerdo","Totalmente de acuerdo","Más bien de acuerdo","Totalmente de acuerdo","Totalmente en desacuerdo","Totalmente de acuerdo","Totalmente en desacuerdo","Totalmente de acuerdo"]
[null,"Masculino","Urbana","400 - 500 ","31- 40","d.-","a.-","b.-","a.-","a.-","e.-","d.-","a.-","a.-","a.-","c.-","Totalmente de acuerdo","Más bien de acuerdo","Totalmente en desacuerdo","Totalmente en desacuerdo","Más bien en desacuerdo","Totalmente de acuerdo","Totalmente en desacuerdo","Totalmente de acuerdo","Totalmente de acuerdo","Totalmente de acuerdo","Totalmente en desacuerdo","Totalmente de acuerdo","Más bien de acuerdo","Totalmente en desacuerdo"]
[null,"Femenino","Urbana","160<","31- 40","d.-","a.-","a.-","a.-","a.-","c.-","d.-","a.-","b.-","d.-","c.-"]
[null,"Femenino","Urbana","200 - 300","31- 40","f.-","e.-","c.-","c.-","d.-","b.-","c.-","a.-","a.-","d.-","e.-"]
[null,"Femenino","Urbana","400 - 500 ","31- 40","d.-","b.-","c.-","a.-","a.-","c.-","d.-","d.-","c.-","d.-","e.-","Totalmente de acuerdo","Totalmente en desacuerdo","Totalmente en desacuerdo","Más bien en desacuerdo","Más bien de acuerdo","Totalmente de acuerdo","Totalmente de acuerdo","Más bien de acuerdo","Totalmente de acuerdo","Totalmente de acuerdo","Totalmente en desacuerdo","Totalmente de acuerdo","Totalmente de acuerdo","Totalmente de acuerdo"]
[null,"Femenino","Urbana","200 - 300","31- 40","d.-","a.-","b.-","a.-","a.-","d.-","e.-","a.-","a.-","d.-","d.-"]
[null,"Femenino","Urbana","160<","16 - 20","d.-","e.-","c.-","a.-","a.-","c.-","e.-","a.-","c.-","d.-","e.-"]
[null,"Femenino","Urbana","160<","16 - 20","f.-","a.-","a.-","a.-","b.-","c.-","e.-","b.-","b.-","c.-","c.-"]
[null,"Femenino","Urbana","160<","16 - 20","c.-","a.-","c.-","c.-","b.-","c.-","d.-","b.-","b.-","d.-","c.-","Más bien de acuerdo","Más bien en desacuerdo","Más bien de acuerdo","Totalmente en desacuerdo","Totalmente de acuerdo","Totalmente de acuerdo","Más bien de acuerdo","Más bien de acuerdo","Totalmente en desacuerdo","Totalmente en desacuerdo","Totalmente en desacuerdo","Más bien de acuerdo","Más bien de acuerdo","Más bien de acuerdo"]
[null,"Femenino","Urbana","200 - 300","16 - 20","d.-","b.-","d.-","d.-","b.-","c.-","e.-","c.-","a.-","d.-","b.-","Más bien de acuerdo","Totalmente en desacuerdo","Más bien en desacuerdo","Totalmente en desacuerdo","Totalmente de acuerdo","Totalmente de acuerdo","Más bien en desacuerdo","Totalmente en desacuerdo","Totalmente en desacuerdo","Totalmente de acuerdo","Más bien en desacuerdo","Totalmente de acuerdo","Totalmente en desacuerdo","Totalmente de acuerdo"]
[null,"Femenino","Rural","160<","16 - 20","d.-","a.-","c.-","a.-","c.-","c.-","d.-","b.-","c.-","b.-","b.-","Totalmente de acuerdo","Totalmente en desacuerdo","Más bien de acuerdo","Más bien de acuerdo","Totalmente en desacuerdo","Más bien de acuerdo","Más bien de acuerdo","Más bien de acuerdo","Totalmente de acuerdo","Más bien de acuerdo","Totalmente en desacuerdo","Más bien de acuerdo","Totalmente en desacuerdo","Totalmente de acuerdo"]
[null,"Femenino","Urbana","200 - 300","16 - 20","f.-","e.-","c.-","b.-","c.-","a.-","c.-","b.-","b.-","b.-","e.-","Más bien de acuerdo","Totalmente en desacuerdo","Más bien en desacuerdo","Totalmente en desacuerdo","Totalmente de acuerdo","Totalmente de acuerdo","Más bien de acuerdo","Más bien de acuerdo","Totalmente de acuerdo","Totalmente de acuerdo","Totalmente en desacuerdo","Totalmente de acuerdo","Totalmente en desacuerdo","Totalmente de acuerdo"]
[null,"Femenino","Urbana","200 - 300","16 - 20","d.-","b.-","b.-","b.-","a.-","d.-","c.-","b.-","c.-","d.-","b.-","Totalmente de acuerdo","Más bien en desacuerdo","Más bien en desacuerdo","Más bien de acuerdo","Más bien de acuerdo","Totalmente de acuerdo","Totalmente de acuerdo","Más bien de acuerdo","Más bien de acuerdo","Totalmente de acuerdo","Totalmente de acuerdo","Totalmente de acuerdo","Más bien en desacuerdo","Totalmente de acuerdo"]
[null,"Femenino","Urbana","160<","16 - 20","b.-","a.-","c.-","b.-","b.-","e.-","a.-","b.-","b.-","d.-","a.-"]
[null,"Femenino","Urbana","200 - 300","16 - 20","c.-","c.-","d.-","b.-","b.-","b.-","d.-","b.-","b.-","d.-","e.-","Más bien de acuerdo","Totalmente en desacuerdo","Totalmente en desacuerdo","Totalmente en desacuerdo","Totalmente en desacuerdo","Lo ignoro","Más bien en desacuerdo","Más bien en desacuerdo","Totalmente en desacuerdo","Más bien en desacuerdo","Totalmente en desacuerdo","Más bien de acuerdo","Totalmente en desacuerdo","Más bien de acuerdo"]
[null,"Femenino","Urbana","400 - 500 ","16 - 20","d.-","a.-","b.-","a.-","d.-","a.-","d.-","b.-","d.-","d.-","f.-","Más bien de acuerdo","Más bien en desacuerdo","Más bien de acuerdo","Totalmente en desacuerdo","Más bien de acuerdo","Más bien de acuerdo","Más bien de acuerdo","Más bien de acuerdo","Lo ignoro","Más bien de acuerdo","Más bien de acuerdo","Más bien de acuerdo","Más bien en desacuerdo","Totalmente de acuerdo"]
[null,"Masculino","Urbana","600 - 1600 ","16 - 20","d.-","a.-","d.-","c.-","c.-","d.-","e.-","b.-","b.-","d.-","c.-","Más bien en desacuerdo","Más bien de acuerdo","Totalmente en desacuerdo","Totalmente en desacuerdo","Más bien en desacuerdo","Totalmente de acuerdo","Más bien de acuerdo","Totalmente en desacuerdo","Totalmente en desacuerdo","Totalmente de acuerdo","Más bien en desacuerdo","Más bien de acuerdo","Totalmente en desacuerdo","Más bien de acuerdo"]
[null,"Femenino","Mixta","200 - 300","16 - 20","c.-","a.-","c.-","a.-","b.-","d.-","e.-","c.-","a.-","d.-","e.-","Más bien de acuerdo","Totalmente en desacuerdo","Totalmente en desacuerdo","Totalmente en desacuerdo","Totalmente en desacuerdo","Más bien en desacuerdo","Más bien en desacuerdo","Más bien en desacuerdo","Más bien en desacuerdo","Totalmente de acuerdo","Más bien de acuerdo","Totalmente de acuerdo","Más bien en desacuerdo","Totalmente de acuerdo"]
[null,"Femenino","Urbana","160<","16 - 20","d.-","b.-","e.-","d.-","a.-","c.-","d.-","c.-","a.-","d.-","c.-","Totalmente de acuerdo","Totalmente en desacuerdo","Más bien en desacuerdo","Totalmente en desacuerdo","Totalmente de acuerdo","Totalmente de acuerdo","Más bien en desacuerdo","Totalmente en desacuerdo","Totalmente en desacuerdo","Totalmente de acuerdo","Totalmente en desacuerdo","Totalmente de acuerdo","Totalmente en desacuerdo","Totalmente de acuerdo"]
[null,"Femenino","Urbana","200 - 300","16 - 20","e.-","b.-","c.-","a.-","a.-","a.-","c.-","a.-","b.-","c.-","c.-","Más bien en desacuerdo","Más bien de acuerdo","Totalmente de acuerdo","Más bien de acuerdo","Más bien en desacuerdo","Más bien de acuerdo","Más bien de acuerdo","Más bien en desacuerdo","Totalmente en desacuerdo","Más bien de acuerdo","Totalmente de acuerdo","Más bien de acuerdo","Totalmente de acuerdo","Más bien de acuerdo"]
[null,"Masculino","Urbana","400 - 500 ","16 - 20","d.-","c.-","b.-","c.-","a.-","c.-","e.-","c.-","a.-","d.-","e.-","Más bien en desacuerdo","Totalmente de acuerdo","Totalmente en desacuerdo","Totalmente en desacuerdo","Totalmente en desacuerdo","Más bien en desacuerdo","Más bien en desacuerdo","Totalmente en desacuerdo","Totalmente en desacuerdo","Totalmente de acuerdo","Más bien en desacuerdo","Más bien de acuerdo","Totalmente en desacuerdo","Más bien de acuerdo"]
[null,"Femenino","Urbana","200 - 300","16 - 20","d.-","e.-","c.-","c.-","b.-","c.-","d.-","b.-","d.-","d.-","e.-","Más bien en desacuerdo","Totalmente en desacuerdo","Totalmente en desacuerdo","Totalmente en desacuerdo","Más bien en desacuerdo","Totalmente de acuerdo","Más bien de acuerdo","Lo ignoro","Más bien de acuerdo","Totalmente de acuerdo","Más bien en desacuerdo","Más bien de acuerdo","Totalmente en desacuerdo","Totalmente de acuerdo"]
[null,"Masculino","Urbana","600 - 1600 ","16 - 20","b.-","a.-","b.-","c.-","a.-","c.-","e.-","a.-","c.-","b.-","b.-","Totalmente en desacuerdo","Más bien en desacuerdo","Más bien de acuerdo","Totalmente en desacuerdo","Totalmente en desacuerdo","Totalmente de acuerdo","Más bien de acuerdo","Totalmente en desacuerdo","Totalmente en desacuerdo","Totalmente de acuerdo","Totalmente en desacuerdo","Totalmente de acuerdo","Totalmente en desacuerdo","Totalmente de acuerdo"]
[null,"Femenino","Urbana","400 - 500 ","16 - 20","d.-","b.-","c.-","b.-","b.-","c.-","d.-","b.-","c.-","d.-","b.-","Totalmente en desacuerdo","Totalmente en desacuerdo","Totalmente en desacuerdo","Más bien en desacuerdo","Más bien en desacuerdo","Más bien de acuerdo","Totalmente de acuerdo","Totalmente en desacuerdo","Totalmente en desacuerdo","Totalmente de acuerdo","Totalmente de acuerdo","Totalmente de acuerdo","Totalmente de acuerdo","Totalmente de acuerdo"]
[null,"Femenino","Rural","200 - 300","16 - 20","d.-","e.-","a.-","b.-","b.-","a.-","c.-","d.-","b.-","c.-","f.-"]
[null,"Femenino","Urbana","160<","16 - 20","e.-","a.-","b.-","a.-","c.-","a.-","e.-","a.-","c.-","a.-","d.-"]
[null,"Masculino","Urbana","200 - 300","16 - 20","d.-","a.-","b.-","a.-","b.-","a.-","d.-","b.-","b.-","d.-","f.-"]
[null,"Femenino","Mixta","400 - 500 ","16 - 20","f.-","e.-","e.-","b.-","b.-","a.-","e.-","d.-","c.-","d.-","c.-","Más bien en desacuerdo","Más bien en desacuerdo","Más bien en desacuerdo","Totalmente en desacuerdo","Más bien en desacuerdo","Totalmente de acuerdo","Más bien de acuerdo","Más bien de acuerdo","Más bien de acuerdo","Totalmente en desacuerdo","Más bien en desacuerdo","Totalmente de acuerdo","Totalmente en desacuerdo","Totalmente de acuerdo"]
[null,"Femenino","Urbana","400 - 500 ","16 - 20","e.-","c.-","d.-","b.-","b.-","a.-","e.-","c.-","c.-","a.-","a.-","Totalmente de acuerdo","Totalmente de acuerdo","Más bien en desacuerdo","Más bien en desacuerdo","Totalmente de acuerdo","Totalmente de acuerdo","Totalmente de acuerdo","Más bien de acuerdo","Más bien de acuerdo","Totalmente de acuerdo","Totalmente de acuerdo","Totalmente de acuerdo","Totalmente de acuerdo","Totalmente de acuerdo"]
[null,"Femenino","Urbana","600 - 1600 ","16 - 20","c.-","c.-","b.-","c.-","a.-","c.-","e.-","b.-","b.-","d.-","e.-","Más bien en desacuerdo","Totalmente en desacuerdo","Totalmente en desacuerdo","Totalmente en desacuerdo","Totalmente de acuerdo","Totalmente de acuerdo","Totalmente en desacuerdo","Más bien en desacuerdo","Totalmente en desacuerdo","Totalmente de acuerdo","Totalmente en desacuerdo","Totalmente de acuerdo","Totalmente en desacuerdo","Totalmente de acuerdo"]
[null,"Masculino","Urbana","600 - 1600 ","16 - 20","d.-","a.-","c.-","a.-","c.-","c.-","b.-","b.-","c.-","d.-","e.-","Más bien de acuerdo","Más bien en desacuerdo","Más bien en desacuerdo","Más bien de acuerdo","Más bien de acuerdo","Totalmente de acuerdo","Más bien de acuerdo","Más bien de acuerdo","Totalmente de acuerdo","Totalmente de acuerdo","Totalmente en desacuerdo","Más bien de acuerdo","Totalmente en desacuerdo","Totalmente de acuerdo"]
[null,"Femenino","Urbana","200 - 300","16 - 20","c.-","a.-","c.-","a.-","a.-","d.-","e.-","c.-","b.-","d.-","e.-","Totalmente de acuerdo","Totalmente en desacuerdo","Más bien en desacuerdo","Más bien de acuerdo","Totalmente en desacuerdo","Más bien de acuerdo","Totalmente en desacuerdo","Totalmente en desacuerdo","Más bien de acuerdo","Totalmente en desacuerdo","Totalmente en desacuerdo","Totalmente de acuerdo","Totalmente de acuerdo","Totalmente en desacuerdo"]
[null,"Femenino","Urbana","160<","16 - 20","d.-","a.-","b.-","a.-","a.-","c.-","e.-","a.-","a.-","d.-","e.-"]
[null,"Masculino","Urbana","160<","16 - 20","c.-","d.-","b.-","c.-","b.-","c.-","e.-","c.-","c.-","d.-","f.-"]
[null,"Femenino","Urbana","200 - 300","16 - 20","d.-","b.-","c.-","c.-","c.-","c.-","e.-","b.-","b.-","d.-","f.-","Más bien en desacuerdo","Más bien en desacuerdo","Totalmente en desacuerdo","Totalmente de acuerdo","Totalmente de acuerdo","Totalmente de acuerdo","Totalmente de acuerdo","Totalmente de acuerdo","Totalmente de acuerdo","Más bien de acuerdo","Más bien en desacuerdo","Más bien de acuerdo","Totalmente de acuerdo","Totalmente de acuerdo"]
[null,"Femenino","Mixta","160<","16 - 20","c.-","a.-","d.-","d.-","c.-","c.-","e.-","d.-","c.-","d.-","e.-"]
[null,"Femenino","Urbana","200 - 300","16 - 20","c.-","e.-","a.-","a.-","a.-","e.-","c.-","a.-","a.-","d.-","c.-"]
[null,"Femenino","Urbana","200 - 300","16 - 20","f.-","e.-","b.-","a.-","a.-","c.-","e.-","a.-","a.-","d.-","b.-"]
[null,"Femenino","Rural","160<","16 - 20","f.-","b.-","c.-","b.-","c.-","a.-","e.-","a.-","c.-","c.-","c.-"]
[null,"Masculino","Rural","600 - 1600 ","16 - 20","d.-","a.-","c.-","c.-","b.-","a.-","e.-","c.-","b.-","b.-","b.-"]
[null,"Femenino","Urbana","160<","16 - 20","d.-","e.-","c.-","a.-","b.-","a.-","e.-","d.-","c.-","d.-","c.-"]
[null,"Masculino","Urbana","200 - 300","16 - 20","b.-","d.-","b.-","b.-","b.-","a.-","e.-","b.-","b.-","c.-","e.-"]
[null,"Masculino","Urbana","200 - 300","16 - 20","d.-","a.-","e.-","a.-","c.-","b.-","c.-","c.-","c.-","d.-","f.-","Totalmente de acuerdo","Totalmente en desacuerdo","Totalmente en desacuerdo","Totalmente en desacuerdo","Totalmente de acuerdo","Totalmente de acuerdo","Totalmente de acuerdo","Totalmente en desacuerdo","Totalmente de acuerdo","Totalmente de acuerdo"]
[null,"Femenino","Urbana","200 - 300","16 - 20","b.-","e.-","b.-","a.-","a.-","c.-","e.-","a.-","a.-","d.-","d.-"]
[null,"Masculino","Urbana","400 - 500 ","16 - 20","d.-","a.-","e.-","d.-","d.-","e.-","c.-","d.-","d.-","c.-","a.-"]
[null,"Femenino","Urbana","200 - 300","21 - 30","d.-","c.-","e.-","b.-","b.-","c.-","e.-","d.-","c.-","d.-","e.-","Más bien de acuerdo","Totalmente de acuerdo","Totalmente en desacuerdo","Más bien en desacuerdo","Más bien en desacuerdo","Totalmente de acuerdo","Totalmente de acuerdo","Más bien en desacuerdo","Más bien en desacuerdo","Totalmente de acuerdo","Totalmente en desacuerdo","Más bien de acuerdo","Totalmente en desacuerdo","Totalmente de acuerdo"]
[null,"Masculino","Mixta","400 - 500 ","21 - 30","d.-","c.-","a.-","a.-","a.-","c.-","e.-","a.-","c.-","d.-","e.-","Totalmente de acuerdo","Totalmente de acuerdo","Totalmente de acuerdo","Más bien en desacuerdo","Más bien en desacuerdo","Más bien de acuerdo","Totalmente de acuerdo","Más bien en desacuerdo","Totalmente de acuerdo","Totalmente de acuerdo","Totalmente en desacuerdo","Totalmente de acuerdo","Más bien en desacuerdo","Totalmente de acuerdo"]
[null,"Femenino","Urbana","200 - 300","21 - 30","d.-","b.-","d.-","d.-","a.-","a.-","d.-","a.-","a.-","c.-","b.-","Más bien de acuerdo","Totalmente en desacuerdo","Totalmente en desacuerdo","Totalmente en desacuerdo","Más bien en desacuerdo","Más bien de acuerdo","Más bien en desacuerdo","Más bien en desacuerdo","Lo ignoro","Totalmente de acuerdo","Más bien en desacuerdo","Más bien de acuerdo","Más bien en desacuerdo","Más bien de acuerdo"]
[null,"Femenino","Mixta","200 - 300","16 - 20","d.-","c.-","e.-","d.-","c.-","c.-","e.-","c.-","c.-","d.-","f.-","Más bien en desacuerdo","Totalmente en desacuerdo","Totalmente en desacuerdo","Totalmente en desacuerdo","Más bien en desacuerdo","Totalmente de acuerdo","Totalmente de acuerdo","Totalmente en desacuerdo","Totalmente de acuerdo","Totalmente de acuerdo","Totalmente en desacuerdo","Más bien de acuerdo","Más bien en desacuerdo","Totalmente de acuerdo"]
[null,"Femenino","Urbana","400 - 500 ","21 - 30","f.-","e.-","e.-","c.-","b.-","b.-","d.-","b.-","c.-","d.-","b.-","Más bien en desacuerdo","Más bien de acuerdo","Más bien en desacuerdo","Más bien de acuerdo","Totalmente de acuerdo","Totalmente en desacuerdo","Más bien de acuerdo","Más bien en desacuerdo","Lo ignoro","Totalmente de acuerdo","Totalmente de acuerdo","Más bien de acuerdo","Totalmente en desacuerdo","Más bien de acuerdo"]
[null,"Femenino","Urbana","400 - 500 ","21 - 30","c.-","c.-","c.-","b.-","b.-","a.-","c.-","a.-","b.-","d.-","c.-","Totalmente de acuerdo","Más bien en desacuerdo","Más bien en desacuerdo","Totalmente en desacuerdo","Totalmente en desacuerdo","Totalmente de acuerdo","Más bien de acuerdo","Más bien de acuerdo","Más bien de acuerdo","Totalmente de acuerdo","Totalmente en desacuerdo","Totalmente de acuerdo","Totalmente de acuerdo","Totalmente de acuerdo"]
[null,"Femenino","Urbana","600 - 1600 ","21 - 30","d.-","b.-","c.-","a.-","d.-","b.-","c.-","a.-","a.-","d.-","c.-","Más bien en desacuerdo","Más bien en desacuerdo","Más bien en desacuerdo","Más bien en desacuerdo","Totalmente en desacuerdo","Totalmente de acuerdo","Totalmente en desacuerdo","Totalmente en desacuerdo","Totalmente de acuerdo","Totalmente de acuerdo","Más bien en desacuerdo","Totalmente de acuerdo","Más bien en desacuerdo","Totalmente de acuerdo"]
[null,"Masculino","Urbana","600 - 1600 ","21 - 30","d.-","c.-","c.-","b.-","b.-","a.-","d.-","c.-","b.-","d.-","e.-","Más bien de acuerdo","Más bien en desacuerdo","Más bien en desacuerdo","Totalmente en desacuerdo","Totalmente de acuerdo","Más bien en desacuerdo","Totalmente en desacuerdo","Lo ignoro","Lo ignoro","Totalmente de acuerdo","Totalmente en desacuerdo","Totalmente de acuerdo","Totalmente de acuerdo","Totalmente de acuerdo"]
[null,"Femenino","Urbana","200 - 300","21 - 30","d.-","c.-","e.-","b.-","b.-","c.-","e.-","d.-","c.-","d.-","e.-","Más bien de acuerdo","Totalmente de acuerdo","Totalmente en desacuerdo","Más bien en desacuerdo","Más bien en desacuerdo","Totalmente en desacuerdo","Totalmente de acuerdo","Más bien en desacuerdo","Más bien en desacuerdo","Totalmente de acuerdo","Totalmente en desacuerdo","Más bien de acuerdo","No se pronuncia","Totalmente de acuerdo"]
[null,"Femenino","Urbana","400 - 500 ","31- 40","b.-","b.-","a.-","a.-","b.-","d.-","e.-","a.-","c.-","d.-","a.-","Más bien en desacuerdo","Más bien en desacuerdo","Más bien de acuerdo","Más bien en desacuerdo","Más bien en desacuerdo","Más bien en desacuerdo","Más bien en desacuerdo","Más bien en desacuerdo","Más bien en desacuerdo","Totalmente de acuerdo","Totalmente de acuerdo","Más bien en desacuerdo","No se pronuncia","Más bien de acuerdo"]
[null,"Femenino","Urbana","200 - 300","21 - 30","d.-","b.-","d.-","a.-","a.-","a.-","e.-","b.-","a.-","a.-","b.-","Más bien en desacuerdo","Más bien de acuerdo","Más bien en desacuerdo","Totalmente en desacuerdo","Totalmente en desacuerdo","Más bien en desacuerdo","Totalmente en desacuerdo","Totalmente en desacuerdo","Totalmente en desacuerdo","Totalmente de acuerdo","Totalmente en desacuerdo","Más bien de acuerdo","Totalmente en desacuerdo","Totalmente de acuerdo"]
[null,"Femenino","Urbana","160<","21 - 30","d.-","a.-","d.-","a.-","c.-","c.-","e.-","b.-","c.-","d.-","d.-","Más bien en desacuerdo","Totalmente en desacuerdo","Totalmente de acuerdo","Totalmente en desacuerdo","Más bien de acuerdo","Totalmente de acuerdo","Totalmente en desacuerdo","Más bien de acuerdo","Totalmente en desacuerdo","Totalmente de acuerdo","No se pronuncia","No se pronuncia","No se pronuncia","No se pronuncia"]
[null,"Femenino","Urbana","200 - 300","21 - 30","b.-","b.-","b.-","a.-","a.-","a.-","b.-","b.-","d.-","d.-","a.-","Totalmente de acuerdo","Totalmente de acuerdo","Totalmente de acuerdo","Totalmente de acuerdo","Totalmente de acuerdo","Totalmente de acuerdo","Totalmente de acuerdo","Totalmente de acuerdo","Totalmente de acuerdo","Totalmente de acuerdo","Totalmente de acuerdo","Totalmente de acuerdo","Totalmente de acuerdo","Totalmente de acuerdo"]
[null,"Femenino","Urbana","160<","21 - 30","d.-","c.-","c.-","a.-","c.-","b.-","c.-","a.-","b.-","d.-","e.-","Totalmente de acuerdo","Más bien de acuerdo","Totalmente en desacuerdo","Totalmente en desacuerdo","Totalmente de acuerdo","Totalmente de acuerdo","Totalmente en desacuerdo","Más bien en desacuerdo","Totalmente en desacuerdo","Totalmente de acuerdo","Totalmente en desacuerdo","Más bien de acuerdo","Totalmente en desacuerdo","Totalmente de acuerdo"]
[null,"Femenino","Rural","200 - 300","21 - 30","d.-","a.-","d.-","c.-","b.-","c.-","e.-","b.-","b.-","d.-","c.-","Más bien de acuerdo","Más bien en desacuerdo","Totalmente en desacuerdo","Totalmente en desacuerdo","Más bien en desacuerdo","Más bien en desacuerdo","Más bien en desacuerdo","Más bien en desacuerdo","Totalmente de acuerdo","Totalmente de acuerdo","Totalmente en desacuerdo","Totalmente de acuerdo","Totalmente en desacuerdo","Totalmente de acuerdo"]
[null,"Femenino","Urbana","200 - 300","31- 40","c.-","d.-","e.-","b.-","b.-","d.-","e.-","c.-","b.-","b.-","e.-","Más bien en desacuerdo","Totalmente en desacuerdo","Totalmente en desacuerdo","Totalmente en desacuerdo","Totalmente de acuerdo","Totalmente de acuerdo","Totalmente de acuerdo","Totalmente de acuerdo","Más bien de acuerdo","Totalmente de acuerdo","Más bien en desacuerdo","Más bien de acuerdo","Más bien en desacuerdo","Totalmente de acuerdo"]
[null,"Femenino","Urbana","200 - 300","16 - 20","f.-","e.-","c.-","b.-","c.-","a.-","c.-","b.-","b.-","b.-","e.-","Más bien de acuerdo","Totalmente en desacuerdo","Más bien en desacuerdo","Totalmente en desacuerdo","Totalmente de acuerdo","Totalmente de acuerdo","Más bien de acuerdo","Más bien de acuerdo","Totalmente de acuerdo","Totalmente de acuerdo","Totalmente en desacuerdo","Totalmente de acuerdo","Totalmente en desacuerdo","Totalmente de acuerdo"]
[null,"Femenino","Urbana","200 - 300","31- 40","c.-","a.-","b.-","c.-","a.-","a.-","e.-","b.-","a.-","d.-","c.-","Totalmente de acuerdo","Más bien de acuerdo","Más bien de acuerdo","Más bien de acuerdo","Más bien de acuerdo","Totalmente de acuerdo","Más bien de acuerdo","Más bien de acuerdo","Más bien de acuerdo","Más bien de acuerdo","Totalmente en desacuerdo","Más bien de acuerdo","Más bien en desacuerdo","Totalmente de acuerdo"]
[null,"Femenino","Urbana","200 - 300","31- 40","c.-","a.-","e.-","c.-","b.-","a.-","e.-","d.-","c.-","d.-","e.-","Más bien de acuerdo","Más bien de acuerdo","Más bien en desacuerdo","Totalmente en desacuerdo","Totalmente de acuerdo","Totalmente de acuerdo","Más bien en desacuerdo","Totalmente de acuerdo","Totalmente de acuerdo","Totalmente de acuerdo","Totalmente en desacuerdo","Totalmente de acuerdo","Totalmente en desacuerdo","Totalmente de acuerdo"]
[null,"Femenino","Urbana","160<","61 o más","c.-","e.-","e.-","a.-","b.-","e.-","c.-","d.-","c.-","d.-","c.-","Más bien de acuerdo","Más bien de acuerdo","Totalmente en desacuerdo","Totalmente en desacuerdo","Más bien en desacuerdo","Totalmente de acuerdo","Totalmente en desacuerdo","Más bien de acuerdo","Más bien de acuerdo","Más bien en desacuerdo","Totalmente en desacuerdo","Más bien de acuerdo","Más bien de acuerdo","Totalmente de acuerdo"]
[null,"Femenino","Urbana","160<","41 - 50","c.-","c.-","e.-","d.-","b.-","a.-","e.-","c.-","b.-","d.-","c.-","Más bien de acuerdo","Totalmente en desacuerdo","Totalmente en desacuerdo","Totalmente en desacuerdo","Totalmente de acuerdo","Totalmente de acuerdo","Totalmente de acuerdo","Totalmente de acuerdo","Totalmente de acuerdo","Totalmente de acuerdo","Totalmente en desacuerdo","Más bien de acuerdo","Totalmente de acuerdo","Totalmente de acuerdo"]
[null,"Femenino","Urbana","160<","41 - 50","b.-","a.-","a.-","a.-","a.-","c.-","e.-","c.-","a.-","c.-","c.-","Totalmente de acuerdo","Más bien en desacuerdo","Más bien en desacuerdo","Más bien de acuerdo","Totalmente en desacuerdo","Totalmente de acuerdo","Totalmente de acuerdo","Totalmente de acuerdo","Lo ignoro","Totalmente de acuerdo","Más bien en desacuerdo","Totalmente de acuerdo","Totalmente de acuerdo","Totalmente de acuerdo"]
[null,"Femenino","Rural","160<","16 - 20","d.-","a.-","c.-","a.-","a.-","c.-","d.-","b.-","c.-","b.-","b.-","Totalmente de acuerdo","Totalmente en desacuerdo","Más bien de acuerdo","Más bien de acuerdo","Totalmente en desacuerdo","Más bien de acuerdo","Más bien de acuerdo","Más bien de acuerdo","Totalmente de acuerdo","Más bien de acuerdo","Totalmente en desacuerdo","Más bien de acuerdo","Totalmente en desacuerdo","Totalmente de acuerdo"]
[null,"Femenino","Urbana","200 - 300","21 - 30","a.-","b.-","c.-","b.-","c.-","a.-","b.-","a.-","b.-","b.-","e.-","Más bien de acuerdo","Totalmente en desacuerdo","Totalmente en desacuerdo","Totalmente en desacuerdo","Totalmente en desacuerdo","Totalmente en desacuerdo","Totalmente en desacuerdo","Totalmente en desacuerdo","Más bien en desacuerdo","Totalmente en desacuerdo","Totalmente en desacuerdo","Totalmente en desacuerdo","Totalmente en desacuerdo","Totalmente en desacuerdo"]
[null,"Femenino","Urbana","200 - 300","31- 40","b.-","a.-","a.-","a.-","c.-","a.-","d.-","b.-","c.-","d.-","e.-","Totalmente de acuerdo","Más bien en desacuerdo","Más bien en desacuerdo","Más bien en desacuerdo","Totalmente de acuerdo","Más bien de acuerdo","Más bien en desacuerdo","Totalmente de acuerdo","Más bien de acuerdo","Totalmente de acuerdo","Más bien en desacuerdo","Totalmente de acuerdo","Más bien de acuerdo","Más bien de acuerdo"]
[null,"Femenino","Urbana","200 - 300","41 - 50","d.-","a.-","c.-","c.-","c.-","e.-","c.-","b.-","c.-","c.-","c.-","Totalmente en desacuerdo","Totalmente de acuerdo","Más bien de acuerdo","Totalmente de acuerdo","Totalmente en desacuerdo","Más bien de acuerdo","Más bien de acuerdo","Más bien de acuerdo","Más bien en desacuerdo","Totalmente de acuerdo","Totalmente en desacuerdo","Totalmente de acuerdo","Más bien en desacuerdo","Más bien de acuerdo"]
[null,"Femenino","Urbana","200 - 300","31- 40","c.-","c.-","c.-","a.-","b.-","c.-","e.-","c.-","c.-","c.-","e.-","Totalmente de acuerdo","Más bien en desacuerdo","Más bien de acuerdo","Totalmente de acuerdo","Más bien de acuerdo","Más bien de acuerdo","Más bien en desacuerdo","Más bien de acuerdo","Más bien en desacuerdo","Más bien de acuerdo","Totalmente de acuerdo","Más bien de acuerdo","Totalmente de acuerdo","Totalmente de acuerdo"]
[null,"Femenino","Urbana","200 - 300","16 - 20","d.-","b.-","d.-","d.-","b.-","c.-","e.-","c.-","a.-","d.-","b.-","Más bien de acuerdo","Totalmente en desacuerdo","Más bien en desacuerdo","Totalmente en desacuerdo","Más bien en desacuerdo","Totalmente de acuerdo","Más bien en desacuerdo","Totalmente en desacuerdo","Totalmente en desacuerdo","Totalmente de acuerdo","Más bien en desacuerdo","Totalmente de acuerdo","Totalmente en desacuerdo","Totalmente de acuerdo"]
[null,"Femenino","Rural","200 - 300","21 - 30","c.-","b.-","c.-","a.-","b.-","c.-","e.-","b.-","b.-","a.-","d.-","Totalmente de acuerdo","Más bien de acuerdo","Más bien de acuerdo","Totalmente de acuerdo","Más bien de acuerdo","Más bien en desacuerdo","Lo ignoro","Más bien en desacuerdo","Totalmente de acuerdo","Totalmente de acuerdo","Más bien de acuerdo","Más bien en desacuerdo","Más bien de acuerdo","Totalmente en desacuerdo"]
[null,"Femenino","Urbana","200 - 300","21 - 30","c.-","a.-","e.-","a.-","c.-","c.-","e.-","a.-","c.-","d.-","c.-","Más bien en desacuerdo","Totalmente de acuerdo","Totalmente en desacuerdo","Totalmente en desacuerdo","Más bien de acuerdo","Totalmente de acuerdo","Más bien de acuerdo","Totalmente en desacuerdo","Totalmente de acuerdo","Totalmente de acuerdo","Totalmente en desacuerdo","Totalmente de acuerdo","Totalmente en desacuerdo","Totalmente de acuerdo"]
[null,"Femenino","Mixta","200 - 300","21 - 30","c.-","c.-","c.-","b.-","a.-","c.-","d.-","b.-","a.-","d.-","f.-","Totalmente de acuerdo","Más bien en desacuerdo","Totalmente de acuerdo","Totalmente de acuerdo","Más bien de acuerdo","Más bien de acuerdo","Más bien de acuerdo","Más bien de acuerdo","Más bien de acuerdo","Totalmente de acuerdo","Totalmente en desacuerdo","Más bien de acuerdo","Totalmente en desacuerdo","Más bien de acuerdo"]
[null,"Femenino","Urbana","400 - 500 ","21 - 30","c.-","c.-","b.-","a.-","a.-","c.-","d.-","b.-","b.-","c.-","e.-","Totalmente de acuerdo","Más bien de acuerdo","Más bien en desacuerdo","Totalmente en desacuerdo","Totalmente de acuerdo","Totalmente de acuerdo","Totalmente de acuerdo","Totalmente de acuerdo","Totalmente de acuerdo","Totalmente de acuerdo","Totalmente en desacuerdo","Más bien de acuerdo","Más bien en desacuerdo","Totalmente de acuerdo"]
[null,"Femenino","Urbana","160<","21 - 30","b.-","c.-","c.-","c.-","a.-","c.-","d.-","b.-","b.-","c.-","c.-","Totalmente de acuerdo","Más bien en desacuerdo","Más bien en desacuerdo","Más bien en desacuerdo","Lo ignoro","Totalmente en desacuerdo","Más bien en desacuerdo","Más bien en desacuerdo","Más bien de acuerdo","Totalmente de acuerdo","Más bien de acuerdo","Totalmente de acuerdo","Más bien de acuerdo","Más bien en desacuerdo"]
[null,"Femenino","Urbana","160<","21 - 30","d.-","a.-","c.-","b.-","b.-","c.-","e.-","c.-","b.-","c.-","d.-","Más bien de acuerdo","Más bien en desacuerdo","Más bien en desacuerdo","Más bien en desacuerdo","Más bien en desacuerdo","Más bien en desacuerdo","Más bien en desacuerdo","Más bien en desacuerdo","Más bien en desacuerdo","Totalmente de acuerdo","Más bien en desacuerdo","Más bien de acuerdo","No se pronuncia","Más bien de acuerdo"]
[null,"Masculino","Urbana","400 - 500 ","21 - 30","d.-","a.-","b.-","b.-","a.-","c.-","d.-","b.-","a.-","a.-","e.-","Más bien de acuerdo","Más bien de acuerdo","Más bien en desacuerdo","Totalmente en desacuerdo","Más bien en desacuerdo","Más bien en desacuerdo","Más bien en desacuerdo","Más bien en desacuerdo","Más bien en desacuerdo","Totalmente de acuerdo","Totalmente en desacuerdo","Totalmente de acuerdo","Más bien en desacuerdo","Más bien en desacuerdo"]
[null,"Femenino","Urbana","400 - 500 ","51 - 60","d.-","c.-","d.-","a.-","c.-","c.-","d.-","c.-","c.-","d.-","d.-","Totalmente de acuerdo","Totalmente de acuerdo","Totalmente de acuerdo","Totalmente de acuerdo","Más bien en desacuerdo","Más bien de acuerdo","Más bien de acuerdo","Más bien de acuerdo","Totalmente de acuerdo","Totalmente de acuerdo","Totalmente en desacuerdo","Más bien en desacuerdo","No se pronuncia","Totalmente de acuerdo"]
[null,"Masculino","Urbana","600 - 1600 ","51 - 60","d.-","c.-","d.-","b.-","c.-","a.-","e.-","b.-","b.-","d.-","c.-","Lo ignoro","Totalmente en desacuerdo","Totalmente en desacuerdo","Totalmente en desacuerdo","Totalmente en desacuerdo","Totalmente en desacuerdo","Totalmente de acuerdo","Totalmente en desacuerdo","Totalmente en desacuerdo","Totalmente de acuerdo","Totalmente en desacuerdo","Totalmente de acuerdo","Totalmente de acuerdo","Totalmente de acuerdo"]
[null,"Femenino","Urbana",">1700","51 - 60","b.-","a.-","e.-","d.-","c.-","d.-","e.-","b.-","c.-","c.-","c.-","Totalmente en desacuerdo","Lo ignoro","Totalmente en desacuerdo","Totalmente en desacuerdo","Totalmente de acuerdo","Totalmente de acuerdo","Totalmente de acuerdo","Totalmente de acuerdo","Totalmente de acuerdo","Totalmente de acuerdo","Totalmente en desacuerdo","Más bien de acuerdo","Totalmente en desacuerdo","Totalmente de acuerdo"]
[null,"Femenino","Mixta","160<","51 - 60","b.-","a.-","b.-","a.-","b.-","c.-","e.-","b.-","b.-","d.-","c.-","Más bien de acuerdo","Totalmente de acuerdo","Más bien de acuerdo","Totalmente en desacuerdo","Más bien de acuerdo","Más bien de acuerdo","Totalmente de acuerdo","Totalmente de acuerdo","Totalmente de acuerdo","Totalmente de acuerdo","Más bien de acuerdo","Totalmente de acuerdo","Totalmente de acuerdo","Totalmente de acuerdo"]
[null,"Femenino","Urbana","200 - 300","51 - 60","d.-","b.-","d.-","a.-","c.-","a.-","d.-","c.-","c.-","d.-","e.-","Más bien en desacuerdo","Más bien de acuerdo","Más bien en desacuerdo","Totalmente en desacuerdo","Más bien en desacuerdo","Totalmente de acuerdo","Más bien en desacuerdo","Más bien en desacuerdo","Más bien en desacuerdo","Totalmente de acuerdo","Más bien de acuerdo","Totalmente de acuerdo","Más bien de acuerdo","Totalmente de acuerdo"]
[null,"Femenino","Urbana","200 - 300","51 - 60","a.-","a.-","e.-","a.-","a.-","b.-","d.-","d.-","c.-","d.-","c.-","Totalmente de acuerdo","Lo ignoro","Más bien de acuerdo","Totalmente en desacuerdo","Totalmente de acuerdo","Totalmente de acuerdo","Totalmente de acuerdo","Totalmente de acuerdo","Totalmente en desacuerdo","Totalmente de acuerdo","No se pronuncia","Totalmente de acuerdo","No se pronuncia","Totalmente de acuerdo"]
[null,"Femenino","Urbana","160<","51 - 60","c.-","c.-","d.-","c.-","c.-","c.-","e.-","c.-","c.-","d.-","e.-","Totalmente en desacuerdo","Totalmente en desacuerdo","Totalmente en desacuerdo","Totalmente en desacuerdo","Totalmente en desacuerdo","Totalmente de acuerdo","Totalmente de acuerdo","Más bien de acuerdo","Más bien de acuerdo","Totalmente de acuerdo","Totalmente en desacuerdo","Más bien de acuerdo","Totalmente en desacuerdo","Totalmente de acuerdo"]
[null,"Femenino","Urbana","200 - 300","51 - 60","c.-","c.-","a.-","a.-","a.-","a.-","e.-","a.-","a.-","a.-","a.-","Totalmente de acuerdo","Totalmente de acuerdo","Totalmente en desacuerdo","Totalmente de acuerdo","Totalmente de acuerdo","Totalmente en desacuerdo","Totalmente de acuerdo","Totalmente en desacuerdo","Totalmente de acuerdo","Totalmente de acuerdo","Más bien de acuerdo","Totalmente de acuerdo","Más bien en desacuerdo","Totalmente en desacuerdo"]
[null,"Masculino","Urbana","200 - 300","51 - 60","e.-","e.-","c.-","a.-","c.-","a.-","b.-","d.-","c.-","d.-","b.-","Totalmente de acuerdo","Totalmente en desacuerdo","Totalmente en desacuerdo","Totalmente en desacuerdo","Totalmente en desacuerdo","Totalmente en desacuerdo","Totalmente en desacuerdo","Totalmente en desacuerdo","Totalmente en desacuerdo","Totalmente de acuerdo","Totalmente en desacuerdo","Más bien de acuerdo","Totalmente de acuerdo","Totalmente de acuerdo"]
[null,"Femenino","Urbana","400 - 500 ","51 - 60","d.-","b.-","b.-","b.-","b.-","d.-","e.-","b.-","c.-","d.-","c.-","Más bien en desacuerdo","Totalmente en desacuerdo","Totalmente en desacuerdo","Totalmente en desacuerdo","Más bien en desacuerdo","Totalmente de acuerdo","Totalmente de acuerdo","Más bien en desacuerdo","Más bien de acuerdo","Totalmente de acuerdo","Totalmente en desacuerdo","Totalmente en desacuerdo","Totalmente en desacuerdo","Totalmente de acuerdo"]
[null,"Femenino","Urbana","160<","51 - 60","c.-","c.-","c.-","a.-","a.-","c.-","e.-","b.-","a.-","a.-","c.-","Más bien de acuerdo","Totalmente de acuerdo","Totalmente de acuerdo","Más bien en desacuerdo","Totalmente de acuerdo","Totalmente en desacuerdo","Totalmente de acuerdo","Totalmente de acuerdo","Totalmente de acuerdo","Totalmente de acuerdo","Totalmente de acuerdo","Más bien de acuerdo","Totalmente de acuerdo","Totalmente de acuerdo"]
[null,null,"Rural","200 - 300","51 - 60","b.-","c.-","b.-","a.-","a.-","a.-","e.-","a.-","c.-","d.-","d.-","Totalmente en desacuerdo","Totalmente en desacuerdo","Más bien en desacuerdo","Lo ignoro","Totalmente de acuerdo","Totalmente de acuerdo","Totalmente de acuerdo","Totalmente de acuerdo","Totalmente en desacuerdo","Totalmente de acuerdo","Totalmente de acuerdo","Más bien en desacuerdo","Totalmente de acuerdo","Totalmente de acuerdo"]
[null,"Masculino","Urbana","600 - 1600 ","51 - 60","c.-","a.-","c.-","c.-","b.-","a.-","b.-","b.-","c.-","d.-","a.-","Más bien en desacuerdo","Más bien de acuerdo","Más bien en desacuerdo","Totalmente en desacuerdo","Totalmente en desacuerdo","Totalmente de acuerdo","Totalmente en desacuerdo","Totalmente de acuerdo","Totalmente de acuerdo","Totalmente de acuerdo","Totalmente de acuerdo","Totalmente de acuerdo","Totalmente de acuerdo","Totalmente de acuerdo"]
[null,"Femenino","Urbana","160<","51 - 60","c.-","a.-","b.-","a.-","a.-","c.-","e.-","b.-","a.-","c.-",null,"Más bien en desacuerdo","Más bien de acuerdo","Más bien en desacuerdo","Totalmente en desacuerdo","Más bien en desacuerdo","Totalmente de acuerdo","Más bien de acuerdo","Más bien en desacuerdo","Más bien de acuerdo","Más bien de acuerdo","Más bien en desacuerdo","Totalmente de acuerdo","Totalmente en desacuerdo","Totalmente de acuerdo"]
[null,"Masculino","Urbana","200 - 300","51 - 60","c.-","c.-","c.-","b.-","b.-","c.-","d.-","b.-","a.-","d.-","f.-","Totalmente de acuerdo","Totalmente en desacuerdo","Totalmente en desacuerdo","Lo ignoro","Lo ignoro","Más bien de acuerdo","Más bien de acuerdo","Más bien de acuerdo","Más bien de acuerdo","Más bien de acuerdo","Totalmente en desacuerdo","Más bien de acuerdo","Totalmente en desacuerdo","Más bien en desacuerdo"]
[null,"Femenino","Urbana","160<","51 - 60","d.-","c.-","c.-","b.-",null,"c.-","d.-","b.-","a.-","d.-","f.-","Más bien en desacuerdo","Totalmente en desacuerdo","Totalmente en desacuerdo","Totalmente en desacuerdo","Totalmente de acuerdo","Totalmente en desacuerdo","Totalmente de acuerdo","Totalmente de acuerdo","Totalmente de acuerdo","Totalmente de acuerdo","Totalmente en desacuerdo","Totalmente de acuerdo","Totalmente en desacuerdo","Más bien en desacuerdo"]
[null,"Masculino","Urbana","200 - 300","51 - 60","d.-","c.-","c.-","a.-","a.-","c.-","e.-","b.-","b.-","d.-","e.-","Totalmente de acuerdo","Totalmente en desacuerdo","Totalmente en desacuerdo","Totalmente en desacuerdo","Más bien en desacuerdo","Totalmente de acuerdo","Totalmente de acuerdo","Totalmente en desacuerdo","Totalmente de acuerdo","Totalmente de acuerdo","Totalmente en desacuerdo","Totalmente de acuerdo","Más bien de acuerdo","Totalmente de acuerdo"]
[null,"Masculino","Rural","200 - 300","51 - 60","d.-","c.-","a.-","a.-","a.-","c.-","e.-","c.-","b.-","b.-","e.-","Totalmente de acuerdo","Más bien en desacuerdo","Más bien en desacuerdo","Más bien en desacuerdo","Más bien de acuerdo","Totalmente de acuerdo","Totalmente en desacuerdo","Totalmente de acuerdo","Totalmente en desacuerdo","Totalmente de acuerdo","Totalmente en desacuerdo","Totalmente de acuerdo","Totalmente de acuerdo","Totalmente de acuerdo"]
[null,"Femenino","Rural","160<","51 - 60","a.-","b.-","b.-","a.-","b.-","a.-","e.-","a.-","a.-","a.-","b.-","Totalmente de acuerdo","Totalmente de acuerdo","Totalmente de acuerdo","Totalmente de acuerdo","Totalmente de acuerdo","Totalmente de acuerdo","Totalmente de acuerdo","Totalmente de acuerdo","Totalmente de acuerdo","Totalmente de acuerdo","Totalmente de acuerdo","Totalmente de acuerdo","Totalmente de acuerdo","Totalmente de acuerdo"]
[null,"Femenino","Urbana","160<","51 - 60","c.-","d.-","e.-","d.-","c.-","c.-","e.-","d.-","c.-","d.-","c.-","Más bien en desacuerdo","Más bien en desacuerdo","Más bien en desacuerdo","Más bien en desacuerdo","Totalmente en desacuerdo","Más bien en desacuerdo","Lo ignoro","Más bien de acuerdo","Más bien en desacuerdo","Totalmente de acuerdo","Totalmente en desacuerdo","Totalmente en desacuerdo","Totalmente en desacuerdo","Totalmente en desacuerdo"]
[null,"Masculino","Urbana","400 - 500 ","51 - 60","d.-","a.-","c.-","a.-","a.-","d.-","e.-","a.-","b.-","d.-","c.-","Totalmente de acuerdo","Más bien en desacuerdo","Más bien en desacuerdo","Más bien en desacuerdo","Más bien en desacuerdo","Totalmente de acuerdo","Totalmente de acuerdo","Más bien en desacuerdo","Totalmente de acuerdo","Totalmente de acuerdo","Más bien en desacuerdo","Totalmente de acuerdo","Totalmente de acuerdo","Más bien en desacuerdo"]
[null,"Femenino","Mixta","200 - 300","51 - 60","b.-","c.-","c.-","c.-","b.-","c.-","e.-","b.-","b.-","d.-","b.-","Totalmente de acuerdo","Totalmente en desacuerdo","Totalmente en desacuerdo","Totalmente en desacuerdo","Totalmente en desacuerdo","Totalmente de acuerdo","Totalmente de acuerdo","Totalmente de acuerdo","Más bien de acuerdo","Totalmente de acuerdo","Más bien en desacuerdo","Totalmente de acuerdo","Totalmente de acuerdo","Totalmente de acuerdo"]
[null,"Femenino","Urbana","200 - 300","51 - 60","b.-","a.-","c.-","b.-","a.-","c.-","e.-","b.-","a.-","c.-","c.-","Totalmente de acuerdo","Más bien en desacuerdo","Totalmente en desacuerdo","Más bien en desacuerdo","Lo ignoro","Totalmente de acuerdo","Más bien en desacuerdo","Totalmente de acuerdo","Totalmente en desacuerdo","Totalmente de acuerdo","Totalmente en desacuerdo","Totalmente de acuerdo","Más bien de acuerdo","Totalmente de acuerdo"]
[null,"Femenino","Urbana","200 - 300","51 - 60","c.-","e.-","c.-","a.-","b.-","c.-","e.-","a.-","c.-","d.-","c.-","Más bien de acuerdo","Totalmente de acuerdo","Totalmente de acuerdo","Totalmente de acuerdo","Totalmente en desacuerdo","Totalmente de acuerdo","Más bien en desacuerdo","Más bien en desacuerdo","Más bien en desacuerdo","Más bien de acuerdo","Totalmente en desacuerdo","Totalmente en desacuerdo","Totalmente en desacuerdo","Totalmente en desacuerdo"]
[null,"Femenino","Mixta","160<","51 - 60","c.-","e.-","d.-","a.-","b.-","a.-","c.-","a.-","b.-","d.-","d.-","Más bien en desacuerdo","Más bien en desacuerdo","Más bien en desacuerdo","Totalmente en desacuerdo","Más bien en desacuerdo","Más bien en desacuerdo","Más bien en desacuerdo","Totalmente en desacuerdo","Más bien en desacuerdo","Totalmente de acuerdo","Más bien en desacuerdo","Más bien de acuerdo","Más bien en desacuerdo","Más bien de acuerdo"]
[null,"Masculino","Urbana","200 - 300","51 - 60","c.-","c.-","c.-","b.-","a.-","b.-","d.-","c.-","c.-","d.-","c.-","Más bien en desacuerdo","Más bien en desacuerdo","Más bien de acuerdo","Más bien en desacuerdo","Más bien en desacuerdo","Más bien en desacuerdo","Más bien en desacuerdo","Más bien en desacuerdo","Más bien en desacuerdo","Totalmente de acuerdo","Más bien en desacuerdo","Más bien de acuerdo","Más bien en desacuerdo","Totalmente de acuerdo"]
[null,null,"Urbana","200 - 300","51 - 60","c.-","b.-","c.-","c.-","a.-","c.-","e.-","b.-","a.-","d.-","d.-","Totalmente de acuerdo","Totalmente de acuerdo","Totalmente de acuerdo","Más bien en desacuerdo","Totalmente de acuerdo","Totalmente de acuerdo","Más bien de acuerdo","Más bien en desacuerdo","Más bien en desacuerdo","Totalmente de acuerdo","Más bien en desacuerdo","Más bien de acuerdo","Más bien en desacuerdo","Más bien de acuerdo"]
[null,"Femenino","Urbana","200 - 300","51 - 60","d.-","b.-","b.-","b.-","a.-","a.-","e.-","c.-","c.-","d.-","f.-","Más bien en desacuerdo","Más bien en desacuerdo","Más bien en desacuerdo","Totalmente en desacuerdo","Totalmente de acuerdo","Totalmente de acuerdo","Totalmente de acuerdo","Totalmente de acuerdo","Totalmente de acuerdo","Totalmente de acuerdo","Más bien en desacuerdo","Totalmente de acuerdo","Más bien en desacuerdo","Totalmente de acuerdo"]
[null,"Femenino","Urbana","200 - 300","51 - 60","c.-","b.-","b.-","a.-","a.-","d.-","e.-","c.-","a.-","d.-","e.-","Totalmente de acuerdo","Totalmente de acuerdo","Más bien de acuerdo","Más bien de acuerdo","Más bien de acuerdo","Totalmente de acuerdo","Totalmente de acuerdo","Más bien en desacuerdo","Más bien en desacuerdo","Totalmente de acuerdo","Más bien en desacuerdo","Totalmente de acuerdo","Totalmente de acuerdo","Más bien en desacuerdo"]
[null,"Femenino","Mixta","160<","51 - 60","c.-","c.-","c.-","b.-","a.-","c.-","e.-","b.-","b.-","c.-","e.-","Más bien de acuerdo","Más bien de acuerdo","Más bien en desacuerdo","Totalmente en desacuerdo","Más bien en desacuerdo","Más bien en desacuerdo","Más bien de acuerdo","Totalmente de acuerdo","Más bien de acuerdo","Totalmente de acuerdo","Más bien en desacuerdo","Más bien de acuerdo","Más bien de acuerdo","Totalmente de acuerdo"]

{"sheet":"GRÁFICOS","index":4,"n_rows":317,"n_cols":14,"rows_kept":317,"cut":false,"hidden":false,"merged":[[315,0,315,19],[316,0,316,19],[309,0,309,19],[312,0,312,19],[313,0,313,19],[314,0,314,19],[310,0,310,19],[311,0,311,19],[307,0,307,19],[308,0,308,19],[9,0,9,19],[57,1,57,9],[95,1,95,3],[76,1,76,3],[113,1,113,2],[38,1,38,4],[117,1,117,2],[116,1,116,2],[115,1,115,2],[153,1,153,3],[130,1,130,4],[131,1,131,4],[147,1,147,13],[124,1,124,13],[273,1,273,3],[248,1,248,3],[247,1,247,3],[246,1,246,3],[245,1,245,3],[302,1,302,17],[33,1,33,13],[51,1,51,13],[70,1,70,13],[89,1,89,13],[106,1,106,13],[168,1,168,13],[190,1,190,13],[220,1,220,13],[241,1,241,13],[271,1,271,13],[244,1,244,3],[243,1,243,3],[224,1,224,4],[174,1,174,2],[195,1,195,2]]}
[]
[]
[]
[]
[]
["I. MUNICIPALIDAD DE SAN BERNARDO"]
["DIRECCION DE DESARROLLO COMUNITARIO"]
["DEPARTAMENTO DE DESARROLLO LOCAL SUSTENTABLE"]
[]
["ENCUESTA A LA COMUNIDAD"]
[]
["I DETERMINACION DEL TAMAÑO DE LA MUESTRA"]
[]
["1. El tamaño de la muestra se determina en concordancia con el la \"Guía Encuesta SCAM habitantes\" entregado por el Ministerio de Medio Ambiente, basado en la población comunal."]
["2. Según proyecciones de la población de San Bernardo, entregadas en el PLADECO 2011 - 2020, se puede estimar la población al año 2014 en 302.777 habitantes."]
["3. Con lo anterior, se determina el tamaño de la muestra en 353 encuestas."]
["4. En la muestra se mantiene la distribución poblacional por rangos etarios, entregados en el PLADECO 2012 - 2022, conforme a la Guía Encuestas SCAM habitantes."]
["5. La cantidad de encuestas aplicadas a la comunidad según rangos etarios es:"]
[]
[]
[null,null,null,null,null,"RANGO ETARIO","%","TOTAL ENCUESTAS"]
[null,null,null,null,null,"16-20",12.428295043685733,44]
[null,null,null,null,null,"21-30",22.474603613309345,79]
[null,null,null,null,null,"31-40",23.096751631516902,82]
[null,null,null,null,null,"41-50",18.81109375088133,66]
[null,null,null,null,null,"51-60",11.403414763465303,40]
[null,null,null,null,null,"61 Y MAS",11.78584119714138,42]
[null,null,null,null,null,"TOTAL",null,{"$f":"SUM(H22:H27)","v":353}]
[]
[]
["II ANALISIS DE RESULTADOS"]
[]
[]
[null,"1.- ¿Cuál de las siguientes instituciones, cree usted, que es la responsanle de elaborar las ordenanzas ambientales?"]
[]
[]
[]
[]
[null,"Detalle",null,null,null,"Conteo"]
["a.-","a) El Congreso",null,null,null,{"$f":"COUNTIF(RESPUESTAS!F:F,GRÁFICOS!A40)","v":12}]
["b.-","b) La Superintendencia del medioambiente",null,null,null,{"$f":"COUNTIF(RESPUESTAS!F:F,GRÁFICOS!A41)","v":59}]
["c.-","c) El Municipio",null,null,null,{"$f":"COUNTIF(RESPUESTAS!F:F,GRÁFICOS!A42)","v":106}]
["d.-","d) El Ministerio del  medio ambiente",null,null,null,{"$f":"COUNTIF(RESPUESTAS!F:F,GRÁFICOS!A43)","v":133}]
["e.-","e) ministerio de salud",null,null,null,{"$f":"COUNTIF(RESPUESTAS!F:F,GRÁFICOS!A44)","v":20}]
["f.-","f) No lo sé",null,null,null,{"$f":"COUNTIF(RESPUESTAS!F:F,GRÁFICOS!A45)","v":23}]
[]
[]
[]
[]
[]
[]
[null,"2.- Una Ordenanza ambiental es un instrumento:"]
[]
[]
[]
[]
[]
[null,"Detalle",null,null,null,null,null,null,null,null,"Conteo"]
["a.-","a)  Legal que permite normar y sancionar conductas ambientales de las empresas y el comercio.",null,null,null,null,null,null,null,null,{"$f":"COUNTIF(RESPUESTAS!G:G,GRÁFICOS!A59)","v":134}]
["b.-","b)  Administrativo que permite normar y sancionar conductas ambientales de las personas.",null,null,null,null,null,null,null,null,{"$f":"COUNTIF(RESPUESTAS!G:G,GRÁFICOS!A60)","v":64}]
["c.-","c)  Jurídico que permite normar y sancionar conductas ambientales de la comunidad.",null,null,null,null,null,null,null,null,{"$f":"COUNTIF(RESPUESTAS!G:G,GRÁFICOS!A61)","v":82}]
["d.-","d)  Financiero que permite normar y sancionar conductas ambientales de las personas. ",null,null,null,null,null,null,null,null,{"$f":"COUNTIF(RESPUESTAS!G:G,GRÁFICOS!A62)","v":14}]
["e.-","e) No lo  sé",null,null,null,null,null,null,null,null,{"$f":"COUNTIF(RESPUESTAS!G:G,GRÁFICOS!A63)","v":59}]
[]
[]
[]
[]
[]
[]
[]
[null,"3.- ¿Cómo evaluaría la contribución que hace el municipio a la protección o cuidado del medio ambiente en su comuna?:"]
[]
[]
[]
[]
[]
[null,"Detalle",null,null,"conteo"]
["a.-","a) Diariamente",null,null,{"$f":"COUNTIF(RESPUESTAS!H:H,GRÁFICOS!A78)","v":39}]
["b.-","b) Algunas veces a la semana",null,null,{"$f":"COUNTIF(RESPUESTAS!H:H,GRÁFICOS!A79)","v":100}]
["c.-","c) Alguna vez al mes",null,null,{"$f":"COUNTIF(RESPUESTAS!H:H,GRÁFICOS!A80)","v":141}]
["d.-","d)rara vez",null,null,{"$f":"COUNTIF(RESPUESTAS!H:H,GRÁFICOS!A81)","v":45}]
["e.-","e)Nunca",null,null,{"$f":"COUNTIF(RESPUESTAS!H:H,GRÁFICOS!A82)","v":28}]
[]
[]
[]
[]
[]
[]
[]
[null,"4.- Ante la siguiente afirmación: \"Los/as vecinos/as del municipio están muy preocupados por los temas ambientales\", ¿usted estaría?:"]
[]
[]
[]
[]
[]
[null,"Detalle",null,null,"Conteo"]
["a.-","a)     Totalmente de acuerdo",null,null,{"$f":"COUNTIF(RESPUESTAS!I:I,GRÁFICOS!A97)","v":157}]
["b.-","b)     Más bien de acuerdo",null,null,{"$f":"COUNTIF(RESPUESTAS!I:I,GRÁFICOS!A98)","v":94}]
["c.-","c)      Más bien en desacuerdo",null,null,{"$f":"COUNTIF(RESPUESTAS!I:I,GRÁFICOS!A99)","v":78}]
["d.-","d)     Totalmente en desacuerdo",null,null,{"$f":"COUNTIF(RESPUESTAS!I:I,GRÁFICOS!A100)","v":24}]
[]
[]
[]
[]
[]
[]
[null,"5.- Respecto del territorio de su comuna, ¿cree que la situación medioambiental en los últimos 5 años se ha?:"]
[]
[]
[]
[]
[]
[]
[null,"Detalle",null,"Conteo"]
["a.-","a)     Mejorado",null,{"$f":"COUNTIF(RESPUESTAS!J:J,GRÁFICOS!A115)","v":120}]
["b.-","b)     Mantenido",null,{"$f":"COUNTIF(RESPUESTAS!J:J,GRÁFICOS!A116)","v":131}]
["c.-","c)      Empeorado",null,{"$f":"COUNTIF(RESPUESTAS!J:J,GRÁFICOS!A117)","v":92}]
["d.-","d)     No sé",null,{"$f":"COUNTIF(RESPUESTAS!J:J,GRÁFICOS!A118)","v":9}]
[]
[]
[]
[]
[]
[]
[null,"6.- ¿Cuál de los siguientes problemas ambientales el que más afecta en su comuna?. "]
[]
[]
[]
[]
[]
[null,"Detalle",null,null,null,"Conteo1","Conteo 2"]
["a.-","a)     Contaminación del aire ",null,null,null,{"$f":"COUNTIF(RESPUESTAS!K:K,GRÁFICOS!A132)","v":113},{"$f":"COUNTIF(RESPUESTAS!L:L,GRÁFICOS!A132)","v":9}]
["b.-","b)     Contaminación del agua ",null,null,null,{"$f":"COUNTIF(RESPUESTAS!K:K,GRÁFICOS!A133)","v":27},{"$f":"COUNTIF(RESPUESTAS!L:L,GRÁFICOS!A133)","v":21}]
["c.-","c)      Contaminación del suelo ",null,null,null,{"$f":"COUNTIF(RESPUESTAS!K:K,GRÁFICOS!A134)","v":120},{"$f":"COUNTIF(RESPUESTAS!L:L,GRÁFICOS!A134)","v":70}]
["d.-","d)     Perdida de flora y fauna ",null,null,null,{"$f":"COUNTIF(RESPUESTAS!K:K,GRÁFICOS!A135)","v":46},{"$f":"COUNTIF(RESPUESTAS!L:L,GRÁFICOS!A135)","v":68}]
["e.-","e)      Tenencia irresponsable de mascota",null,null,null,{"$f":"COUNTIF(RESPUESTAS!K:K,GRÁFICOS!A136)","v":47},{"$f":"COUNTIF(RESPUESTAS!L:L,GRÁFICOS!A136)","v":185}]
["f.-","f)        No existen problemas ambientales",null,null,null,{"$f":"COUNTIF(RESPUESTAS!K:K,GRÁFICOS!A137)","v":0},{"$f":"COUNTIF(RESPUESTAS!L:L,GRÁFICOS!A137)","v":0}]
[]
[]
[]
[]
[]
[]
[]
[]
[]
[]
[null,"7.- Ante la siguiente afirmación: \"en el país las personas están cambiando su comportamiento en forma positiva para la protección o conservación del medio ambiente\" ¿Usted está?:"]
[]
[]
[]
[]
[]
[null,"Detalle",null,null,"Conteo"]
["a.-","a)     Totalmente de acuerdo",null,null,{"$f":"COUNTIF(RESPUESTAS!M:M,A155)","v":87}]
["b.-","b)     Más bien de acuerdo",null,null,{"$f":"COUNTIF(RESPUESTAS!M:M,A156)","v":153}]
["c.-","c)      Más bien en desacuerdo",null,null,{"$f":"COUNTIF(RESPUESTAS!M:M,A157)","v":78}]
["d.-","d)     Totalmente en desacuerdo",null,null,{"$f":"COUNTIF(RESPUESTAS!M:M,A158)","v":35}]
[]
[]
[]
[]
[]
[]
[]
[]
[]
[]
[null,"8.- ¿Cree que en el país la situación ambiental en los últimos10 años se ha?:"]
[]
[]
[]
[]
[]
[null,"Detalle",null,"Conteo"]
["a.-","a)     Mejorado",null,{"$f":"COUNTIF(RESPUESTAS!N:N,GRÁFICOS!A176)","v":89}]
["b.-","b)     Mantenido",null,{"$f":"COUNTIF(RESPUESTAS!N:N,GRÁFICOS!A177)","v":131}]
["c.-","c)      Empeorado",null,{"$f":"COUNTIF(RESPUESTAS!N:N,GRÁFICOS!A178)","v":122}]
["d.-","d)     No sé",null,{"$f":"COUNTIF(RESPUESTAS!N:N,GRÁFICOS!A179)","v":11}]
[]
[]
[]
[]
[]
[]
[]
[]
[]
[]
[]
[null,"9.- A su juicio, ¿quién es el principal responsable de los problemas ambientales en el país?"]
[]
[]
[]
[]
[null,"Detalle",null,"Conteo"]
["a.-","a)     Sector Público",null,{"$f":"COUNTIF(RESPUESTAS!O:O,GRÁFICOS!A197)","v":18}]
["b.-","b)     Sector Privado",null,{"$f":"COUNTIF(RESPUESTAS!O:O,GRÁFICOS!A198)","v":26}]
["c.-","c)      La Población",null,{"$f":"COUNTIF(RESPUESTAS!O:O,GRÁFICOS!A199)","v":49}]
["d.-","d)     Todos por igual",null,{"$f":"COUNTIF(RESPUESTAS!O:O,GRÁFICOS!A200)","v":260}]
[]
[]
[]
[]
[]
[]
[]
[]
[]
[]
[]
[]
[]
[]
[]
[]
[]
[]
[]
[]
[null,"10.- El concepto de medio ambiente para usted es sinónimo de:"]
[]
[]
[]
[null,"Detalle",null,null,null,"Conteo"]
["a.-","a)     Ecología",null,null,null,{"$f":"COUNTIF(RESPUESTAS!P:P,GRÁFICOS!A226)","v":27}]
["b.-","b)     Naturaleza y sociedad",null,null,null,{"$f":"COUNTIF(RESPUESTAS!P:P,GRÁFICOS!A227)","v":50}]
["c.-","c)      Sociedad, Naturaleza y Ciudad ",null,null,null,{"$f":"COUNTIF(RESPUESTAS!P:P,GRÁFICOS!A228)","v":98}]
["d.-","d)     Ciudad y naturaleza",null,null,null,{"$f":"COUNTIF(RESPUESTAS!P:P,GRÁFICOS!A229)","v":21}]
["e.-","e)      Ecología, Sociedad y Ciudad",null,null,null,{"$f":"COUNTIF(RESPUESTAS!P:P,GRÁFICOS!A230)","v":110}]
["f.-","f)       Naturaleza",null,null,null,{"$f":"COUNTIF(RESPUESTAS!P:P,GRÁFICOS!A231)","v":46}]
[]
[]
[]
[]
[]
[]
[]
[]
[]
[]
[null,"11.- Por favor, indique cuan de acuerdo o en desacuero está con los siguientes enunciados:"]
[]
[null,"Criterio",null,null,"11.a","11.b","11.c","11.d","11.e","11.f","11.g","11.h","11.i","11.j"]
[null,"Totalmente de acuerdo",null,null,{"$f":"COUNTIF(RESPUESTAS!Q:Q,GRÁFICOS!B245)","v":87},{"$f":"COUNTIF(RESPUESTAS!R:R,GRÁFICOS!B245)","v":39},{"$f":"COUNTIF(RESPUESTAS!S:S,GRÁFICOS!B245)","v":21},{"$f":"COUNTIF(RESPUESTAS!T:T,B245)","v":34},{"$f":"COUNTIF(RESPUESTAS!U:U,GRÁFICOS!B245)","v":65},{"$f":"COUNTIF(RESPUESTAS!V:V,GRÁFICOS!B245)","v":140},{"$f":"COUNTIF(RESPUESTAS!W:W,GRÁFICOS!B245)","v":94},{"$f":"COUNTIF(RESPUESTAS!X:X,GRÁFICOS!B245)","v":73},{"$f":"COUNTIF(RESPUESTAS!Y:Y,GRÁFICOS!B245)","v":79},{"$f":"COUNTIF(RESPUESTAS!Z:Z,GRÁFICOS!B245)","v":192}]
[null,"Más bien de acuerdo",null,null,{"$f":"COUNTIF(RESPUESTAS!Q:Q,GRÁFICOS!B246)","v":57},{"$f":"COUNTIF(RESPUESTAS!R:R,GRÁFICOS!B246)","v":42},{"$f":"COUNTIF(RESPUESTAS!S:S,GRÁFICOS!B246)","v":38},{"$f":"COUNTIF(RESPUESTAS!T:T,B246)","v":17},{"$f":"COUNTIF(RESPUESTAS!U:U,GRÁFICOS!B246)","v":47},{"$f":"COUNTIF(RESPUESTAS!V:V,GRÁFICOS!B246)","v":42},{"$f":"COUNTIF(RESPUESTAS!W:W,GRÁFICOS!B246)","v":58},{"$f":"COUNTIF(RESPUESTAS!X:X,GRÁFICOS!B246)","v":63},{"$f":"COUNTIF(RESPUESTAS!Y:Y,GRÁFICOS!B246)","v":59},{"$f":"COUNTIF(RESPUESTAS!Z:Z,GRÁFICOS!B246)","v":33}]
[null,"Más bien en desacuerdo",null,null,{"$f":"COUNTIF(RESPUESTAS!Q:Q,GRÁFICOS!B247)","v":61},{"$f":"COUNTIF(RESPUESTAS!R:R,GRÁFICOS!B247)","v":63},{"$f":"COUNTIF(RESPUESTAS!S:S,GRÁFICOS!B247)","v":72},{"$f":"COUNTIF(RESPUESTAS!T:T,B247)","v":47},{"$f":"COUNTIF(RESPUESTAS!U:U,GRÁFICOS!B247)","v":62},{"$f":"COUNTIF(RESPUESTAS!V:V,GRÁFICOS!B247)","v":31},{"$f":"COUNTIF(RESPUESTAS!W:W,GRÁFICOS!B247)","v":49},{"$f":"COUNTIF(RESPUESTAS!X:X,GRÁFICOS!B247)","v":46},{"$f":"COUNTIF(RESPUESTAS!Y:Y,GRÁFICOS!B247)","v":45},{"$f":"COUNTIF(RESPUESTAS!Z:Z,GRÁFICOS!B247)","v":4}]
[null,"Totalmente en desacuerdo",null,null,{"$f":"COUNTIF(RESPUESTAS!Q:Q,GRÁFICOS!B248)","v":34},{"$f":"COUNTIF(RESPUESTAS!R:R,GRÁFICOS!B248)","v":88},{"$f":"COUNTIF(RESPUESTAS!S:S,GRÁFICOS!B248)","v":109},{"$f":"COUNTIF(RESPUESTAS!T:T,B248)","v":131},{"$f":"COUNTIF(RESPUESTAS!U:U,GRÁFICOS!B248)","v":44},{"$f":"COUNTIF(RESPUESTAS!V:V,GRÁFICOS!B248)","v":22},{"$f":"COUNTIF(RESPUESTAS!W:W,GRÁFICOS!B248)","v":31},{"$f":"COUNTIF(RESPUESTAS!X:X,GRÁFICOS!B248)","v":46},{"$f":"COUNTIF(RESPUESTAS!Y:Y,GRÁFICOS!B248)","v":44},{"$f":"COUNTIF(RESPUESTAS!Z:Z,GRÁFICOS!B248)","v":9}]
[null,"Lo ignoro",null,null,{"$f":"COUNTIF(RESPUESTAS!Q:Q,GRÁFICOS!B249)","v":57},{"$f":"COUNTIF(RESPUESTAS!R:R,GRÁFICOS!B249)","v":64},{"$f":"COUNTIF(RESPUESTAS!S:S,GRÁFICOS!B249)","v":56},{"$f":"COUNTIF(RESPUESTAS!T:T,B249)","v":67},{"$f":"COUNTIF(RESPUESTAS!U:U,GRÁFICOS!B249)","v":78},{"$f":"COUNTIF(RESPUESTAS!V:V,GRÁFICOS!B249)","v":62},{"$f":"COUNTIF(RESPUESTAS!W:W,GRÁFICOS!B249)","v":64},{"$f":"COUNTIF(RESPUESTAS!X:X,GRÁFICOS!B249)","v":68},{"$f":"COUNTIF(RESPUESTAS!Y:Y,GRÁFICOS!B249)","v":69},{"$f":"COUNTIF(RESPUESTAS!Z:Z,GRÁFICOS!B249)","v":58}]
[]
[]
[]
[]
[]
[]
[]
[]
[]
[]
[]
[]
[]
[]
[]
[]
[]
[]
[]
[]
[]
[]
[null,"12.- se presenta la siguiente situación: Existe un conflicto entre una empresa y una(s) comunidad(es) local(es) producto del uso o futura explotación que desea hacer la empresa sobre un determinado recurso natural. Por favor, indique cuan de acuerdo está con los siguientes enunciados."]
[]
[null,"Criterio",null,null,"12.a.-","12.b.-","12.c.-","12.d.-"]
[null,"Totalmente de acuerdo",null,null,{"$f":"COUNTIF(RESPUESTAS!AA:AA,GRÁFICOS!B275)","v":31},{"$f":"COUNTIF(RESPUESTAS!AB:AB,GRÁFICOS!B275)","v":124},{"$f":"COUNTIF(RESPUESTAS!AC:AC,GRÁFICOS!B275)","v":56},{"$f":"COUNTIF(RESPUESTAS!AD:AD,GRÁFICOS!B275)","v":158}]
[null,"Más bien de acuerdo",null,null,{"$f":"COUNTIF(RESPUESTAS!AA:AA,GRÁFICOS!B276)","v":23},{"$f":"COUNTIF(RESPUESTAS!AB:AB,GRÁFICOS!B276)","v":79},{"$f":"COUNTIF(RESPUESTAS!AC:AC,GRÁFICOS!B276)","v":29},{"$f":"COUNTIF(RESPUESTAS!AD:AD,GRÁFICOS!B276)","v":39}]
[null,"Más bien en desacuerdo",null,null,{"$f":"COUNTIF(RESPUESTAS!AA:AA,GRÁFICOS!B277)","v":42},{"$f":"COUNTIF(RESPUESTAS!AB:AB,GRÁFICOS!B277)","v":13},{"$f":"COUNTIF(RESPUESTAS!AC:AC,GRÁFICOS!B277)","v":37},{"$f":"COUNTIF(RESPUESTAS!AD:AD,GRÁFICOS!B277)","v":12}]
[null,"Totalmente en desacuerdo",null,null,{"$f":"COUNTIF(RESPUESTAS!AA:AA,GRÁFICOS!B278)","v":122},{"$f":"COUNTIF(RESPUESTAS!AB:AB,GRÁFICOS!B278)","v":6},{"$f":"COUNTIF(RESPUESTAS!AC:AC,GRÁFICOS!B278)","v":90},{"$f":"COUNTIF(RESPUESTAS!AD:AD,GRÁFICOS!B278)","v":11}]
[null,"No se pronuncia",null,null,{"$f":"COUNTIF(RESPUESTAS!AA:AA,GRÁFICOS!B279)","v":72},{"$f":"COUNTIF(RESPUESTAS!AB:AB,GRÁFICOS!B279)","v":68},{"$f":"COUNTIF(RESPUESTAS!AC:AC,GRÁFICOS!B279)","v":78},{"$f":"COUNTIF(RESPUESTAS!AD:AD,GRÁFICOS!B279)","v":70}]
[]
[]
[]
[]
[]
[]
[]
[]
[]
[]
[]
[]
[]
[]
[]
[]
[]
[]
[]
[]
[]
[]
[]
[]
[]
[]
[]
["III COMENTARIOS"]
["1. La comunidad no tiene claridad respecto de cuál es el órgano del Estado que elabora las Ordenanzas Municipales. El 38% de los resultados se inclinan por la opción de Ministerio de Medio Ambiente, le sigue un 30 % que optó por el Municipio."]
["2. La comunidad, sabe que las ordenanzas son instrumentos legales pero, al parecer cree que la normativa ambiental es sólo aplicable a las actividades económicas, como lo señala el 38% de los resultados. Sólo el 23% indica que son aplicables a la comunidad en general."]
["3. No obstante la actividad municipal en materia de medio ambiente es permanente, el 40% de los resultados muestran que sólo percibe acciones con frecuencia mensual. El 28% indica que la preocupación es semanal."]
["4. El 44 % de los resultados señala que los vecinos están preocupados por el medio ambiente, por lo que se entiende como una oportunidad de llevar a cabo nuevas iniciativas ambientales."]
["5. Respecto de la situación del medio ambiente durante los últimos 5 años, el 37% de la comunidad opina que se ha mantenido, no obstante hay un grupo cercanamente menor, el 34 % que señala que, se ha mejorado."]
["6. Con relación a los principales problemas ambientales identificados por la comunidad, éstos son: tenencia irresponsable de mascotas (185 preferencias), contaminación del suelo (120 preferencias) y contaminación del aire (113 preferencias)."]
["7. Existe una intención en reconocer que la actitud de las personas ha cambiado positivamente, con respecto a su relación con el medio ambiente, el 45 % declara estar más bien de acuerdo y el 25 % indica estar totalmente de acuerdo. El 10 % está totalmente en desacuerdo."]
["8. Respecto de la situación ambiental a nivel país en los últimos 10 años, el 35 % de la comunidad opina que se ha empeorado y el 37 % que se ha mantenido."]
["9. El 74 % de la comunidad encuestada, reconoce que la responsabilidad por la situación del medio ambiente, es de todos por igual: públicos, privados y población. Esta actitud constituye una oportunidad para abordar la temática ambiental en forma conjunta. "]
["10. El 28 % de los encuestados define medio ambiente como \"Sociedad, Naturaleza y Ciudad\". Por otra parte, el 31 % admite la definición de \"Sociedad, Naturaleza y Ecología\", donde esta última corresponde a la ciencia que estudia la interrelación entre los seres vivos y su entorno."]